{"text_format":"1","workbook":"xlsx","n_sheets":9,"sheets":["Programme","Algebra and Topology","Applied Stochastics","Math. Found. of Comp. Sci.","Mathematical Physics","SMI","SIS","Science & Education","Selections"],"not_rendered":{"charts":0,"images":6,"macros":1,"external_links":0,"defined_names":59,"comments":0,"pivot_tables":0},"unopened":[],"bounds":{"document_bytes":16777216,"sheet_cells":100000,"rows_first":2000,"rows_last":500,"rows_between":2000,"halvings":0,"cell_chars":16384,"cell_head_chars":4096},"cells_cut":0,"cells_raw":0,"read":"whole","date_system":"1900"}

{"sheet":"Programme","index":0,"n_rows":6,"n_cols":13,"rows_kept":6,"cut":false,"hidden":false,"merged":[[2,12,3,15]]}
[null,"Request for approval of Masters Programme Mathematics"]
[null,null,"Please select your specialisation and starting year of the Master's programme"]
[null,null,"Then click on the 'Generate programme approval request form' button",null,null,null,null,null,null,null,null,null,"Administrator tools"]
[]
[null,"Specialisation:","Please Select…"]
[null,"Starting year:","Please Select…"]

{"sheet":"Algebra and Topology","index":1,"n_rows":476,"n_cols":7,"rows_kept":476,"cut":false,"hidden":true,"merged":[[305,4,305,6],[350,1,355,6],[306,4,306,6],[307,4,307,6],[308,4,308,6],[309,4,309,6],[331,1,332,6],[297,4,297,6],[298,4,298,6],[299,4,299,6],[300,4,300,6],[301,4,301,6],[249,2,249,6],[293,4,293,6],[294,4,294,6],[295,4,295,6],[296,4,296,6],[186,4,186,6],[245,2,245,6],[246,2,246,6],[247,2,247,6],[248,2,248,6],[212,1,213,6],[231,1,236,6],[187,4,187,6],[188,4,188,6],[189,4,189,6],[190,4,190,6],[64,4,64,6],[93,1,94,6],[68,4,68,6],[69,4,69,6],[70,4,70,6],[71,4,71,6],[72,4,72,6],[59,4,59,6],[60,4,60,6],[61,4,61,6],[62,4,62,6],[63,4,63,6],[56,4,56,6],[57,4,57,6],[58,4,58,6],[8,2,8,6],[9,2,9,6],[10,2,10,6],[11,2,11,6],[12,2,12,6],[112,1,117,6],[126,2,126,6],[127,2,127,6],[128,2,128,6],[129,2,129,6],[179,4,179,6],[180,4,180,6],[181,4,181,6],[182,4,182,6],[130,2,130,6],[175,4,175,6],[176,4,176,6],[177,4,177,6],[178,4,178,6],[174,4,174,6],[364,2,364,6],[365,2,365,6],[366,2,366,6],[367,2,367,6],[368,2,368,6],[412,4,412,6],[413,4,413,6],[414,4,414,6],[415,4,415,6],[416,4,416,6],[417,4,417,6],[418,4,418,6],[419,4,419,6],[420,4,420,6],[424,4,424,6],[469,1,474,6],[425,4,425,6],[426,4,426,6],[427,4,427,6],[428,4,428,6],[450,1,451,6]]}
["Laat deze kolom leeg, behalve de jaartallen en de scheidingswoorden"]
["2014"]
[null,"Request for approval Master's Programme Mathematics - Research: Algebra and Topology (Cohort 2014)"]
[null,"Use this form to submit your Master's programme for approval by the Examining Board"]
[]
[]
[null,"Please complete the form and send via e-mail to: fnwi.examcies@science.ru.nl"]
[]
[null,"Student name:"]
[null,"Student number:"]
[null,"Starting date master:"]
[null,"E-mail:"]
[null,"Phone number:"]
[]
[]
[null,"Mathematical Major (at least 30 EC)",null,null," Replaced by: (Select \"Other Course\" in the left column)"]
[null,"Course code","Course name","EC","Course code","Course name","EC"]
[null,"NWI-WM115B","Master Seminar",3]
[null,{"$f":"VLOOKUP(C19,AT1_lijst,2,0)","v":""},"Choose compulsory course..",{"$f":"VLOOKUP(C19,AT1_lijst,3,0)","v":""}]
[null,{"$f":"VLOOKUP(C20,AT2_lijst,2,0)","v":""},"Choose compulsory course..",{"$f":"VLOOKUP(C20,AT2_lijst,3,0)","v":""}]
[null,{"$f":"VLOOKUP(C21,AT_Math_lijst,2,0)","v":""},"Please select your math courses here",{"$f":"VLOOKUP(C21,AT_Math_lijst,3,0)","v":""}]
[null,"","Please select your math courses here",""]
[null,"","Please select your math courses here",""]
[null,"","Please select your math courses here",""]
[null,"","Please select your math courses here",""]
[null,"","Please select your math courses here",""]
[null,null,"sum:",{"$f":"SUMIF(G18:G26,\"\",D18:D26)+SUM(G18:G26)","v":3}]
[]
[null,{"$f":"CONCATENATE(\"Mathematical Electives (at least \",MAX(MIN(48-D27,18),10),\" EC)\")&\",  Prof.Prep.(1 EC) is allowed here.\"","v":"Mathematical Electives (at least 18 EC),  Prof.Prep.(1 EC) is allowed here."},null,null," Replaced by: (Select \"Other Course\" in the left column)"]
[null,"Course code","Course name","EC","Course code","Course name","EC"]
[null,{"$f":"VLOOKUP(C31,All_Math_lijst,2,0)","v":""},"Please select your math courses here",{"$f":"VLOOKUP(C31,All_Math_lijst,3,0)","v":""}]
[null,"","Please select your math courses here",""]
[null,"","Please select your math courses here",""]
[null,"","Please select your math courses here",""]
[null,"","Please select your math courses here",""]
[null,"","Please select your math courses here",""]
[null,"","Please select your math courses here",""]
[null,"","Please select your math courses here",""]
[null,"","Please select your math courses here",""]
[null,"","Please select your math courses here",""]
[null,"","Please select your math courses here",""]
[null,null,"sum:",{"$f":"SUMIF(G31:G41,\"\",D31:D41)+SUM(G31:G41)","v":0}]
[]
[]
[null,{"$f":"CONCATENATE(\"Minor (at least \",MAX(MIN(72-D27-D42,24),12),\" EC, not necessarily Mathematical courses)  \")","v":"Minor (at least 24 EC, not necessarily Mathematical courses)  "}]
[null,"Mathematical courses:",null,null," Replaced by: (Select \"Other Course\" in the left column)"]
[null,{"$f":"VLOOKUP(C47,All_Math_lijst,2,0)","v":""},"Please select your math courses here",{"$f":"VLOOKUP(C47,All_Math_lijst,3,0)","v":""}]
[null,"","Please select your math courses here",""]
[null,"","Please select your math courses here",""]
[null,"","Please select your math courses here",""]
[null,"","Please select your math courses here",""]
[null,"","Please select your math courses here",""]
[null,"","Please select your math courses here",""]
[null,"","Please select your math courses here",""]
[null,"","Please select your math courses here",""]
[null,"Other Master's courses:",null,null," Please provide a link to the prospectus for non-math courses"]
[null,"Course code","Course name","EC","Prospectus Link"]
[]
[]
[]
[]
[]
[]
[]
[]
[null,null,"sum:",{"$f":"SUMIFS(D47:D55, G47:G55, \"\",E47:E55,\"\",F47:F55,\"\")+SUM(G47:G55)+SUM(D58:D65)","v":0}]
[]
[null,"Free Electives (minimum 0  - 6 EC)",null,null," Please provide a link to the prospectus for non-math courses"]
[null,"Course code","Course name","EC","Prospectus Link"]
[]
[]
[]
[]
[null,null,"sum:",{"$f":"SUM(D70:D73)","v":0}]
[]
[]
[]
[null,"Master Thesis + Philosophy (43 EC)",null,null,"Replaced by:"]
[null,"Course code","Course name","EC","Course code","Course name","EC"]
[null,"NWI-WM052B","Master Thesis Project ",40]
[null,{"$f":"VLOOKUP(C81,filo_lijst,2,0)","v":""},"Choose your philosophical course here",{"$f":"VLOOKUP(C81,filo_lijst,3,0)","v":""}]
[null,null,"sum:",{"$f":"SUMIF(G80:G81,\"\",D80:D81)+SUM(G80:G81)","v":40}]
[]
[null,null,"Master Math needed (EC)",12]
[null,null,"MasterMath courses (EC)",{"$f":"SUMIF(C18:C73,\"*(MM)*\",D18:D73)","v":0}]
[null,null,"Minimum MasterMath OK?",{"$f":"IF(D85>D84-1,\"YES\",\"NO\")","v":"NO"}]
[null,null,"Maximum 3rd year bachelor Math (EC)",18]
[null,null,"3rd year bachelor Math. courses (EC)",{"$f":"SUMIF(C18:C73,\"*3rd year*\",D18:D73)","v":0}]
[null,null,"Maximum 3rd year bachelor Math OK?",{"$f":"IF(D88<=D87,\"YES\",\"NO\")","v":"YES"}]
[]
[null,null,"Total ECTS (120)",{"$f":"SUM(D82,D74,D42,D66,D27)","v":43}]
[]
[]
[null,"Honours ('judicium') is awarded  based on the nominal number of 120 EC required for the examination; extra curricular courses do not count for this honours (but will be mentioned on your diploma)."]
[]
[null,"Extra Curricular Courses (extra above 120 ECTS)"]
[null,"Course code","Course name","EC"]
[]
[]
[]
[]
[]
[]
[]
[]
[]
[]
[null,null,"sum:",{"$f":"SUM(D98:D107)","v":0}]
[]
[null,"Total ECTS overall:",null,{"$f":"SUM(D108,D91)","v":43},"EC"]
[]
[null,"Comments:"]
[]
[]
[]
[]
[]
[]
["#scheidingswoordmeteenhashtag"]
["2015,2016"]
[null,"Request for approval Master's Programme Mathematics - Research: Algebra and Topology (Cohort 2015, 2016)"]
[null,"Use this form to submit your Master's programme for approval by the Examining Board"]
[]
[]
[null,"Please complete the form and send via e-mail to: fnwi.examcies@science.ru.nl"]
[]
[null,"Student name:"]
[null,"Student number:"]
[null,"Starting date master:"]
[null,"E-mail:"]
[null,"Phone number:"]
[]
[]
[null,"Mathematical Major (at least 30 EC)",null,null,"Replaced by: (Select \"Other Course\" in the left column)"]
[null,"Course code","Course name","EC","Course code","Course name","EC"]
[null,"NWI-WM115B","Master Seminar",3]
[null,{"$f":"VLOOKUP(C137,AT1_lijst,2,0)","v":""},"Choose compulsory course..",{"$f":"VLOOKUP(C137,AT1_lijst,3,0)","v":""}]
[null,{"$f":"VLOOKUP(C138,AT2_lijst,2,0)","v":""},"Choose compulsory course..",{"$f":"VLOOKUP(C138,AT2_lijst,3,0)","v":""}]
[null,{"$f":"VLOOKUP(C139,AT_Math_lijst,2,0)","v":""},"Please select your math courses here",{"$f":"VLOOKUP(C139,AT_Math_lijst,3,0)","v":""}]
[null,"","Please select your math courses here",""]
[null,"","Please select your math courses here",""]
[null,"","Please select your math courses here",""]
[null,"","Please select your math courses here",""]
[null,"","Please select your math courses here",""]
[null,null,"sum:",{"$f":"SUMIF(G136:G144,\"\",D136:D144)+SUM(G136:G144)","v":3}]
[]
[null,{"$f":"CONCATENATE(\"Mathematical Electives (at least \",MAX(MIN(47-D145,17),10),\" EC)\")","v":"Mathematical Electives (at least 17 EC)"},null,null,"Replaced by: (Select \"Other Course\" in the left column)"]
[null,"Course code","Course name","EC","Course code","Course name","EC"]
[null,{"$f":"VLOOKUP(C149,All_Math_lijst,2,0)","v":""},"Please select your math courses here",{"$f":"VLOOKUP(C149,All_Math_lijst,3,0)","v":""}]
[null,"","Please select your math courses here",{"$f":"VLOOKUP(C150,All_Math_lijst,3,0)","v":""}]
[null,"","Please select your math courses here",""]
[null,"","Please select your math courses here",""]
[null,"","Please select your math courses here",""]
[null,"","Please select your math courses here",""]
[null,"","Please select your math courses here",""]
[null,"","Please select your math courses here",""]
[null,"","Please select your math courses here",""]
[null,"","Please select your math courses here",""]
[null,"","Please select your math courses here",""]
[null,null,"sum:",{"$f":"SUMIF(G149:G159,\"\",D149:D159)+SUM(G149:G159)","v":0}]
[]
[]
[null,{"$f":"CONCATENATE(\"Minor (at least \",MAX(MIN(71-D145-D160,24),12),\" EC, not necessarily Mathematical courses)  \")","v":"Minor (at least 24 EC, not necessarily Mathematical courses)  "}]
[null,"Mathematical courses:",null,null,"Replaced by: (Select \"Other Course\" in the left column)"]
[null,{"$f":"VLOOKUP(C165,All_Math_lijst,2,0)","v":""},"Please select your math courses here",{"$f":"VLOOKUP(C165,All_Math_lijst,3,0)","v":""}]
[null,"","Please select your math courses here",""]
[null,"","Please select your math courses here",""]
[null,"","Please select your math courses here",""]
[null,"","Please select your math courses here",""]
[null,"","Please select your math courses here",""]
[null,"","Please select your math courses here",""]
[null,"","Please select your math courses here",""]
[null,"","Please select your math courses here",""]
[null,"Other Master's courses:",null,null," Please provide a link to the prospectus for non-math courses"]
[null,"Course code","Course name","EC","Prospectus Link"]
[]
[]
[]
[]
[]
[]
[]
[]
[null,null,"sum:",{"$f":"SUMIFS(D165:D173, G165:G173, \"\",E165:E173,\"\",F165:F173,\"\")+SUM(G165:G173)+SUM(D176:D183)","v":0}]
[]
[null,"Free Electives (minimum 0  - 6 EC)",null,null," Please provide a link to the prospectus for non-math courses"]
[null,"Course code","Course name","EC","Prospectus Link"]
[]
[]
[]
[]
[null,null,"sum:",{"$f":"SUM(D188:D191)","v":0}]
[]
[]
[]
[null,"Master Thesis + Philosophy + Professional Preparation (44 EC)",null,null,"Replaced by:"]
[null,"Course code","Course name","EC","Course code","Course name","EC"]
[null,"NWI-WM052B","Master Thesis Project ",40]
[null,"NWI-NM019B","Professional Preparation",1]
[null,{"$f":"VLOOKUP(C200,filo_lijst,2,0)","v":""},"Choose your philosophical course here",{"$f":"VLOOKUP(C200,filo_lijst,3,0)","v":""}]
[null,null,"sum:",{"$f":"SUMIF(G198:G200,\"\",D198:D200)+SUM(G198:G200)","v":41}]
[]
[null,null,"Master Math needed (EC)",12]
[null,null,"MasterMath courses (EC)",{"$f":"SUMIF(C136:C191,\"*(MM)*\",D136:D191)","v":0}]
[null,null,"Minimum MasterMath OK?",{"$f":"IF(D204>D203-1,\"YES\",\"NO\")","v":"NO"}]
[null,null,"Maximum 3rd year bachelor Math (EC)",12]
[null,null,"3rd year bachelor Math. courses (EC)",{"$f":"SUMIF(C136:C191,\"*3rd year*\",D136:D191)","v":0}]
[null,null,"Maximum 3rd year bachelor Math OK?",{"$f":"IF(D207<=D206,\"YES\",\"NO\")","v":"YES"}]
[]
[null,null,"Total ECTS (120)",{"$f":"SUM(D201,D192,D160,D184,D145)","v":44}]
[]
[]
[null,"Honours ('judicium') is awarded  based on the nominal number of 120 EC required for the examination; extra curricular courses do not count for this honours (but will be mentioned on your diploma)."]
[]
[null,"Extra Curricular Courses (extra above 120 ECTS)"]
[null,"Course code","Course name","EC"]
[]
[]
[]
[]
[]
[]
[]
[]
[]
[]
[null,null,"sum:",{"$f":"SUM(D217:D226)","v":0}]
[]
[null,"Total ECTS overall:",null,{"$f":"SUM(D227,D210)","v":44},"EC"]
[]
[null,"Comments:"]
[]
[]
[]
[]
[]
[]
["#scheidingswoordmeteenhashtag"]
[2017]
[null,"Request for approval Master's Programme Mathematics - Research: Algebra and Topology (Cohort 2017)"]
[null,"Use this form to submit your Master's programme for approval by the Examining Board"]
[]
[]
[null,"Please complete the form and send via e-mail to: fnwi.examcies@science.ru.nl"]
[]
[null,"Student name:"]
[null,"Student number:"]
[null,"Starting date master:"]
[null,"E-mail:"]
[null,"Phone number:"]
[]
[]
[null,"Mathematical Major (at least 30 EC)",null,null,"Replaced by: (Select \"Other Course\" in the left column)"]
[null,"Course code","Course name","EC","Course code","Course name","EC"]
[null,"NWI-WM115B","Master Seminar",3]
[null,{"$f":"VLOOKUP(C256,AT1_lijst,2,0)","v":""},"Choose compulsory course..",{"$f":"VLOOKUP(C256,AT1_lijst,3,0)","v":""}]
[null,{"$f":"VLOOKUP(C257,AT2_lijst,2,0)","v":""},"Choose compulsory course..",{"$f":"VLOOKUP(C257,AT2b_lijst,3,0)","v":""}]
[null,{"$f":"VLOOKUP(C258,AT_Math_lijst,2,0)","v":""},"Please select your math courses here",{"$f":"VLOOKUP(C258,AT_Math_lijst,3,0)","v":""}]
[null,"","Please select your math courses here",""]
[null,"","Please select your math courses here",""]
[null,"","Please select your math courses here",""]
[null,"","Please select your math courses here",""]
[null,"","Please select your math courses here",""]
[null,null,"sum:",{"$f":"SUMIF(G255:G263,\"\",D255:D263)+SUM(G255:G263)","v":3}]
[]
[null,{"$f":"CONCATENATE(\"Mathematical Electives (at least \",MAX(MIN(47-D264,17),10),\" EC)\")","v":"Mathematical Electives (at least 17 EC)"},null,null,"Replaced by: (Select \"Other Course\" in the left column)"]
[null,"Course code","Course name","EC","Course code","Course name","EC"]
[null,{"$f":"VLOOKUP(C268,All_Math_lijst,2,0)","v":""},"Please select your math courses here",{"$f":"VLOOKUP(C268,All_Math_lijst,3,0)","v":""}]
[null,"","Please select your math courses here",""]
[null,"","Please select your math courses here",""]
[null,"","Please select your math courses here",""]
[null,"","Please select your math courses here",""]
[null,"","Please select your math courses here",""]
[null,"","Please select your math courses here",""]
[null,"","Please select your math courses here",""]
[null,"","Please select your math courses here",""]
[null,"","Please select your math courses here",""]
[null,"","Please select your math courses here",""]
[null,null,"sum:",{"$f":"SUMIF(G268:G278,\"\",D268:D278)+SUM(G268:G278)","v":0}]
[]
[]
[null,{"$f":"CONCATENATE(\"Minor (at least \",MAX(MIN(71-D264-D279,24),12),\" EC, not necessarily Mathematical courses)  \")","v":"Minor (at least 24 EC, not necessarily Mathematical courses)  "}]
[null,"Mathematical courses:",null,null,"Replaced by: (Select \"Other Course\" in the left column)"]
[null,{"$f":"VLOOKUP(C284,All_Math_lijst,2,0)","v":""},"Please select your math courses here",{"$f":"VLOOKUP(C284,All_Math_lijst,3,0)","v":""}]
[null,"","Please select your math courses here",""]
[null,"","Please select your math courses here",""]
[null,"","Please select your math courses here",""]
[null,"","Please select your math courses here",""]
[null,"","Please select your math courses here",""]
[null,"","Please select your math courses here",""]
[null,"","Please select your math courses here",""]
[null,"","Please select your math courses here",""]
[null,"Other Master's courses:",null,null," Please provide a link to the prospectus for non-math courses"]
[null,"Course code","Course name","EC","Prospectus Link"]
[]
[]
[]
[]
[]
[]
[]
[]
[null,null,"sum:",{"$f":"SUMIFS(D284:D292, G284:G292, \"\",E284:E292,\"\",F284:F292,\"\")+SUM(G284:G292)+SUM(D295:D302)","v":0}]
[]
[null,"Free Electives (minimum 0  - 6 EC)",null,null," Please provide a link to the prospectus for non-math courses"]
[null,"Course code","Course name","EC","Prospectus Link"]
[]
[]
[]
[]
[null,null,"sum:",{"$f":"SUM(D307:D310)","v":0}]
[]
[]
[]
[null,"Master Thesis + Philosophy + Professional Preparation (44 EC)",null,null,"Replaced by:"]
[null,"Course code","Course name","EC","Course code","Course name","EC"]
[null,"NWI-WM052B","Master Thesis Project ",40]
[null,"NWI-NM019B","Professional Preparation",1]
[null,{"$f":"VLOOKUP(C319,filo_lijst,2,0)","v":""},"Choose your philosophical course here",{"$f":"VLOOKUP(C319,filo_lijst,3,0)","v":""}]
[null,null,"sum:",{"$f":"SUMIF(G317:G319,\"\",D317:D319)+SUM(G317:G319)","v":41}]
[]
[null,null,"Master Math needed (EC)",12]
[null,null,"MasterMath courses (EC)",{"$f":"SUMIF(C255:C310,\"*(MM)*\",D255:D310)","v":0}]
[null,null,"Minimum MasterMath OK?",{"$f":"IF(D323>D322-1,\"YES\",\"NO\")","v":"NO"}]
[null,null,"Maximum 3rd year bachelor Math (EC)",12]
[null,null,"3rd year bachelor Math. courses (EC)",{"$f":"SUMIF(C255:C310,\"*3rd year*\",D255:D310)","v":0}]
[null,null,"Maximum 3rd year bachelor Math OK?",{"$f":"IF(D326<=D325,\"YES\",\"NO\")","v":"YES"}]
[]
[null,null,"Total ECTS (120)",{"$f":"SUM(D320,D311,D279,D303,D264)","v":44}]
[]
[]
[null,"Honours ('judicium') is awarded  based on the nominal number of 120 EC required for the examination; extra curricular courses do not count for this honours (but will be mentioned on your diploma)."]
[]
[null,"Extra Curricular Courses (extra above 120 ECTS)"]
[null,"Course code","Course name","EC"]
[]
[]
[]
[]
[]
[]
[]
[]
[]
[]
[null,null,"sum:",{"$f":"SUM(D336:D345)","v":0}]
[]
[null,"Total ECTS overall:",null,{"$f":"SUM(D346,D329)","v":44},"EC"]
[]
[null,"Comments:"]
[]
[]
[]
[]
[]
[]
["#scheidingswoordmeteenhashtag"]
["2018"]
[null,"Request for approval Master's Programme Mathematics - Research: Algebra and Topology (Cohort 2018)"]
[null,"Use this form to submit your Master's programme for approval by the Examining Board"]
[]
[]
[null,"Please complete the form and send via e-mail to: fnwi.examcies@science.ru.nl"]
[]
[null,"Student name:"]
[null,"Student number:"]
[null,"Starting date master:"]
[null,"E-mail:"]
[null,"Phone number:"]
[]
[]
[null,"Mathematical Major (at least 30 EC)",null,null,"Replaced by: (Select \"Other Course\" in the left column)"]
[null,"Course code","Course name","EC","Course code","Course name","EC"]
[null,"NWI-WM115C","Master Seminar",6]
[null,{"$f":"VLOOKUP(C375,AT1_lijst_2018,2,0)","v":""},"Choose compulsory course..",{"$f":"VLOOKUP(C375,AT1_lijst_2018,3,0)","v":""}]
[null,{"$f":"VLOOKUP(C376,AT2_lijst_2018,2,0)","v":""},"Choose compulsory course..",{"$f":"VLOOKUP(C376,AT2_lijst_2018,3,0)","v":""}]
[null,{"$f":"VLOOKUP(C377,AT_Math_lijst,2,0)","v":""},"Please select your math courses here",{"$f":"VLOOKUP(C377,AT_Math_lijst,3,0)","v":""}]
[null,"","Please select your math courses here",""]
[null,"","Please select your math courses here",""]
[null,"","Please select your math courses here",""]
[null,"","Please select your math courses here",""]
[null,"","Please select your math courses here",""]
[null,null,"sum:",{"$f":"SUMIF(G374:G382,\"\",D374:D382)+SUM(G374:G382)","v":6}]
[]
[null,{"$f":"CONCATENATE(\"Mathematical Electives (at least \",MAX(MIN(47-D383,17),10),\" EC)\")","v":"Mathematical Electives (at least 17 EC)"},null,null,"Replaced by: (Select \"Other Course\" in the left column)"]
[null,"Course code","Course name","EC","Course code","Course name","EC"]
[null,{"$f":"VLOOKUP(C387,All_Math_lijst,2,0)","v":""},"Please select your math courses here",{"$f":"VLOOKUP(C387,All_Math_lijst,3,0)","v":""}]
[null,"","Please select your math courses here",""]
[null,"","Please select your math courses here",""]
[null,"","Please select your math courses here",""]
[null,"","Please select your math courses here",""]
[null,"","Please select your math courses here",""]
[null,"","Please select your math courses here",""]
[null,"","Please select your math courses here",""]
[null,"","Please select your math courses here",""]
[null,"","Please select your math courses here",""]
[null,"","Please select your math courses here",""]
[null,null,"sum:",{"$f":"SUMIF(G387:G397,\"\",D387:D397)+SUM(G387:G397)","v":0}]
[]
[]
[null,{"$f":"CONCATENATE(\"Minor (at least \",MAX(MIN(71-D383-D398,24),12),\" EC, not necessarily Mathematical courses)  \")","v":"Minor (at least 24 EC, not necessarily Mathematical courses)  "}]
[null,"Mathematical courses:",null,null,"Replaced by: (Select \"Other Course\" in the left column)"]
[null,{"$f":"VLOOKUP(C403,All_Math_lijst,2,0)","v":""},"Please select your math courses here",{"$f":"VLOOKUP(C403,All_Math_lijst,3,0)","v":""}]
[null,"","Please select your math courses here",""]
[null,"","Please select your math courses here",""]
[null,"","Please select your math courses here",""]
[null,"","Please select your math courses here",""]
[null,"","Please select your math courses here",""]
[null,"","Please select your math courses here",""]
[null,"","Please select your math courses here",""]
[null,"","Please select your math courses here",""]
[null,"Other Master's courses:",null,null," Please provide a link to the prospectus for non-math courses"]
[null,"Course code","Course name","EC","Prospectus Link"]
[]
[]
[]
[]
[]
[]
[]
[]
[null,null,"sum:",{"$f":"SUMIFS(D403:D411, G403:G411, \"\",E403:E411,\"\",F403:F411,\"\")+SUM(G403:G411)+SUM(D414:D421)","v":0}]
[]
[null,"Free Electives (minimum 0  - 6 EC)",null,null," Please provide a link to the prospectus for non-math courses"]
[null,"Course code","Course name","EC","Prospectus Link"]
[]
[]
[]
[]
[null,null,"sum:",{"$f":"SUM(D426:D429)","v":0}]
[]
[]
[]
[null,"Master Thesis + Philosophy + Professional Preparation (44 EC)",null,null,"Replaced by:"]
[null,"Course code","Course name","EC","Course code","Course name","EC"]
[null,"NWI-WM052B","Master Thesis Project ",40]
[null,"NWI-NM019B","Professional Preparation",1]
[null,{"$f":"VLOOKUP(C438,filo_lijst_2018,2,0)","v":""},"Choose your philosophical course here",{"$f":"VLOOKUP(C438,filo_lijst_2018,3,0)","v":""}]
[null,null,"sum:",{"$f":"SUMIF(G436:G438,\"\",D436:D438)+SUM(G436:G438)","v":41}]
[]
[null,null,"Master Math needed (EC)",12]
[null,null,"MasterMath courses (EC)",{"$f":"SUMIF(C374:C429,\"*(MM)*\",D374:D429)","v":0}]
[null,null,"Minimum MasterMath OK?",{"$f":"IF(D442>D441-1,\"YES\",\"NO\")","v":"NO"}]
[null,null,"Maximum 3rd year bachelor Math (EC)",12]
[null,null,"3rd year bachelor Math. courses (EC)",{"$f":"SUMIF(C374:C429,\"*3rd year*\",D374:D429)","v":0}]
[null,null,"Maximum 3rd year bachelor Math OK?",{"$f":"IF(D445<=D444,\"YES\",\"NO\")","v":"YES"}]
[]
[null,null,"Total ECTS (120)",{"$f":"SUM(D439,D430,D398,D422,D383)","v":47}]
[]
[]
[null,"Honours ('judicium') is awarded  based on the nominal number of 120 EC required for the examination; extra curricular courses do not count for this honours (but will be mentioned on your diploma)."]
[]
[null,"Extra Curricular Courses (extra above 120 ECTS)"]
[null,"Course code","Course name","EC"]
[]
[]
[]
[]
[]
[]
[]
[]
[]
[]
[null,null,"sum:",{"$f":"SUM(D455:D464)","v":0}]
[]
[null,"Total ECTS overall:",null,{"$f":"SUM(D465,D448)","v":47},"EC"]
[]
[null,"Comments:"]
[]
[]
[]
[]
[]
[]
["#scheidingswoordmeteenhashtag"]

{"sheet":"Applied Stochastics","index":2,"n_rows":477,"n_cols":7,"rows_kept":477,"cut":false,"hidden":true,"merged":[[310,4,310,6],[332,1,333,6],[356,1,356,6],[351,1,351,6],[352,1,352,6],[353,1,353,6],[354,1,354,6],[355,1,355,6],[298,4,298,6],[299,4,299,6],[300,4,300,6],[301,4,301,6],[302,4,302,6],[306,4,306,6],[307,4,307,6],[308,4,308,6],[309,4,309,6],[245,2,245,6],[246,2,246,6],[247,2,247,6],[248,2,248,6],[249,2,249,6],[294,4,294,6],[295,4,295,6],[296,4,296,6],[297,4,297,6],[177,4,177,6],[178,4,178,6],[127,2,127,6],[126,2,126,6],[113,1,113,6],[114,1,114,6],[115,1,115,6],[116,1,116,6],[117,1,117,6],[7,2,7,6],[8,2,8,6],[9,2,9,6],[10,2,10,6],[11,2,11,6],[235,1,235,6],[236,1,236,6],[237,1,237,6],[128,2,128,6],[129,2,129,6],[130,2,130,6],[232,1,232,6],[233,1,233,6],[234,1,234,6],[179,4,179,6],[180,4,180,6],[181,4,181,6],[182,4,182,6],[183,4,183,6],[187,4,187,6],[188,4,188,6],[60,4,60,6],[61,4,61,6],[62,4,62,6],[364,2,364,6],[365,2,365,6],[366,2,366,6],[367,2,367,6],[368,2,368,6],[56,4,56,6],[57,4,57,6],[58,4,58,6],[59,4,59,6],[63,4,63,6],[64,4,64,6],[118,1,118,6],[68,4,68,6],[69,4,69,6],[70,4,70,6],[71,4,71,6],[72,4,72,6],[189,4,189,6],[190,4,190,6],[191,4,191,6],[213,1,214,6],[93,1,94,6],[175,4,175,6],[176,4,176,6],[418,4,418,6],[419,4,419,6],[420,4,420,6],[421,4,421,6],[425,4,425,6],[413,4,413,6],[414,4,414,6],[415,4,415,6],[416,4,416,6],[417,4,417,6],[475,1,475,6],[470,1,470,6],[471,1,471,6],[472,1,472,6],[473,1,473,6],[474,1,474,6],[426,4,426,6],[427,4,427,6],[428,4,428,6],[429,4,429,6],[451,1,452,6]]}
["Laat deze kolom leeg, behalve de jaartallen en de scheidingswoorden"]
["2014"]
[null,"Request for approval Master's Programme Mathematics - Research: Applied Stochastics (Cohort 2014)"]
[null,"Use this form to submit your Master's programme for approval by the Examining Board"]
[]
[null,"Please complete the form and send via e-mail to: fnwi.examcies@science.ru.nl"]
[]
[null,"Student name:"]
[null,"Student number:"]
[null,"Starting date master:"]
[null,"E-mail:"]
[null,"Phone number:"]
[]
[]
[]
[null,"Mathematical Major (at least 30 EC)",null,null,"Replaced by: (Select \"Other Course\" in the left column)"]
[null,"Course code","Course name","EC","Course code","Course name","EC"]
[null,{"$f":"VLOOKUP(C18,AS1_lijst,2,0)","v":""},"Choose compulsory course…",{"$f":"VLOOKUP(C18,AS1_lijst,3,0)","v":""}]
[null,{"$f":"VLOOKUP(C19,AS2_lijst,2,0)","v":""},"Choose compulsory course…",{"$f":"VLOOKUP(C19,AS2_lijst,3,0)","v":""}]
[null,"NWI-WB115B","Master Seminar",3]
[null,{"$f":"VLOOKUP(C21,AS_Math_lijst,2,0)","v":""},"Please select your math courses here",{"$f":"VLOOKUP(C21,AS_Math_lijst,3,0)","v":""}]
[null,"","Please select your math courses here",""]
[null,"","Please select your math courses here",""]
[null,"","Please select your math courses here",""]
[null,"","Please select your math courses here",""]
[null,"","Please select your math courses here",""]
[null,null,"sum:",{"$f":"SUMIF(G18:G26,\"\",D18:D26)+SUM(G18:G26)","v":3}]
[]
[null,{"$f":"CONCATENATE(\"Mathematical Electives (at least \",MAX(MIN(48-D27,18),10),\" EC)\")&\",  Prof.Prep.(1 EC) is allowed here.\"","v":"Mathematical Electives (at least 18 EC),  Prof.Prep.(1 EC) is allowed here."},null,null," Replaced by: (Select \"Other Course\" in the left column)"]
[null,"Course code","Course name","EC","Course code","Course name","EC"]
[null,{"$f":"VLOOKUP(C31,All_Math_lijst,2,0)","v":""},"Please select your math courses here",{"$f":"VLOOKUP(C31,All_Math_lijst,3,0)","v":""}]
[null,"","Please select your math courses here",{"$f":"VLOOKUP(C32,AT_Math_lijst,3,0)","v":""}]
[null,"","Please select your math courses here",""]
[null,"","Please select your math courses here",""]
[null,"","Please select your math courses here",""]
[null,"","Please select your math courses here",""]
[null,"","Please select your math courses here",""]
[null,"","Please select your math courses here",""]
[null,"","Please select your math courses here",""]
[null,"","Please select your math courses here",""]
[null,"","Please select your math courses here",""]
[null,null,"sum:",{"$f":"SUMIF(G31:G41,\"\",D31:D41)+SUM(G31:G41)","v":0}]
[]
[]
[null,{"$f":"CONCATENATE(\"Minor (at least \",MAX(MIN(72-D27-D42,24),12),\" EC, not necessarily Mathematical courses)  \")","v":"Minor (at least 24 EC, not necessarily Mathematical courses)  "}]
[null,"Mathematical courses:",null,null,"Replaced by: (Select \"Other Course\" in the left column)"]
[null,{"$f":"VLOOKUP(C47,All_Math_lijst,2,0)","v":""},"Please select your math courses here",{"$f":"VLOOKUP(C47,All_Math_lijst,3,0)","v":""}]
[null,"","Please select your math courses here",""]
[null,"","Please select your math courses here",""]
[null,"","Please select your math courses here",""]
[null,"","Please select your math courses here",""]
[null,"","Please select your math courses here",""]
[null,"","Please select your math courses here",""]
[null,"","Please select your math courses here",""]
[null,{"$f":"VLOOKUP(C55,AT_Math_lijst,2,0)","v":""},"Please select your math courses here",""]
[null,"Other Master's courses:",null,null," Please provide a link to the prospectus for non-math courses"]
[null,"Course code","Course name","EC","Prospectus Link"]
[]
[]
[]
[]
[]
[]
[]
[]
[null,null,"sum:",{"$f":"SUMIFS(D47:D55, G47:G55, \"\",E47:E55,\"\",F47:F55,\"\")+SUM(G47:G55)+SUM(D58:D65)","v":0}]
[]
[null,"Free Electives (minimum 0  - 6 EC)",null,null," Please provide a link to the prospectus for non-math courses"]
[null,"Course code","Course name","EC","Prospectus Link"]
[]
[]
[]
[]
[null,null,"sum:",{"$f":"SUM(D70:D73)","v":0}]
[]
[]
[]
[null,"Master Thesis + Philosophy  (43 EC)",null,null,"Replaced by:"]
[null,"Course code","Course name","EC","Course code","Course name","EC"]
[null,"NWI-WM052B","Master Thesis Project ",40]
[null,{"$f":"VLOOKUP(C81,filo_lijst,2,0)","v":""},"Choose your philosophical course here",{"$f":"VLOOKUP(C81,filo_lijst,3,0)","v":""}]
[null,null,"sum:",{"$f":"SUMIF(G80:G81,\"\",D80:D81)+SUM(G80:G81)","v":40}]
[]
[null,null,"Master Math needed (EC)",12]
[null,null,"MasterMath courses (EC)",{"$f":"SUMIF(C18:C73,\"*(MM)*\",D18:D73)","v":0}]
[null,null,"Minimum MasterMath OK?",{"$f":"IF(D85>D84-1,\"YES\",\"NO\")","v":"NO"}]
[null,null,"Maximum 3rd year bachelor Math (EC)",18]
[null,null,"3rd year bachelor Math. courses (EC)",{"$f":"SUMIF(C18:C73,\"*3rd year*\",D18:D73)","v":0}]
[null,null,"Maximum 3rd year bachelor Math OK?",{"$f":"IF(D88<=D87,\"YES\",\"NO\")","v":"YES"}]
[]
[null,null,"Total ECTS (120)",{"$f":"SUM(D82,D74,D42,D66,D27)","v":43}]
[]
[]
[null,"Honours ('judicium') is awarded  based on the nominal number of 120 EC required for the examination; extra curricular courses do not count for this honours (but will be mentioned on your diploma)."]
[]
[null,"Extra Curricular Courses (extra above 120 ECTS)"]
[null,"Course code","Course name","EC"]
[]
[]
[]
[]
[]
[]
[]
[]
[]
[]
[null,null,"sum:",{"$f":"SUM(D98:D107)","v":0}]
[]
[null,"Total ECTS overall:",null,{"$f":"SUM(D108,D91)","v":43},"EC"]
[]
[]
[null,"Comments:"]
[]
[]
[]
[]
[]
[]
["#scheidingswoordmeteenhashtag"]
["2015, 2016"]
[null,"Request for approval Master's Programme Mathematics - Research: Applied Stochastics (Cohort 2015 and 2016)"]
[null,"Use this form to submit your Master's programme for approval by the Examining Board"]
[]
[null,"Please complete the form and send via e-mail to: fnwi.examcies@science.ru.nl"]
[]
[null,"Student name:"]
[null,"Student number:"]
[null,"Starting date master:"]
[null,"E-mail:"]
[null,"Phone number:"]
[]
[]
[]
[null,"Mathematical Major (at least 30 EC)",null,null,"Replaced by: (Select \"Other Course\" in the left column)"]
[null,"Course code","Course name","EC","Course code","Course name","EC"]
[null,{"$f":"VLOOKUP(C137,AS1_lijst,2,0)","v":""},"Choose compulsory course…",{"$f":"VLOOKUP(C137,AS1_lijst,3,0)","v":""}]
[null,{"$f":"VLOOKUP(C138,AS2_lijst,2,0)","v":""},"Choose compulsory course…",{"$f":"VLOOKUP(C138,AS2_lijst,3,0)","v":""}]
[null,"NWI-WB115B","Master Seminar",3]
[null,{"$f":"VLOOKUP(C140,AS_Math_lijst,2,0)","v":""},"Please select your math courses here",{"$f":"VLOOKUP(C140,AS_Math_lijst,3,0)","v":""}]
[null,"","Please select your math courses here",""]
[null,"","Please select your math courses here",""]
[null,"","Please select your math courses here",""]
[null,"","Please select your math courses here",""]
[null,"","Please select your math courses here",""]
[null,null,"sum:",{"$f":"SUMIF(G137:G145,\"\",D137:D145)+SUM(G137:G145)","v":3}]
[]
[null,{"$f":"CONCATENATE(\"Mathematical Electives (at least \",MAX(MIN(47-D146,17),10),\" EC)\")","v":"Mathematical Electives (at least 17 EC)"},null,null,"Replaced by: (Select \"Other Course\" in the left column)"]
[null,"Course code","Course name","EC","Course code","Course name","EC"]
[null,{"$f":"VLOOKUP(C150,All_Math_lijst,2,0)","v":""},"Please select your math courses here",{"$f":"VLOOKUP(C150,All_Math_lijst,3,0)","v":""}]
[null,"","Please select your math courses here",""]
[null,"","Please select your math courses here",""]
[null,"","Please select your math courses here",""]
[null,"","Please select your math courses here",""]
[null,"","Please select your math courses here",""]
[null,"","Please select your math courses here",""]
[null,"","Please select your math courses here",""]
[null,"","Please select your math courses here",""]
[null,"","Please select your math courses here",""]
[null,"","Please select your math courses here",""]
[null,null,"sum:",{"$f":"SUMIF(G150:G160,\"\",D150:D160)+SUM(G150:G160)","v":0}]
[]
[]
[null,{"$f":"CONCATENATE(\"Minor (at least \",MAX(MIN(71-D146-D161,24),12),\" EC, not necessarily Mathematical courses)  \")","v":"Minor (at least 24 EC, not necessarily Mathematical courses)  "}]
[null,"Mathematical courses:",null,null,"Replaced by: (Select \"Other Course\" in the left column)"]
[null,{"$f":"VLOOKUP(C166,All_Math_lijst,2,0)","v":""},"Please select your math courses here",{"$f":"VLOOKUP(C166,All_Math_lijst,3,0)","v":""}]
[null,"","Please select your math courses here",""]
[null,"","Please select your math courses here",""]
[null,"","Please select your math courses here",""]
[null,"","Please select your math courses here",""]
[null,"","Please select your math courses here",""]
[null,"","Please select your math courses here",""]
[null,"","Please select your math courses here",""]
[null,"","Please select your math courses here",""]
[null,"Other Master's courses:",null,null," Please provide a link to the prospectus for non-math courses"]
[null,"Course code","Course name","EC","Prospectus Link"]
[]
[]
[]
[]
[]
[]
[]
[]
[null,null,"sum:",{"$f":"SUMIFS(D166:D174, G166:G174, \"\",E166:E174,\"\",F166:F174,\"\")+SUM(G166:G174)+SUM(D177:D184)","v":0}]
[]
[null,"Free Electives (minimum 0  - 6 EC)",null,null," Please provide a link to the prospectus for non-math courses"]
[null,"Course code","Course name","EC","Prospectus Link"]
[]
[]
[]
[]
[null,null,"sum:",{"$f":"SUM(D189:D192)","v":0}]
[]
[]
[]
[null,"Master Thesis + Philosophy + Professional Preparation (44 EC)",null,null,"Replaced by:"]
[null,"Course code","Course name","EC","Course code","Course name","EC"]
[null,"NWI-WM052B","Master Thesis Project ",40]
[null,"NWI-NM019B","Professional Preparation",1]
[null,{"$f":"VLOOKUP(C201,filo_lijst,2,0)","v":""},"Choose your philosophical course here",{"$f":"VLOOKUP(C201,filo_lijst,3,0)","v":""}]
[null,null,"sum:",{"$f":"SUMIF(G199:G201,\"\",D199:D201)+SUM(G199:G201)","v":41}]
[]
[null,null,"Master Math needed (EC)",12]
[null,null,"MasterMath courses (EC)",{"$f":"SUMIF(C137:C192,\"*(MM)*\",D137:D192)","v":0}]
[null,null,"Minimum MasterMath OK?",{"$f":"IF(D205>D204-1,\"YES\",\"NO\")","v":"NO"}]
[null,null,"Maximum 3rd year bachelor Math (EC)",12]
[null,null,"3rd year bachelor Math. courses (EC)",{"$f":"SUMIF(C137:C192,\"*3rd year*\",D137:D192)","v":0}]
[null,null,"Maximum 3rd year bachelor Math OK?",{"$f":"IF(D208<=D207,\"YES\",\"NO\")","v":"YES"}]
[]
[null,null,"Total ECTS (120)",{"$f":"SUM(D202,D193,D161,D185,D146)","v":44}]
[]
[]
[null,"Honours ('judicium') is awarded  based on the nominal number of 120 EC required for the examination; extra curricular courses do not count for this honours (but will be mentioned on your diploma)."]
[]
[null,"Extra Curricular Courses (extra above 120 ECTS)"]
[null,"Course code","Course name","EC"]
[]
[]
[]
[]
[]
[]
[]
[]
[]
[]
[null,null,"sum:",{"$f":"SUM(D218:D227)","v":0}]
[]
[null,"Total ECTS overall:",null,{"$f":"SUM(D228,D211)","v":44},"EC"]
[]
[null,"Comments:"]
[]
[]
[]
[]
[]
[]
["#scheidingswoordmeteenhashtag"]
["2017"]
[null,"Request for approval Master's Programme Mathematics - Research: Applied Stochastics (Cohort 2017)"]
[null,"Use this form to submit your Master's programme for approval by the Examining Board"]
[]
[null,"Please complete the form and send via e-mail to: fnwi.examcies@science.ru.nl"]
[]
[null,"Student name:"]
[null,"Student number:"]
[null,"Starting date master:"]
[null,"E-mail:"]
[null,"Phone number:"]
[]
[]
[]
[null,"Mathematical Major (at least 30 EC)",null,null,"Replaced by: (Select \"Other Course\" in the left column)"]
[null,"Course code","Course name","EC","Course code","Course name","EC"]
[null,{"$f":"VLOOKUP(C256,AS1_lijst,2,0)","v":""},"Choose compulsory course…",{"$f":"VLOOKUP(C256,AS1_lijst,3,0)","v":""}]
[null,{"$f":"VLOOKUP(C257,AS2_lijst,2,0)","v":""},"Choose compulsory course…",{"$f":"VLOOKUP(C257,AS2_lijst,3,0)","v":""}]
[null,"NWI-WB115B","Master Seminar",3]
[null,{"$f":"VLOOKUP(C259,AS_Math_lijst,2,0)","v":""},"Please select your math courses here",{"$f":"VLOOKUP(C259,AS_Math_lijst,3,0)","v":""}]
[null,"","Please select your math courses here",""]
[null,"","Please select your math courses here",""]
[null,"","Please select your math courses here",""]
[null,"","Please select your math courses here",""]
[null,"","Please select your math courses here",""]
[null,null,"sum:",{"$f":"SUMIF(G256:G264,\"\",D256:D264)+SUM(G256:G264)","v":3}]
[]
[null,{"$f":"CONCATENATE(\"Mathematical Electives (at least \",MAX(MIN(46-D265,16),10),\" EC)\")","v":"Mathematical Electives (at least 16 EC)"},null,null,"Replaced by: (Select \"Other Course\" in the left column)"]
[null,"Course code","Course name","EC","Course code","Course name","EC"]
[null,{"$f":"VLOOKUP(C269,All_Math_lijst,2,0)","v":""},"Please select your math courses here",{"$f":"VLOOKUP(C269,All_Math_lijst,3,0)","v":""}]
[null,"","Please select your math courses here",""]
[null,"","Please select your math courses here",""]
[null,"","Please select your math courses here",""]
[null,"","Please select your math courses here",""]
[null,"","Please select your math courses here",""]
[null,"","Please select your math courses here",""]
[null,"","Please select your math courses here",""]
[null,"","Please select your math courses here",""]
[null,"","Please select your math courses here",""]
[null,"","Please select your math courses here",""]
[null,null,"sum:",{"$f":"SUMIF(G269:G279,\"\",D269:D279)+SUM(G269:G279)","v":0}]
[]
[]
[null,{"$f":"CONCATENATE(\"Minor (at least \",MAX(MIN(71-D265-D280,24),12),\" EC, not necessarily Mathematical courses)  \")","v":"Minor (at least 24 EC, not necessarily Mathematical courses)  "}]
[null,"Mathematical courses:",null,null,"Replaced by: (Select \"Other Course\" in the left column)"]
[null,{"$f":"VLOOKUP(C285,All_Math_lijst,2,0)","v":""},"Please select your math courses here",{"$f":"VLOOKUP(C285,All_Math_lijst,3,0)","v":""}]
[null,"","Please select your math courses here",""]
[null,"","Please select your math courses here",""]
[null,"","Please select your math courses here",""]
[null,"","Please select your math courses here",""]
[null,"","Please select your math courses here",""]
[null,"","Please select your math courses here",""]
[null,"","Please select your math courses here",""]
[null,"","Please select your math courses here",""]
[null,"Other Master's courses:",null,null," Please provide a link to the prospectus for non-math courses"]
[null,"Course code","Course name","EC","Prospectus Link"]
[]
[]
[]
[]
[]
[]
[]
[]
[null,null,"sum:",{"$f":"SUMIFS(D285:D293, G285:G293, \"\",E285:E293,\"\",F285:F293,\"\")+SUM(G285:G293)+SUM(D296:D303)","v":0}]
[]
[null,"Free Electives (minimum 0  - 6 EC)",null,null," Please provide a link to the prospectus for non-math courses"]
[null,"Course code","Course name","EC","Prospectus Link"]
[]
[]
[]
[]
[null,null,"sum:",{"$f":"SUM(D308:D311)","v":0}]
[]
[]
[]
[null,"Master Thesis + Philosophy + Professional Preparation (44 EC)",null,null,"Replaced by:"]
[null,"Course code","Course name","EC","Course code","Course name","EC"]
[null,"NWI-WM052B","Master Thesis Project ",40]
[null,"NWI-NM019B","Professional Preparation",1]
[null,{"$f":"VLOOKUP(C320,filo_lijst,2,0)","v":""},"Choose your philosophical course here",{"$f":"VLOOKUP(C320,filo_lijst,3,0)","v":""}]
[null,null,"sum:",{"$f":"SUMIF(G318:G320,\"\",D318:D320)+SUM(G318:G320)","v":41}]
[]
[null,null,"Master Math needed (EC)",12]
[null,null,"MasterMath courses (EC)",{"$f":"SUMIF(C256:C311,\"*(MM)*\",D256:D311)","v":0}]
[null,null,"Minimum MasterMath OK?",{"$f":"IF(D324>D323-1,\"YES\",\"NO\")","v":"NO"}]
[null,null,"Maximum 3rd year bachelor Math (EC)",12]
[null,null,"3rd year bachelor Math. courses (EC)",{"$f":"SUMIF(C256:C311,\"*3rd year*\",D256:D311)","v":0}]
[null,null,"Maximum 3rd year bachelor Math OK?",{"$f":"IF(D327<=D326,\"YES\",\"NO\")","v":"YES"}]
[]
[null,null,"Total ECTS (120)",{"$f":"SUM(D321,D312,D280,D304,D265)","v":44}]
[]
[]
[null,"Honours ('judicium') is awarded  based on the nominal number of 120 EC required for the examination; extra curricular courses do not count for this honours (but will be mentioned on your diploma)."]
[]
[null,"Extra Curricular Courses (extra above 120 ECTS)"]
[null,"Course code","Course name","EC"]
[]
[]
[]
[]
[]
[]
[]
[]
[]
[]
[null,null,"sum:",{"$f":"SUM(D337:D346)","v":0}]
[]
[null,"Total ECTS overall:",null,{"$f":"SUM(D347,D330)","v":44},"EC"]
[]
[null,"Comments:"]
[]
[]
[]
[]
[]
[]
["#scheidingswoordmeteenhashtag"]
["2018"]
[null,"Request for approval Master's Programme Mathematics - Research: Applied Stochastics (Cohort 2018)"]
[null,"Use this form to submit your Master's programme for approval by the Examining Board"]
[]
[null,"Please complete the form and send via e-mail to: fnwi.examcies@science.ru.nl"]
[]
[null,"Student name:"]
[null,"Student number:"]
[null,"Starting date master:"]
[null,"E-mail:"]
[null,"Phone number:"]
[]
[]
[]
[null,"Mathematical Major (at least 30 EC)",null,null,"Replaced by: (Select \"Other Course\" in the left column)"]
[null,"Course code","Course name","EC","Course code","Course name","EC"]
[null,{"$f":"VLOOKUP(C375,AS1_Lijst_2018,2,0)","v":""},"Choose compulsory course…",{"$f":"VLOOKUP(C375,AS1_Lijst_2018,3,0)","v":""}]
[null,{"$f":"VLOOKUP(C376,AS2_Lijst_2018,2,0)","v":""},"Choose compulsory course…",{"$f":"VLOOKUP(C376,AS2_Lijst_2018,3,0)","v":""}]
[null,"NWI-WB115C","Master Seminar",6]
[null,{"$f":"VLOOKUP(C378,AS_Math_lijst,2,0)","v":""},"Please select your math courses here",{"$f":"VLOOKUP(C378,AS_Math_lijst,3,0)","v":""}]
[null,"","Please select your math courses here",""]
[null,"","Please select your math courses here",""]
[null,"","Please select your math courses here",""]
[null,"","Please select your math courses here",""]
[null,"","Please select your math courses here",""]
[null,null,"sum:",{"$f":"SUMIF(G375:G383,\"\",D375:D383)+SUM(G375:G383)","v":6}]
[]
[null,{"$f":"CONCATENATE(\"Mathematical Electives (at least \",MAX(MIN(46-D384,16),10),\" EC)\")","v":"Mathematical Electives (at least 16 EC)"},null,null,"Replaced by: (Select \"Other Course\" in the left column)"]
[null,"Course code","Course name","EC","Course code","Course name","EC"]
[null,{"$f":"VLOOKUP(C388,All_Math_lijst,2,0)","v":""},"Please select your math courses here",{"$f":"VLOOKUP(C388,All_Math_lijst,3,0)","v":""}]
[null,"","Please select your math courses here",""]
[null,"","Please select your math courses here",""]
[null,"","Please select your math courses here",""]
[null,"","Please select your math courses here",""]
[null,"","Please select your math courses here",""]
[null,"","Please select your math courses here",""]
[null,"","Please select your math courses here",""]
[null,"","Please select your math courses here",""]
[null,"","Please select your math courses here",""]
[null,"","Please select your math courses here",""]
[null,null,"sum:",{"$f":"SUMIF(G388:G398,\"\",D388:D398)+SUM(G388:G398)","v":0}]
[]
[]
[null,{"$f":"CONCATENATE(\"Minor (at least \",MAX(MIN(71-D384-D399,24),12),\" EC, not necessarily Mathematical courses)  \")","v":"Minor (at least 24 EC, not necessarily Mathematical courses)  "}]
[null,"Mathematical courses:",null,null,"Replaced by: (Select \"Other Course\" in the left column)"]
[null,{"$f":"VLOOKUP(C404,All_Math_lijst,2,0)","v":""},"Please select your math courses here",{"$f":"VLOOKUP(C404,All_Math_lijst,3,0)","v":""}]
[null,"","Please select your math courses here",""]
[null,"","Please select your math courses here",""]
[null,"","Please select your math courses here",""]
[null,"","Please select your math courses here",""]
[null,"","Please select your math courses here",""]
[null,"","Please select your math courses here",""]
[null,"","Please select your math courses here",""]
[null,"","Please select your math courses here",""]
[null,"Other Master's courses:",null,null," Please provide a link to the prospectus for non-math courses"]
[null,"Course code","Course name","EC","Prospectus Link"]
[]
[]
[]
[]
[]
[]
[]
[]
[null,null,"sum:",{"$f":"SUMIFS(D404:D412, G404:G412, \"\",E404:E412,\"\",F404:F412,\"\")+SUM(G404:G412)+SUM(D415:D422)","v":0}]
[]
[null,"Free Electives (minimum 0  - 6 EC)",null,null," Please provide a link to the prospectus for non-math courses"]
[null,"Course code","Course name","EC","Prospectus Link"]
[]
[]
[]
[]
[null,null,"sum:",{"$f":"SUM(D427:D430)","v":0}]
[]
[]
[]
[null,"Master Thesis + Philosophy + Professional Preparation (44 EC)",null,null,"Replaced by:"]
[null,"Course code","Course name","EC","Course code","Course name","EC"]
[null,"NWI-WM052B","Master Thesis Project ",40]
[null,"NWI-NM019B","Professional Preparation",1]
[null,{"$f":"VLOOKUP(C439,filo_lijst_2018,2,0)","v":""},"Choose your philosophical course here",{"$f":"VLOOKUP(C439,filo_lijst_2018,3,0)","v":""}]
[null,null,"sum:",{"$f":"SUMIF(G437:G439,\"\",D437:D439)+SUM(G437:G439)","v":41}]
[]
[null,null,"Master Math needed (EC)",12]
[null,null,"MasterMath courses (EC)",{"$f":"SUMIF(C375:C430,\"*(MM)*\",D375:D430)","v":0}]
[null,null,"Minimum MasterMath OK?",{"$f":"IF(D443>D442-1,\"YES\",\"NO\")","v":"NO"}]
[null,null,"Maximum 3rd year bachelor Math (EC)",12]
[null,null,"3rd year bachelor Math. courses (EC)",{"$f":"SUMIF(C375:C430,\"*3rd year*\",D375:D430)","v":0}]
[null,null,"Maximum 3rd year bachelor Math OK?",{"$f":"IF(D446<=D445,\"YES\",\"NO\")","v":"YES"}]
[]
[null,null,"Total ECTS (120)",{"$f":"SUM(D440,D431,D399,D423,D384)","v":47}]
[]
[]
[null,"Honours ('judicium') is awarded  based on the nominal number of 120 EC required for the examination; extra curricular courses do not count for this honours (but will be mentioned on your diploma)."]
[]
[null,"Extra Curricular Courses (extra above 120 ECTS)"]
[null,"Course code","Course name","EC"]
[]
[]
[]
[]
[]
[]
[]
[]
[]
[]
[null,null,"sum:",{"$f":"SUM(D456:D465)","v":0}]
[]
[null,"Total ECTS overall:",null,{"$f":"SUM(D466,D449)","v":47},"EC"]
[]
[null,"Comments:"]
[]
[]
[]
[]
[]
[]
["#scheidingswoordmeteenhashtag"]

{"sheet":"Math. Found. of Comp. Sci.","index":3,"n_rows":477,"n_cols":7,"rows_kept":477,"cut":false,"hidden":true,"merged":[[331,1,332,6],[355,1,355,6],[350,1,350,6],[351,1,351,6],[352,1,352,6],[353,1,353,6],[354,1,354,6],[298,4,298,6],[299,4,299,6],[300,4,300,6],[301,4,301,6],[305,4,305,6],[306,4,306,6],[307,4,307,6],[308,4,308,6],[309,4,309,6],[71,4,71,6],[72,4,72,6],[93,1,94,6],[181,4,181,6],[182,4,182,6],[176,4,176,6],[177,4,177,6],[178,4,178,6],[179,4,179,6],[180,4,180,6],[59,4,59,6],[60,4,60,6],[61,4,61,6],[62,4,62,6],[63,4,63,6],[64,4,64,6],[68,4,68,6],[69,4,69,6],[70,4,70,6],[7,2,7,6],[8,2,8,6],[9,2,9,6],[10,2,10,6],[11,2,11,6],[234,1,234,6],[235,1,235,6],[236,1,236,6],[112,1,112,6],[113,1,113,6],[114,1,114,6],[115,1,115,6],[116,1,116,6],[117,1,117,6],[129,2,129,6],[126,2,126,6],[127,2,127,6],[128,2,128,6],[125,2,125,6],[174,4,174,6],[175,4,175,6],[56,4,56,6],[57,4,57,6],[58,4,58,6],[363,2,363,6],[364,2,364,6],[365,2,365,6],[366,2,366,6],[367,2,367,6],[186,4,186,6],[187,4,187,6],[231,1,231,6],[232,1,232,6],[233,1,233,6],[188,4,188,6],[189,4,189,6],[190,4,190,6],[212,1,213,6],[244,2,244,6],[245,2,245,6],[246,2,246,6],[247,2,247,6],[248,2,248,6],[293,4,293,6],[294,4,294,6],[295,4,295,6],[296,4,296,6],[297,4,297,6],[418,4,418,6],[419,4,419,6],[420,4,420,6],[421,4,421,6],[425,4,425,6],[413,4,413,6],[414,4,414,6],[415,4,415,6],[416,4,416,6],[417,4,417,6],[475,1,475,6],[470,1,470,6],[471,1,471,6],[472,1,472,6],[473,1,473,6],[474,1,474,6],[426,4,426,6],[427,4,427,6],[428,4,428,6],[429,4,429,6],[451,1,452,6]]}
["Laat deze kolom leeg, behalve de jaartallen en de scheidingswoorden"]
["2014"]
[null,"Request for approval Master's Programme Mathematics - Research: Mathematical Foundations of Computing Science (Cohort 2014)"]
[null,"Use this form to submit your Master's programme for approval by the Examining Board"]
[]
[null,"Please complete the form and send via e-mail to: fnwi.examcies@science.ru.nl"]
[]
[null,"Student name:"]
[null,"Student number:"]
[null,"Starting date master:"]
[null,"E-mail:"]
[null,"Phone number:"]
[]
[]
[]
[null,"Mathematical Major (at least 30 EC)",null,null,"Replaced by: (Select \"Other Course\" in the left column)"]
[null,"Course code","Course name","EC","Course code","Course name","EC"]
[null,"NWI-WM069B","Computer Algebra",6]
[null,"NWI-IMC010","Type Theory and Coq",6]
[null,{"$f":"VLOOKUP(C20,MFoCs_seminar_lijst,2,0)","v":""},"Choose compulsory course…",{"$f":"VLOOKUP(C20,MFoCs_seminar_lijst,3,0)","v":""}]
[null,{"$f":"VLOOKUP(C21,MFoCs_Math_lijst,2,0)","v":""},"Please select your math courses here",{"$f":"VLOOKUP(C21,MFoCs_Math_lijst,3,0)","v":""}]
[null,"","Please select your math courses here",""]
[null,"","Please select your math courses here",""]
[null,"","Please select your math courses here",""]
[null,"","Please select your math courses here",""]
[null,"","Please select your math courses here",""]
[null,null,"sum:",{"$f":"SUMIF(G18:G26,\"\",D18:D26)+SUM(G18:G26)","v":12}]
[]
[null,{"$f":"CONCATENATE(\"Mathematical Electives (at least \",MAX(MIN(48-D27,18),10),\" EC)\")&\",  Prof.Prep.(1 EC) is allowed here.\"","v":"Mathematical Electives (at least 18 EC),  Prof.Prep.(1 EC) is allowed here."},null,null," Replaced by: (Select \"Other Course\" in the left column)"]
[null,"Course code","Course name","EC","Course code","Course name","EC"]
[null,{"$f":"VLOOKUP(C31,All_Math_lijst,2,0)","v":""},"Please select your math courses here",{"$f":"VLOOKUP(C31,All_Math_lijst,3,0)","v":""}]
[null,"","Please select your math courses here",""]
[null,"","Please select your math courses here",""]
[null,"","Please select your math courses here",""]
[null,"","Please select your math courses here",""]
[null,"","Please select your math courses here",""]
[null,"","Please select your math courses here",""]
[null,"","Please select your math courses here",""]
[null,"","Please select your math courses here",""]
[null,"","Please select your math courses here",""]
[null,"","Please select your math courses here",""]
[null,null,"sum:",{"$f":"SUMIF(G31:G41,\"\",D31:D41)+SUM(G31:G41)","v":0}]
[]
[]
[null,{"$f":"CONCATENATE(\"Minor (at least \",MAX(MIN(72-D27-D42,24),12),\" EC, not necessarily Mathematical courses)  \")","v":"Minor (at least 24 EC, not necessarily Mathematical courses)  "}]
[null,"Mathematical courses:",null,null," Replaced by: (Select \"Other Course\" in the left column)"]
[null,{"$f":"VLOOKUP(C47,All_Math_lijst,2,0)","v":""},"Please select your math courses here",{"$f":"VLOOKUP(C47,All_Math_lijst,3,0)","v":""},null,null,0]
[null,"","Please select your math courses here",""]
[null,"","Please select your math courses here",""]
[null,"","Please select your math courses here",""]
[null,"","Please select your math courses here",""]
[null,"","Please select your math courses here",""]
[null,"","Please select your math courses here",""]
[null,"","Please select your math courses here",""]
[null,"","Please select your math courses here",""]
[null,"Other Master's courses:",null,null," Please provide a link to the prospectus for non-math courses"]
[null,"Course code","Course name","EC","Prospectus Link"]
[]
[]
[]
[]
[]
[]
[]
[]
[null,null,"sum:",{"$f":"SUMIFS(D47:D55, G47:G55, \"\",E47:E55,\"\",F47:F55,\"\")+SUM(G47:G55)+SUM(D58:D65)","v":0}]
[]
[null,"Free Electives (minimum 0  - 6 EC)",null,null," Please provide a link to the prospectus for non-math courses"]
[null,"Course code","Course name","EC","Prospectus Link"]
[]
[]
[]
[]
[null,null,"sum:",{"$f":"SUM(D70:D73)","v":0}]
[]
[]
[]
[null,"Master Thesis + Philosophy + Professional Preparation (44 EC)",null,null,"Replaced by:"]
[null,"Course code","Course name","EC","Course code","Course name","EC"]
[null,"NWI-WM052B","Master Thesis Project ",40]
[null,{"$f":"VLOOKUP(C81,filo_lijst,2,0)","v":""},"Choose your philosophical course here",{"$f":"VLOOKUP(C81,filo_lijst,3,0)","v":""}]
[null,null,"sum:",{"$f":"SUMIF(G80:G81,\"\",D80:D81)+SUM(G80:G81)","v":40}]
[]
[null,null,"Master Math needed (EC)",0]
[null,null,"MasterMath courses (EC)",{"$f":"SUMIF(C18:C73,\"*(MM)*\",D18:D73)","v":0}]
[null,null,"Minimum MasterMath OK?",{"$f":"IF(D85>D84-1,\"YES\",\"NO\")","v":"YES"}]
[null,null,"Maximum 3rd year bachelor Math (EC)",18]
[null,null,"3rd year bachelor Math. courses (EC)",{"$f":"SUMIF(C18:C73,\"*3rd year*\",D18:D73)","v":0}]
[null,null,"Maximum 3rd year bachelor Math OK?",{"$f":"IF(D88<=D87,\"YES\",\"NO\")","v":"YES"}]
[]
[null,null,"Total ECTS (120)",{"$f":"SUM(D82,D74,D42,D66,D27)","v":52}]
[]
[]
[null,"Honours ('judicium') is awarded  based on the nominal number of 120 EC required for the examination; extra curricular courses do not count for this honours (but will be mentioned on your diploma)."]
[]
[null,"Extra Curricular Courses (extra above 120 ECTS)"]
[null,"Course code","Course name","EC"]
[]
[]
[]
[]
[]
[]
[]
[]
[]
[]
[null,null,"sum:",{"$f":"SUM(D98:D107)","v":0}]
[]
[null,"Total ECTS overall:",null,{"$f":"SUM(D108,D91)","v":52},"EC"]
[]
[null,"Comments:"]
[]
[]
[]
[]
[]
[]
["#scheidingswoordmeteenhashtag"]
["2015, 2016"]
[null,"Request for approval Master's Programme Mathematics - Research: Mathematical Foundations of Computing Science (Cohort 2015, 2016)"]
[null,"Use this form to submit your Master's programme for approval by the Examining Board"]
[]
[null,"Please complete the form and send via e-mail to: fnwi.examcies@science.ru.nl"]
[]
[null,"Student name:"]
[null,"Student number:"]
[null,"Starting date master:"]
[null,"E-mail:"]
[null,"Phone number:"]
[]
[]
[]
[null,"Mathematical Major (at least 30 EC, including 15 EC mandatory)",null,null,"Replaced by: (Select \"Other Course\" in the left column)"]
[null,"Course code","Course name","EC","Course code","Course name","EC"]
[null,"NWI-WM069B","Computer Algebra",6]
[null,"NWI-IMC010","Type Theory and Coq",6]
[null,{"$f":"VLOOKUP(C138,MFoCs_seminar_lijst,2,0)","v":""},"Choose compulsory course…",{"$f":"VLOOKUP(C138,MFoCs_seminar_lijst,3,0)","v":""}]
[null,{"$f":"VLOOKUP(C139,MFoCs_Math_lijst,2,0)","v":""},"Please select your math courses here",{"$f":"VLOOKUP(C139,MFoCs_Math_lijst,3,0)","v":""}]
[null,"","Please select your math courses here",""]
[null,"","Please select your math courses here",""]
[null,"","Please select your math courses here",""]
[null,"","Please select your math courses here",""]
[null,"","Please select your math courses here",""]
[null,null,"sum:",{"$f":"SUMIF(G136:G144,\"\",D136:D144)+SUM(G136:G144)","v":12}]
[]
[null,{"$f":"CONCATENATE(\"Mathematical Electives (at least \",MAX(MIN(47-D145,17),10),\" EC)\")","v":"Mathematical Electives (at least 17 EC)"},null,null,"Replaced by: (Select \"Other Course\" in the left column)"]
[null,"Course code","Course name","EC","Course code","Course name","EC"]
[null,{"$f":"VLOOKUP(C149,All_Math_lijst,2,0)","v":""},"Please select your math courses here",{"$f":"VLOOKUP(C149,All_Math_lijst,3,0)","v":""}]
[null,"","Please select your math courses here",""]
[null,"","Please select your math courses here",""]
[null,"","Please select your math courses here",""]
[null,"","Please select your math courses here",""]
[null,"","Please select your math courses here",""]
[null,"","Please select your math courses here",""]
[null,"","Please select your math courses here",""]
[null,"","Please select your math courses here",""]
[null,"","Please select your math courses here",""]
[null,"","Please select your math courses here",""]
[null,null,"sum:",{"$f":"SUMIF(G149:G159,\"\",D149:D159)+SUM(G149:G159)","v":0}]
[]
[]
[null,{"$f":"CONCATENATE(\"Minor (at least \",MAX(MIN(71-D145-D160,24),12),\" EC, not necessarily Mathematical courses)  \")","v":"Minor (at least 24 EC, not necessarily Mathematical courses)  "}]
[null,"Mathematical courses:",null,null,"Replaced by: (Select \"Other Course\" in the left column)"]
[null,{"$f":"VLOOKUP(C165,All_Math_lijst,2,0)","v":""},"Please select your math courses here",{"$f":"VLOOKUP(C165,All_Math_lijst,3,0)","v":""}]
[null,"","Please select your math courses here",""]
[null,"","Please select your math courses here",""]
[null,"","Please select your math courses here",""]
[null,"","Please select your math courses here",""]
[null,"","Please select your math courses here",""]
[null,"","Please select your math courses here",""]
[null,"","Please select your math courses here",""]
[null,"","Please select your math courses here",""]
[null,"Other Master's courses:",null,null," Please provide a link to the prospectus for non-math courses"]
[null,"Course code","Course name","EC","Prospectus Link"]
[]
[]
[]
[]
[]
[]
[]
[]
[null,null,"sum:",{"$f":"SUMIFS(D165:D173, G165:G173, \"\",E165:E173,\"\",F165:F173,\"\")+SUM(G165:G173)+SUM(D176:D183)","v":0}]
[]
[null,"Free Electives (minimum 0  - 6 EC)",null,null," Please provide a link to the prospectus for non-math courses"]
[null,"Course code","Course name","EC","Prospectus Link"]
[]
[]
[]
[]
[null,null,"sum:",{"$f":"SUM(D188:D191)","v":0}]
[]
[]
[]
[null,"Master Thesis + Philosophy + Professional Preparation (44 EC)",null,null,"Replaced by:"]
[null,"Course code","Course name","EC","Course code","Course name","EC"]
[null,"NWI-WM052B","Master Thesis Project ",40]
[null,"NWI-NM019B","Professional Preparation",1]
[null,{"$f":"VLOOKUP(C200,filo_lijst,2,0)","v":""},"Choose your philosophical course here",{"$f":"VLOOKUP(C200,filo_lijst,3,0)","v":""}]
[null,null,"sum:",{"$f":"SUMIF(G198:G200,\"\",D198:D200)+SUM(G198:G200)","v":41}]
[]
[null,null,"Master Math needed (EC)",0]
[null,null,"MasterMath courses (EC)",{"$f":"SUMIF(C136:C191,\"*(MM)*\",D136:D191)","v":0}]
[null,null,"Minimum MasterMath OK?",{"$f":"IF(D204>D203-1,\"YES\",\"NO\")","v":"YES"}]
[null,null,"Maximum 3rd year bachelor Math (EC)",12]
[null,null,"3rd year bachelor Math. courses (EC)",{"$f":"SUMIF(C136:C191,\"*3rd year*\",D136:D191)","v":0}]
[null,null,"Maximum 3rd year bachelor Math OK?",{"$f":"IF(D207<=D206,\"YES\",\"NO\")","v":"YES"}]
[]
[null,null,"Total ECTS (120)",{"$f":"SUM(D201,D192,D160,D184,D145)","v":53}]
[]
[]
[null,"Honours ('judicium') is awarded  based on the nominal number of 120 EC required for the examination; extra curricular courses do not count for this honours (but will be mentioned on your diploma)."]
[]
[null,"Extra Curricular Courses (extra above 120 ECTS)"]
[null,"Course code","Course name","EC"]
[]
[]
[]
[]
[]
[]
[]
[]
[]
[]
[null,null,"sum:",{"$f":"SUM(D217:D226)","v":0}]
[]
[null,"Total ECTS overall:",null,{"$f":"SUM(D227,D210)","v":53},"EC"]
[]
[null,"Comments:"]
[]
[]
[]
[]
[]
[]
["#scheidingswoordmeteenhashtag"]
["2017"]
[null,"Request for approval Master's Programme Mathematics - Research: Mathematical Foundations of Computing Science (Cohort 2017)"]
[null,"Use this form to submit your Master's programme for approval by the Examining Board"]
[]
[null,"Please complete the form and send via e-mail to: fnwi.examcies@science.ru.nl"]
[]
[null,"Student name:"]
[null,"Student number:"]
[null,"Starting date master:"]
[null,"E-mail:"]
[null,"Phone number:"]
[]
[]
[]
[null,"Mathematical Major (at least 30 EC, including 15 EC mandatory)",null,null,"Replaced by: (Select \"Other Course\" in the left column)"]
[null,"Course code","Course name","EC","Course code","Course name","EC"]
[null,"NWI-WM069B","Computer Algebra",6]
[null,"NWI-IMC010","Type Theory and Coq",6]
[null,{"$f":"VLOOKUP(C257,MFoCs_seminar_lijst,2,0)","v":""},"Choose compulsory course…",{"$f":"VLOOKUP(C257,MFoCs_seminar_lijst,3,0)","v":""}]
[null,{"$f":"VLOOKUP(C258,MFoCs_Math_lijst,2,0)","v":""},"Please select your math courses here",{"$f":"VLOOKUP(C258,MFoCs_Math_lijst,3,0)","v":""}]
[null,"","Please select your math courses here",""]
[null,"","Please select your math courses here",""]
[null,"","Please select your math courses here",""]
[null,"","Please select your math courses here",""]
[null,"","Please select your math courses here",""]
[null,null,"sum:",{"$f":"SUMIF(G255:G263,\"\",D255:D263)+SUM(G255:G263)","v":12}]
[]
[null,{"$f":"CONCATENATE(\"Mathematical Electives (at least \",MAX(MIN(46-D264,16),10),\" EC)\")","v":"Mathematical Electives (at least 16 EC)"},null,null,"Replaced by: (Select \"Other Course\" in the left column)"]
[null,"Course code","Course name","EC","Course code","Course name","EC"]
[null,{"$f":"VLOOKUP(C268,All_Math_lijst,2,0)","v":""},"Please select your math courses here",{"$f":"VLOOKUP(C268,All_Math_lijst,3,0)","v":""}]
[null,"","Please select your math courses here",""]
[null,"","Please select your math courses here",""]
[null,"","Please select your math courses here",""]
[null,"","Please select your math courses here",""]
[null,"","Please select your math courses here",""]
[null,"","Please select your math courses here",""]
[null,"","Please select your math courses here",""]
[null,"","Please select your math courses here",""]
[null,"","Please select your math courses here",""]
[null,"","Please select your math courses here",""]
[null,null,"sum:",{"$f":"SUMIF(G268:G278,\"\",D268:D278)+SUM(G268:G278)","v":0}]
[]
[]
[null,{"$f":"CONCATENATE(\"Minor (at least \",MAX(MIN(71-D264-D279,24),12),\" EC, not necessarily Mathematical courses)  \")","v":"Minor (at least 24 EC, not necessarily Mathematical courses)  "}]
[null,"Mathematical courses:",null,null,"Replaced by: (Select \"Other Course\" in the left column)"]
[null,{"$f":"VLOOKUP(C284,All_Math_lijst,2,0)","v":""},"Please select your math courses here",{"$f":"VLOOKUP(C284,All_Math_lijst,3,0)","v":""}]
[null,"","Please select your math courses here",""]
[null,"","Please select your math courses here",""]
[null,"","Please select your math courses here",""]
[null,"","Please select your math courses here",""]
[null,"","Please select your math courses here",""]
[null,"","Please select your math courses here",""]
[null,"","Please select your math courses here",""]
[null,"","Please select your math courses here",""]
[null,"Other Master's courses:",null,null," Please provide a link to the prospectus for non-math courses"]
[null,"Course code","Course name","EC","Prospectus Link"]
[]
[]
[]
[]
[]
[]
[]
[]
[null,null,"sum:",{"$f":"SUMIFS(D284:D292, G284:G292, \"\",E284:E292,\"\",F284:F292,\"\")+SUM(G284:G292)+SUM(D295:D302)","v":0}]
[]
[null,"Free Electives (minimum 0  - 6 EC)",null,null," Please provide a link to the prospectus for non-math courses"]
[null,"Course code","Course name","EC","Prospectus Link"]
[]
[]
[]
[]
[null,null,"sum:",{"$f":"SUM(D307:D310)","v":0}]
[]
[]
[]
[null,"Master Thesis + Philosophy + Professional Preparation (44 EC)",null,null,"Replaced by:"]
[null,"Course code","Course name","EC","Course code","Course name","EC"]
[null,"NWI-WM052B","Master Thesis Project ",40]
[null,"NWI-NM019B","Professional Preparation",1]
[null,{"$f":"VLOOKUP(C319,filo_lijst,2,0)","v":""},"Choose your philosophical course here",{"$f":"VLOOKUP(C319,filo_lijst,3,0)","v":""}]
[null,null,"sum:",{"$f":"SUMIF(G317:G319,\"\",D317:D319)+SUM(G317:G319)","v":41}]
[]
[null,null,"Master Math needed (EC)",0]
[null,null,"MasterMath courses (EC)",{"$f":"SUMIF(C255:C310,\"*(MM)*\",D255:D310)","v":0}]
[null,null,"Minimum MasterMath OK?",{"$f":"IF(D323>D322-1,\"YES\",\"NO\")","v":"YES"}]
[null,null,"Maximum 3rd year bachelor Math (EC)",12]
[null,null,"3rd year bachelor Math. courses (EC)",{"$f":"SUMIF(C255:C310,\"*3rd year*\",D255:D310)","v":0}]
[null,null,"Maximum 3rd year bachelor Math OK?",{"$f":"IF(D326<=D325,\"YES\",\"NO\")","v":"YES"}]
[]
[null,null,"Total ECTS (120)",{"$f":"SUM(D320,D311,D279,D303,D264)","v":53}]
[]
[]
[null,"Honours ('judicium') is awarded  based on the nominal number of 120 EC required for the examination; extra curricular courses do not count for this honours (but will be mentioned on your diploma)."]
[]
[null,"Extra Curricular Courses (extra above 120 ECTS)"]
[null,"Course code","Course name","EC"]
[]
[]
[]
[]
[]
[]
[]
[]
[]
[]
[null,null,"sum:",{"$f":"SUM(D336:D345)","v":0}]
[]
[null,"Total ECTS overall:",null,{"$f":"SUM(D346,D329)","v":53},"EC"]
[]
[null,"Comments:"]
[]
[]
[]
[]
[]
[]
["#scheidingswoordmeteenhashtag"]
["2018"]
[null,"Request for approval Master's Programme Mathematics - Research: Mathematical Foundations of Computing Science (Cohort 2018)"]
[null,"Use this form to submit your Master's programme for approval by the Examining Board"]
[]
[null,"Please complete the form and send via e-mail to: fnwi.examcies@science.ru.nl"]
[]
[null,"Student name:"]
[null,"Student number:"]
[null,"Starting date master:"]
[null,"E-mail:"]
[null,"Phone number:"]
[]
[]
[]
[null,"Mathematical Major (at least 30 EC, including 15 EC mandatory)",null,null,"Replaced by: (Select \"Other Course\" in the left column)"]
[null,"Course code","Course name","EC","Course code","Course name","EC"]
[null,"NWI-WM069B","Computer Algebra",6]
[null,"NWI-IMC010","Type Theory and Coq",6]
[null,"NWI-WM115B","Master Seminar",3]
[null,"NWI-IMC049","MFoCS Seminar",3]
[null,{"$f":"VLOOKUP(C378,MFoCs_Math_lijst,2,0)","v":""},"Please select your math courses here",{"$f":"VLOOKUP(C378,MFoCs_Math_lijst,3,0)","v":""}]
[null,"","Please select your math courses here",""]
[null,"","Please select your math courses here",""]
[null,"","Please select your math courses here",""]
[null,"","Please select your math courses here",""]
[null,"","Please select your math courses here",""]
[null,null,"sum:",{"$f":"SUMIF(G374:G383,\"\",D374:D383)+SUM(G374:G383)","v":18}]
[]
[null,{"$f":"CONCATENATE(\"Mathematical Electives (at least \",MAX(MIN(46-D384,16),10),\" EC)\")","v":"Mathematical Electives (at least 16 EC)"},null,null,"Replaced by: (Select \"Other Course\" in the left column)"]
[null,"Course code","Course name","EC","Course code","Course name","EC"]
[null,{"$f":"VLOOKUP(C388,All_Math_lijst,2,0)","v":""},"Please select your math courses here",{"$f":"VLOOKUP(C388,All_Math_lijst,3,0)","v":""}]
[null,"","Please select your math courses here",""]
[null,"","Please select your math courses here",""]
[null,"","Please select your math courses here",""]
[null,"","Please select your math courses here",""]
[null,"","Please select your math courses here",""]
[null,"","Please select your math courses here",""]
[null,"","Please select your math courses here",""]
[null,"","Please select your math courses here",""]
[null,"","Please select your math courses here",""]
[null,"","Please select your math courses here",""]
[null,null,"sum:",{"$f":"SUMIF(G388:G398,\"\",D388:D398)+SUM(G388:G398)","v":0}]
[]
[]
[null,{"$f":"CONCATENATE(\"Minor (at least \",MAX(MIN(71-D384-D399,24),12),\" EC, not necessarily Mathematical courses)  \")","v":"Minor (at least 24 EC, not necessarily Mathematical courses)  "}]
[null,"Mathematical courses:",null,null,"Replaced by: (Select \"Other Course\" in the left column)"]
[null,{"$f":"VLOOKUP(C404,All_Math_lijst,2,0)","v":""},"Please select your math courses here",{"$f":"VLOOKUP(C404,All_Math_lijst,3,0)","v":""}]
[null,"","Please select your math courses here",""]
[null,"","Please select your math courses here",""]
[null,"","Please select your math courses here",""]
[null,"","Please select your math courses here",""]
[null,"","Please select your math courses here",""]
[null,"","Please select your math courses here",""]
[null,"","Please select your math courses here",""]
[null,"","Please select your math courses here",""]
[null,"Other Master's courses:",null,null," Please provide a link to the prospectus for non-math courses"]
[null,"Course code","Course name","EC","Prospectus Link"]
[]
[]
[]
[]
[]
[]
[]
[]
[null,null,"sum:",{"$f":"SUMIFS(D404:D412, G404:G412, \"\",E404:E412,\"\",F404:F412,\"\")+SUM(G404:G412)+SUM(D415:D422)","v":0}]
[]
[null,"Free Electives (minimum 0  - 6 EC)",null,null," Please provide a link to the prospectus for non-math courses"]
[null,"Course code","Course name","EC","Prospectus Link"]
[]
[]
[]
[]
[null,null,"sum:",{"$f":"SUM(D427:D430)","v":0}]
[]
[]
[]
[null,"Master Thesis + Philosophy + Professional Preparation (44 EC)",null,null,"Replaced by:"]
[null,"Course code","Course name","EC","Course code","Course name","EC"]
[null,"NWI-WM052B","Master Thesis Project ",40]
[null,"NWI-NM019B","Professional Preparation",1]
[null,{"$f":"VLOOKUP(C439,filo_lijst_2018,2,0)","v":""},"Choose your philosophical course here",{"$f":"VLOOKUP(C439,filo_lijst_2018,3,0)","v":""}]
[null,null,"sum:",{"$f":"SUMIF(G437:G439,\"\",D437:D439)+SUM(G437:G439)","v":41}]
[]
[null,null,"Master Math needed (EC)",0]
[null,null,"MasterMath courses (EC)",{"$f":"SUMIF(C374:C430,\"*(MM)*\",D374:D430)","v":0}]
[null,null,"Minimum MasterMath OK?",{"$f":"IF(D443>D442-1,\"YES\",\"NO\")","v":"YES"}]
[null,null,"Maximum 3rd year bachelor Math (EC)",12]
[null,null,"3rd year bachelor Math. courses (EC)",{"$f":"SUMIF(C374:C430,\"*3rd year*\",D374:D430)","v":0}]
[null,null,"Maximum 3rd year bachelor Math OK?",{"$f":"IF(D446<=D445,\"YES\",\"NO\")","v":"YES"}]
[]
[null,null,"Total ECTS (120)",{"$f":"SUM(D440,D431,D399,D423,D384)","v":59}]
[]
[]
[null,"Honours ('judicium') is awarded  based on the nominal number of 120 EC required for the examination; extra curricular courses do not count for this honours (but will be mentioned on your diploma)."]
[]
[null,"Extra Curricular Courses (extra above 120 ECTS)"]
[null,"Course code","Course name","EC"]
[]
[]
[]
[]
[]
[]
[]
[]
[]
[]
[null,null,"sum:",{"$f":"SUM(D456:D465)","v":0}]
[]
[null,"Total ECTS overall:",null,{"$f":"SUM(D466,D449)","v":59},"EC"]
[]
[null,"Comments:"]
[]
[]
[]
[]
[]
[]
["#scheidingswoordmeteenhashtag"]

{"sheet":"Mathematical Physics","index":4,"n_rows":476,"n_cols":7,"rows_kept":476,"cut":false,"hidden":true,"merged":[[309,4,309,6],[331,1,332,6],[355,1,355,6],[350,1,350,6],[351,1,351,6],[352,1,352,6],[353,1,353,6],[354,1,354,6],[297,4,297,6],[298,4,298,6],[299,4,299,6],[300,4,300,6],[301,4,301,6],[305,4,305,6],[306,4,306,6],[307,4,307,6],[308,4,308,6],[244,2,244,6],[245,2,245,6],[246,2,246,6],[247,2,247,6],[248,2,248,6],[293,4,293,6],[294,4,294,6],[295,4,295,6],[296,4,296,6],[180,4,180,6],[181,4,181,6],[182,4,182,6],[212,1,213,6],[186,4,186,6],[187,4,187,6],[188,4,188,6],[189,4,189,6],[190,4,190,6],[7,2,7,6],[8,2,8,6],[9,2,9,6],[10,2,10,6],[11,2,11,6],[236,1,236,6],[115,1,115,6],[116,1,116,6],[117,1,117,6],[231,1,231,6],[232,1,232,6],[129,2,129,6],[127,2,127,6],[128,2,128,6],[177,4,177,6],[233,1,233,6],[234,1,234,6],[235,1,235,6],[175,4,175,6],[176,4,176,6],[178,4,178,6],[70,4,70,6],[71,4,71,6],[72,4,72,6],[363,2,363,6],[364,2,364,6],[365,2,365,6],[366,2,366,6],[367,2,367,6],[56,4,56,6],[57,4,57,6],[58,4,58,6],[125,2,125,6],[126,2,126,6],[112,1,112,6],[113,1,113,6],[114,1,114,6],[59,4,59,6],[60,4,60,6],[61,4,61,6],[62,4,62,6],[63,4,63,6],[64,4,64,6],[68,4,68,6],[69,4,69,6],[93,1,94,6],[174,4,174,6],[179,4,179,6],[417,4,417,6],[418,4,418,6],[419,4,419,6],[420,4,420,6],[424,4,424,6],[412,4,412,6],[413,4,413,6],[414,4,414,6],[415,4,415,6],[416,4,416,6],[474,1,474,6],[469,1,469,6],[470,1,470,6],[471,1,471,6],[472,1,472,6],[473,1,473,6],[425,4,425,6],[426,4,426,6],[427,4,427,6],[428,4,428,6],[450,1,451,6]]}
["Laat deze kolom leeg, behalve de jaartallen en de scheidingswoorden"]
["2014"]
[null,"Request for approval Master's Programme Mathematics - Research: Mathematical Physics (Cohort 2014)"]
[null,"Use this form to submit your Master's programme for approval by the Examining Board"]
[]
[null,"Please complete the form and send via e-mail to: fnwi.examcies@science.ru.nl"]
[]
[null,"Student name:"]
[null,"Student number:"]
[null,"Starting date master:"]
[null,"E-mail:"]
[null,"Phone number:"]
[]
[]
[]
[null,"Mathematical Major (at least 30 EC)",null,null,"Replaced by: (Select \"Other Course\" in the left column)"]
[null,"Course code","Course name","EC","Course code","Course name","EC"]
[null,"NWI-WM115B","Master Seminar",3]
[null,{"$f":"VLOOKUP(C19,MP1_lijst,2,0)","v":""},"Choose compulsory course..",{"$f":"VLOOKUP(C19,MP1_lijst,3,0)","v":""}]
[null,{"$f":"VLOOKUP(C20,MP2_lijst,2,0)","v":""},"Choose compulsory course..",{"$f":"VLOOKUP(C20,MP2_lijst,3,0)","v":""}]
[null,{"$f":"VLOOKUP(C21,MP_Math_lijst,2,0)","v":""},"Please select your math courses here",{"$f":"VLOOKUP(C21,MP_Math_lijst,3,0)","v":""}]
[null,{"$f":"VLOOKUP(C22,MP_Math_lijst,2,0)","v":""},"Please select your math courses here",""]
[null,"","Please select your math courses here",""]
[null,"","Please select your math courses here",""]
[null,"","Please select your math courses here",""]
[null,"","Please select your math courses here",""]
[null,null,"sum:",{"$f":"SUMIF(G18:G26,\"\",D18:D26)+SUM(G18:G26)","v":3}]
[]
[null,{"$f":"CONCATENATE(\"Mathematical Electives (at least \",MAX(MIN(48-D27,18),10),\" EC)\")&\",  Prof.Prep.(1 EC) is allowed here.\"","v":"Mathematical Electives (at least 18 EC),  Prof.Prep.(1 EC) is allowed here."},null,null," Replaced by: (Select \"Other Course\" in the left column)"]
[null,"Course code","Course name","EC","Course code","Course name","EC"]
[null,{"$f":"VLOOKUP(C31,All_Math_lijst,2,0)","v":""},"Please select your math courses here",{"$f":"VLOOKUP(C31,All_Math_lijst,3,0)","v":""}]
[null,"","Please select your math courses here",""]
[null,"","Please select your math courses here",""]
[null,"","Please select your math courses here",""]
[null,"","Please select your math courses here",""]
[null,"","Please select your math courses here",""]
[null,"","Please select your math courses here",""]
[null,"","Please select your math courses here",""]
[null,"","Please select your math courses here",""]
[null,"","Please select your math courses here",""]
[null,"","Please select your math courses here",""]
[null,null,"sum:",{"$f":"SUMIF(G31:G41,\"\",D31:D41)+SUM(G31:G41)","v":0}]
[]
[]
[null,{"$f":"CONCATENATE(\"Minor (at least \",MAX(MIN(72-D27-D42,24),12),\" EC, not necessarily Mathematical courses)  \")","v":"Minor (at least 24 EC, not necessarily Mathematical courses)  "}]
[null,"Mathematical courses:",null,null," Replaced by: (Select \"Other Course\" in the left column)"]
[null,{"$f":"VLOOKUP(C47,All_Math_lijst,2,0)","v":""},"Please select your math courses here",{"$f":"VLOOKUP(C47,All_Math_lijst,3,0)","v":""}]
[null,"","Please select your math courses here",""]
[null,"","Please select your math courses here",""]
[null,"","Please select your math courses here",""]
[null,"","Please select your math courses here",""]
[null,"","Please select your math courses here",""]
[null,"","Please select your math courses here",""]
[null,"","Please select your math courses here",""]
[null,"","Please select your math courses here",""]
[null,"Other Master's courses:",null,null," Please provide a link to the prospectus for non-math courses"]
[null,"Course code","Course name","EC","Prospectus Link"]
[]
[]
[]
[]
[]
[]
[]
[]
[null,null,"sum:",{"$f":"SUMIFS(D47:D55, G47:G55, \"\",E47:E55,\"\",F47:F55,\"\")+SUM(G47:G55)+SUM(D58:D65)","v":0}]
[]
[null,"Free Electives (minimum 0  - 6 EC)",null,null," Please provide a link to the prospectus for non-math courses"]
[null,"Course code","Course name","EC","Prospectus Link"]
[]
[]
[]
[]
[null,null,"sum:",{"$f":"SUM(D70:D73)","v":0}]
[]
[]
[]
[null,"Master Thesis + Philosophy + Professional Preparation (44 EC)",null,null,"Replaced by:"]
[null,"Course code","Course name","EC","Course code","Course name","EC"]
[null,"NWI-WM052B","Master Thesis Project ",40]
[null,{"$f":"VLOOKUP(C81,filo_lijst,2,0)","v":""},"Choose your philosophical course here",{"$f":"VLOOKUP(C81,filo_lijst,3,0)","v":""}]
[null,null,"sum:",{"$f":"SUMIF(G80:G81,\"\",D80:D81)+SUM(G80:G81)","v":40}]
[]
[null,null,"Master Math needed (EC)",12]
[null,null,"MasterMath courses (EC)",{"$f":"SUMIF(C18:C73,\"*MM*\",D18:D73)","v":0}]
[null,null,"Minimum MasterMath OK?",{"$f":"IF(D85>D84-1,\"YES\",\"NO\")","v":"NO"}]
[null,null,"Maximum 3rd year bachelor Math (EC)",18]
[null,null,"3rd year bachelor Math. courses (EC)",{"$f":"SUMIF(C18:C73,\"*3rd year*\",D18:D73)","v":0}]
[null,null,"Maximum 3rd year bachelor Math OK?",{"$f":"IF(D88<=D87,\"YES\",\"NO\")","v":"YES"}]
[]
[null,null,"Total ECTS (120)",{"$f":"SUM(D82,D74,D42,D66,D27)","v":43}]
[]
[]
[null,"Honours ('judicium') is awarded  based on the nominal number of 120 EC required for the examination; extra curricular courses do not count for this honours (but will be mentioned on your diploma)."]
[]
[null,"Extra Curricular Courses (extra above 120 ECTS)"]
[null,"Course code","Course name","EC"]
[]
[]
[]
[]
[]
[]
[]
[]
[]
[]
[null,null,"sum:",{"$f":"SUM(D98:D107)","v":0}]
[]
[null,"Total ECTS overall:",null,{"$f":"SUM(D108,D91)","v":43},"EC"]
[]
[null,"Comments:"]
[]
[]
[]
[]
[]
[]
["#scheidingswoordmeteenhashtag"]
["2015, 2016"]
[null,"Request for approval Master's Programme Mathematics - Research: Mathematical Physics (Cohort 2015, 2016)"]
[null,"Use this form to submit your Master's programme for approval by the Examining Board"]
[]
[null,"Please complete the form and send via e-mail to: fnwi.examcies@science.ru.nl"]
[]
[null,"Student name:"]
[null,"Student number:"]
[null,"Starting date master:"]
[null,"E-mail:"]
[null,"Phone number:"]
[]
[]
[]
[null,"Mathematical Major (at least 30 EC, including 15 EC mandatory)",null,null,"Replaced by: (Select \"Other Course\" in the left column)"]
[null,"Course code","Course name","EC","Course code","Course name","EC"]
[null,"NWI-WM115B","Master Seminar",3]
[null,{"$f":"VLOOKUP(C137,MP1_lijst,2,0)","v":""},"Choose compulsory course..",{"$f":"VLOOKUP(C137,MP1_lijst,3,0)","v":""}]
[null,{"$f":"VLOOKUP(C138,MP2_lijst,2,0)","v":""},"Choose compulsory course..",{"$f":"VLOOKUP(C138,MP2_lijst,3,0)","v":""}]
[null,{"$f":"VLOOKUP(C139,MP_Math_lijst,2,0)","v":""},"Please select your math courses here",{"$f":"VLOOKUP(C139,MP_Math_lijst,3,0)","v":""}]
[null,"","Please select your math courses here",""]
[null,"","Please select your math courses here",""]
[null,"","Please select your math courses here",""]
[null,"","Please select your math courses here",""]
[null,"","Please select your math courses here",""]
[null,null,"sum:",{"$f":"SUMIF(G136:G144,\"\",D136:D144)+SUM(G136:G144)","v":3}]
[]
[null,{"$f":"CONCATENATE(\"Mathematical Electives (at least \",MAX(MIN(47-D145,17),10),\" EC)\")","v":"Mathematical Electives (at least 17 EC)"},null,null,"Replaced by: (Select \"Other Course\" in the left column)"]
[null,"Course code","Course name","EC","Course code","Course name","EC"]
[null,{"$f":"VLOOKUP(C149,All_Math_lijst,2,0)","v":""},"Please select your math courses here",{"$f":"VLOOKUP(C149,All_Math_lijst,3,0)","v":""}]
[null,"","Please select your math courses here",""]
[null,"","Please select your math courses here",""]
[null,"","Please select your math courses here",""]
[null,"","Please select your math courses here",""]
[null,"","Please select your math courses here",""]
[null,"","Please select your math courses here",""]
[null,"","Please select your math courses here",""]
[null,"","Please select your math courses here",""]
[null,"","Please select your math courses here",""]
[null,"","Please select your math courses here",""]
[null,null,"sum:",{"$f":"SUMIF(G149:G159,\"\",D149:D159)+SUM(G149:G159)","v":0}]
[]
[]
[null,{"$f":"CONCATENATE(\"Minor (at least \",MAX(MIN(71-D145-D160,24),12),\" EC, not necessarily Mathematical courses)  \")","v":"Minor (at least 24 EC, not necessarily Mathematical courses)  "}]
[null,"Mathematical courses:",null,null,"Replaced by: (Select \"Other Course\" in the left column)"]
[null,{"$f":"VLOOKUP(C165,All_Math_lijst,2,0)","v":""},"Please select your math courses here",{"$f":"VLOOKUP(C165,All_Math_lijst,3,0)","v":""}]
[null,"","Please select your math courses here",""]
[null,"","Please select your math courses here",""]
[null,"","Please select your math courses here",""]
[null,"","Please select your math courses here",""]
[null,"","Please select your math courses here",""]
[null,"","Please select your math courses here",""]
[null,"","Please select your math courses here",""]
[null,"","Please select your math courses here",""]
[null,"Other Master's courses:",null,null," Please provide a link to the prospectus for non-math courses"]
[null,"Course code","Course name","EC","Prospectus Link"]
[]
[]
[]
[]
[]
[]
[]
[]
[null,null,"sum:",{"$f":"SUMIFS(D165:D173, G165:G173, \"\",E165:E173,\"\",F165:F173,\"\")+SUM(G165:G173)+SUM(D176:D183)","v":0}]
[]
[null,"Free Electives (minimum 0  - 6 EC)",null,null," Please provide a link to the prospectus for non-math courses"]
[null,"Course code","Course name","EC","Prospectus Link"]
[]
[]
[]
[]
[null,null,"sum:",{"$f":"SUM(D188:D191)","v":0}]
[]
[]
[]
[null,"Master Thesis + Philosophy + Professional Preparation (44 EC)",null,null,"Replaced by:"]
[null,"Course code","Course name","EC","Course code","Course name","EC"]
[null,"NWI-WM052B","Master Thesis Project ",40]
[null,"NWI-NM019B","Professional Preparation",1]
[null,{"$f":"VLOOKUP(C200,filo_lijst,2,0)","v":""},"Choose your philosophical course here",{"$f":"VLOOKUP(C200,filo_lijst,3,0)","v":""}]
[null,null,"sum:",{"$f":"SUMIF(G198:G200,\"\",D198:D200)+SUM(G198:G200)","v":41}]
[]
[null,null,"Master Math needed (EC)",12]
[null,null,"MasterMath courses (EC)",{"$f":"SUMIF(C136:C191,\"*(MM)*\",D136:D191)","v":0}]
[null,null,"Minimum MasterMath OK?",{"$f":"IF(D204>D203-1,\"YES\",\"NO\")","v":"NO"}]
[null,null,"Maximum 3rd year bachelor Math (EC)",12]
[null,null,"3rd year bachelor Math. courses (EC)",{"$f":"SUMIF(C136:C191,\"*3rd year*\",D136:D191)","v":0}]
[null,null,"Maximum 3rd year bachelor Math OK?",{"$f":"IF(D207<=D206,\"YES\",\"NO\")","v":"YES"}]
[]
[null,null,"Total ECTS (120)",{"$f":"SUM(D201,D192,D160,D184,D145)","v":44}]
[]
[]
[null,"Honours ('judicium') is awarded  based on the nominal number of 120 EC required for the examination; extra curricular courses do not count for this honours (but will be mentioned on your diploma)."]
[]
[null,"Extra Curricular Courses (extra above 120 ECTS)"]
[null,"Course code","Course name","EC"]
[]
[]
[]
[]
[]
[]
[]
[]
[]
[]
[null,null,"sum:",{"$f":"SUM(D217:D226)","v":0}]
[]
[null,"Total ECTS overall:",null,{"$f":"SUM(D227,D210)","v":44},"EC"]
[]
[null,"Comments:"]
[]
[]
[]
[]
[]
[]
["#scheidingswoordmeteenhashtag"]
["2017"]
[null,"Request for approval Master's Programme Mathematics - Research: Mathematical Physics (Cohort 2017)"]
[null,"Use this form to submit your Master's programme for approval by the Examining Board"]
[]
[null,"Please complete the form and send via e-mail to: fnwi.examcies@science.ru.nl"]
[]
[null,"Student name:"]
[null,"Student number:"]
[null,"Starting date master:"]
[null,"E-mail:"]
[null,"Phone number:"]
[]
[]
[]
[null,"Mathematical Major (at least 30 EC, including 15 EC mandatory)",null,null,"Replaced by: (Select \"Other Course\" in the left column)"]
[null,"Course code","Course name","EC","Course code","Course name","EC"]
[null,"NWI-WM115B","Master Seminar",3]
[null,{"$f":"VLOOKUP(C256,MP1b_lijst,2,0)","v":""},"Choose compulsory course..",{"$f":"VLOOKUP(C256,MP1b_lijst,3,0)","v":""}]
[null,{"$f":"VLOOKUP(C257,MP2b_lijst,2,0)","v":""},"Choose compulsory course..",{"$f":"VLOOKUP(C257,MP2b_lijst,3,0)","v":""}]
[null,{"$f":"VLOOKUP(C258,MP_Math_lijst,2,0)","v":""},"Please select your math courses here",{"$f":"VLOOKUP(C258,MP_Math_lijst,3,0)","v":""}]
[null,"","Please select your math courses here",""]
[null,"","Please select your math courses here",""]
[null,"","Please select your math courses here",""]
[null,"","Please select your math courses here",""]
[null,"","Please select your math courses here",""]
[null,null,"sum:",{"$f":"SUMIF(G255:G263,\"\",D255:D263)+SUM(G255:G263)","v":3}]
[]
[null,{"$f":"CONCATENATE(\"Mathematical Electives (at least \",MAX(MIN(46-D264,16),10),\" EC)\")","v":"Mathematical Electives (at least 16 EC)"},null,null,"Replaced by: (Select \"Other Course\" in the left column)"]
[null,"Course code","Course name","EC","Course code","Course name","EC"]
[null,{"$f":"VLOOKUP(C268,All_Math_lijst,2,0)","v":""},"Please select your math courses here",{"$f":"VLOOKUP(C268,All_Math_lijst,3,0)","v":""}]
[null,"","Please select your math courses here",""]
[null,"","Please select your math courses here",""]
[null,"","Please select your math courses here",""]
[null,"","Please select your math courses here",""]
[null,"","Please select your math courses here",""]
[null,"","Please select your math courses here",""]
[null,"","Please select your math courses here",""]
[null,"","Please select your math courses here",""]
[null,"","Please select your math courses here",""]
[null,"","Please select your math courses here",""]
[null,null,"sum:",{"$f":"SUMIF(G268:G278,\"\",D268:D278)+SUM(G268:G278)","v":0}]
[]
[]
[null,{"$f":"CONCATENATE(\"Minor (at least \",MAX(MIN(71-D264-D279,24),12),\" EC, not necessarily Mathematical courses)  \")","v":"Minor (at least 24 EC, not necessarily Mathematical courses)  "}]
[null,"Mathematical courses:",null,null,"Replaced by: (Select \"Other Course\" in the left column)"]
[null,{"$f":"VLOOKUP(C284,All_Math_lijst,2,0)","v":""},"Please select your math courses here",{"$f":"VLOOKUP(C284,All_Math_lijst,3,0)","v":""}]
[null,"","Please select your math courses here",""]
[null,"","Please select your math courses here",""]
[null,"","Please select your math courses here",""]
[null,"","Please select your math courses here",""]
[null,"","Please select your math courses here",""]
[null,"","Please select your math courses here",""]
[null,"","Please select your math courses here",""]
[null,"","Please select your math courses here",""]
[null,"Other Master's courses:",null,null," Please provide a link to the prospectus for non-math courses"]
[null,"Course code","Course name","EC","Prospectus Link"]
[]
[]
[]
[]
[]
[]
[]
[]
[null,null,"sum:",{"$f":"SUMIFS(D284:D292, G284:G292, \"\",E284:E292,\"\",F284:F292,\"\")+SUM(G284:G292)+SUM(D295:D302)","v":0}]
[]
[null,"Free Electives (minimum 0  - 6 EC)",null,null," Please provide a link to the prospectus for non-math courses"]
[null,"Course code","Course name","EC","Prospectus Link"]
[]
[]
[]
[]
[null,null,"sum:",{"$f":"SUM(D307:D310)","v":0}]
[]
[]
[]
[null,"Master Thesis + Philosophy + Professional Preparation (44 EC)",null,null,"Replaced by:"]
[null,"Course code","Course name","EC","Course code","Course name","EC"]
[null,"NWI-WM052B","Master Thesis Project ",40]
[null,"NWI-NM019B","Professional Preparation",1]
[null,{"$f":"VLOOKUP(C319,filo_lijst,2,0)","v":""},"Choose your philosophical course here",{"$f":"VLOOKUP(C319,filo_lijst,3,0)","v":""}]
[null,null,"sum:",{"$f":"SUMIF(G317:G319,\"\",D317:D319)+SUM(G317:G319)","v":41}]
[]
[null,null,"Master Math needed (EC)",12]
[null,null,"MasterMath courses (EC)",{"$f":"SUMIF(C255:C310,\"*(MM)*\",D255:D310)","v":0}]
[null,null,"Minimum MasterMath OK?",{"$f":"IF(D323>D322-1,\"YES\",\"NO\")","v":"NO"}]
[null,null,"Maximum 3rd year bachelor Math (EC)",12]
[null,null,"3rd year bachelor Math. courses (EC)",{"$f":"SUMIF(C255:C310,\"*3rd year*\",D255:D310)","v":0}]
[null,null,"Maximum 3rd year bachelor Math OK?",{"$f":"IF(D326<=D325,\"YES\",\"NO\")","v":"YES"}]
[]
[null,null,"Total ECTS (120)",{"$f":"SUM(D320,D311,D279,D303,D264)","v":44}]
[]
[]
[null,"Honours ('judicium') is awarded  based on the nominal number of 120 EC required for the examination; extra curricular courses do not count for this honours (but will be mentioned on your diploma)."]
[]
[null,"Extra Curricular Courses (extra above 120 ECTS)"]
[null,"Course code","Course name","EC"]
[]
[]
[]
[]
[]
[]
[]
[]
[]
[]
[null,null,"sum:",{"$f":"SUM(D336:D345)","v":0}]
[]
[null,"Total ECTS overall:",null,{"$f":"SUM(D346,D329)","v":44},"EC"]
[]
[null,"Comments:"]
[]
[]
[]
[]
[]
[]
["#scheidingswoordmeteenhashtag"]
["2018"]
[null,"Request for approval Master's Programme Mathematics - Research: Mathematical Physics (Cohort 2018)"]
[null,"Use this form to submit your Master's programme for approval by the Examining Board"]
[]
[null,"Please complete the form and send via e-mail to: fnwi.examcies@science.ru.nl"]
[]
[null,"Student name:"]
[null,"Student number:"]
[null,"Starting date master:"]
[null,"E-mail:"]
[null,"Phone number:"]
[]
[]
[]
[null,"Mathematical Major (at least 30 EC, including 15 EC mandatory)",null,null,"Replaced by: (Select \"Other Course\" in the left column)"]
[null,"Course code","Course name","EC","Course code","Course name","EC"]
[null,"NWI-WM115C","Master Seminar",6]
[null,{"$f":"VLOOKUP(C375,MP1_lijst_2018,2,0)","v":""},"Choose compulsory course..",{"$f":"VLOOKUP(C375,MP1_lijst_2018,3,0)","v":""}]
[null,{"$f":"VLOOKUP(C376,MP2_lijst_2018,2,0)","v":""},"Choose compulsory course..",{"$f":"VLOOKUP(C376,MP2_lijst_2018,3,0)","v":""}]
[null,{"$f":"VLOOKUP(C377,MP_Math_lijst,2,0)","v":""},"Please select your math courses here",{"$f":"VLOOKUP(C377,MP_Math_lijst,3,0)","v":""}]
[null,"","Please select your math courses here",""]
[null,"","Please select your math courses here",""]
[null,"","Please select your math courses here",""]
[null,"","Please select your math courses here",""]
[null,"","Please select your math courses here",""]
[null,null,"sum:",{"$f":"SUMIF(G374:G382,\"\",D374:D382)+SUM(G374:G382)","v":6}]
[]
[null,{"$f":"CONCATENATE(\"Mathematical Electives (at least \",MAX(MIN(46-D383,16),10),\" EC)\")","v":"Mathematical Electives (at least 16 EC)"},null,null,"Replaced by: (Select \"Other Course\" in the left column)"]
[null,"Course code","Course name","EC","Course code","Course name","EC"]
[null,{"$f":"VLOOKUP(C387,All_Math_lijst,2,0)","v":""},"Please select your math courses here",{"$f":"VLOOKUP(C387,All_Math_lijst,3,0)","v":""}]
[null,"","Please select your math courses here",""]
[null,"","Please select your math courses here",""]
[null,"","Please select your math courses here",""]
[null,"","Please select your math courses here",""]
[null,"","Please select your math courses here",""]
[null,"","Please select your math courses here",""]
[null,"","Please select your math courses here",""]
[null,"","Please select your math courses here",""]
[null,"","Please select your math courses here",""]
[null,"","Please select your math courses here",""]
[null,null,"sum:",{"$f":"SUMIF(G387:G397,\"\",D387:D397)+SUM(G387:G397)","v":0}]
[]
[]
[null,{"$f":"CONCATENATE(\"Minor (at least \",MAX(MIN(71-D383-D398,24),12),\" EC, not necessarily Mathematical courses)  \")","v":"Minor (at least 24 EC, not necessarily Mathematical courses)  "}]
[null,"Mathematical courses:",null,null,"Replaced by: (Select \"Other Course\" in the left column)"]
[null,{"$f":"VLOOKUP(C403,All_Math_lijst,2,0)","v":""},"Please select your math courses here",{"$f":"VLOOKUP(C403,All_Math_lijst,3,0)","v":""}]
[null,"","Please select your math courses here",""]
[null,"","Please select your math courses here",""]
[null,"","Please select your math courses here",""]
[null,"","Please select your math courses here",""]
[null,"","Please select your math courses here",""]
[null,"","Please select your math courses here",""]
[null,"","Please select your math courses here",""]
[null,"","Please select your math courses here",""]
[null,"Other Master's courses:",null,null," Please provide a link to the prospectus for non-math courses"]
[null,"Course code","Course name","EC","Prospectus Link"]
[]
[]
[]
[]
[]
[]
[]
[]
[null,null,"sum:",{"$f":"SUMIFS(D403:D411, G403:G411, \"\",E403:E411,\"\",F403:F411,\"\")+SUM(G403:G411)+SUM(D414:D421)","v":0}]
[]
[null,"Free Electives (minimum 0  - 6 EC)",null,null," Please provide a link to the prospectus for non-math courses"]
[null,"Course code","Course name","EC","Prospectus Link"]
[]
[]
[]
[]
[null,null,"sum:",{"$f":"SUM(D426:D429)","v":0}]
[]
[]
[]
[null,"Master Thesis + Philosophy + Professional Preparation (44 EC)",null,null,"Replaced by:"]
[null,"Course code","Course name","EC","Course code","Course name","EC"]
[null,"NWI-WM052B","Master Thesis Project ",40]
[null,"NWI-NM019B","Professional Preparation",1]
[null,{"$f":"VLOOKUP(C438,filo_lijst_2018,2,0)","v":""},"Choose your philosophical course here",{"$f":"VLOOKUP(C438,filo_lijst_2018,3,0)","v":""}]
[null,null,"sum:",{"$f":"SUMIF(G436:G438,\"\",D436:D438)+SUM(G436:G438)","v":41}]
[]
[null,null,"Master Math needed (EC)",12]
[null,null,"MasterMath courses (EC)",{"$f":"SUMIF(C374:C429,\"*(MM)*\",D374:D429)","v":0}]
[null,null,"Minimum MasterMath OK?",{"$f":"IF(D442>D441-1,\"YES\",\"NO\")","v":"NO"}]
[null,null,"Maximum 3rd year bachelor Math (EC)",12]
[null,null,"3rd year bachelor Math. courses (EC)",{"$f":"SUMIF(C374:C429,\"*3rd year*\",D374:D429)","v":0}]
[null,null,"Maximum 3rd year bachelor Math OK?",{"$f":"IF(D445<=D444,\"YES\",\"NO\")","v":"YES"}]
[]
[null,null,"Total ECTS (120)",{"$f":"SUM(D439,D430,D398,D422,D383)","v":47}]
[]
[]
[null,"Honours ('judicium') is awarded  based on the nominal number of 120 EC required for the examination; extra curricular courses do not count for this honours (but will be mentioned on your diploma)."]
[]
[null,"Extra Curricular Courses (extra above 120 ECTS)"]
[null,"Course code","Course name","EC"]
[]
[]
[]
[]
[]
[]
[]
[]
[]
[]
[null,null,"sum:",{"$f":"SUM(D455:D464)","v":0}]
[]
[null,"Total ECTS overall:",null,{"$f":"SUM(D465,D448)","v":47},"EC"]
[]
[null,"Comments:"]
[]
[]
[]
[]
[]
[]
["#scheidingswoordmeteenhashtag"]

{"sheet":"SMI","index":5,"n_rows":314,"n_cols":7,"rows_kept":314,"cut":false,"hidden":true,"merged":[[98,1,98,6],[100,1,100,6],[101,1,101,6],[102,1,102,6],[103,1,103,6],[99,1,99,6],[207,1,207,6],[208,1,208,6],[104,1,104,6],[203,1,203,6],[204,1,204,6],[205,1,205,6],[206,1,206,6],[181,1,182,6],[151,4,151,6],[152,4,152,6],[153,4,153,6],[154,4,154,6],[113,2,113,6],[114,2,114,6],[115,2,115,6],[116,2,116,6],[201,1,201,6],[202,1,202,6],[8,2,8,6],[9,2,9,6],[10,2,10,6],[11,2,11,6],[12,2,12,6],[155,4,155,6],[46,4,46,6],[47,4,47,6],[48,4,48,6],[49,4,49,6],[50,4,50,6],[77,1,78,6],[117,2,117,6],[97,1,97,6],[217,2,217,6],[218,2,218,6],[219,2,219,6],[220,2,220,6],[221,2,221,6],[255,4,255,6],[256,4,256,6],[257,4,257,6],[258,4,258,6],[259,4,259,6],[309,1,309,6],[310,1,310,6],[311,1,311,6],[312,1,312,6],[285,1,286,6],[305,1,305,6],[306,1,306,6],[307,1,307,6],[308,1,308,6]]}
["Laat deze kolom leeg, behalve de jaartallen en de scheidingswoorden"]
["2014"]
[null,"Request for approval Master's Programme Mathematics - Societal: Science, management and Innovation (Cohort 2014)"]
[null,"Use this form to submit your Master's programme for approval by the Examining Board"]
[]
[]
[null,"Please complete the form and send via e-mail to: secr.fnwi.examcies@science.ru.nl"]
[]
[null,"Student name:"]
[null,"Student number:"]
[null,"Starting date master:"]
[null,"E-mail:"]
[null,"Phone number:"]
[]
[null,"Disciplinary programme Mathematics"]
[]
[null,"Please select your Major. Generate the form again if you have selected the wrong one by accident"]
[null,"Major (at least 24 EC)",null,null,"Replaced by: (Select \"Other Course\" in the left column)"]
[null,null,"Please select your major here",null,"Course list:",{"$f":"Return_Major_String(C19)","v":"No_Major"}]
[null,"Course code","Course name","EC","Course code","Course name","EC"]
[null,{"$f":"VLOOKUP(C21,INDIRECT(CONCATENATE(F19,\"_lijst\")),2,0)","v":""},"Please select your math courses here",{"$f":"VLOOKUP(C21,INDIRECT(CONCATENATE(F19,\"_lijst\")),3,0)","v":""}]
[null,{"$f":"VLOOKUP(C22,INDIRECT(CONCATENATE(F19,\"_lijst\")),2,0)","v":""},"Please select your math courses here",{"$f":"VLOOKUP(C22,INDIRECT(CONCATENATE(F19,\"_lijst\")),3,0)","v":""}]
[null,{"$f":"VLOOKUP(C23,INDIRECT(CONCATENATE(F19,\"_lijst\")),2,0)","v":""},"Please select your math courses here",{"$f":"VLOOKUP(C23,INDIRECT(CONCATENATE(F19,\"_lijst\")),3,0)","v":""}]
[null,{"$f":"VLOOKUP(C24,INDIRECT(CONCATENATE(F19,\"_lijst\")),2,0)","v":""},"Please select your math courses here",{"$f":"VLOOKUP(C24,INDIRECT(CONCATENATE(F19,\"_lijst\")),3,0)","v":""}]
[null,{"$f":"VLOOKUP(C25,INDIRECT(CONCATENATE(F19,\"_lijst\")),2,0)","v":""},"Please select your math courses here",{"$f":"VLOOKUP(C25,INDIRECT(CONCATENATE(F19,\"_lijst\")),3,0)","v":""}]
[null,{"$f":"VLOOKUP(C26,INDIRECT(CONCATENATE(F19,\"_lijst\")),2,0)","v":""},"Please select your math courses here",{"$f":"VLOOKUP(C26,INDIRECT(CONCATENATE(F19,\"_lijst\")),3,0)","v":""}]
[null,{"$f":"VLOOKUP(C27,INDIRECT(CONCATENATE(F19,\"_lijst\")),2,0)","v":""},"Please select your math courses here",{"$f":"VLOOKUP(C27,INDIRECT(CONCATENATE(F19,\"_lijst\")),3,0)","v":""}]
[null,{"$f":"VLOOKUP(C28,INDIRECT(CONCATENATE(F19,\"_lijst\")),2,0)","v":""},"Please select your math courses here",{"$f":"VLOOKUP(C28,INDIRECT(CONCATENATE(F19,\"_lijst\")),3,0)","v":""}]
[null,null,"sum:",{"$f":"SUMIF(G21:G28,\"\",D21:D28)+SUM(G21:G28)","v":0}]
[]
[null,{"$f":"CONCATENATE(\"Mathematical Electives (at least \",MIN(60-D29,30),\" EC)\")","v":"Mathematical Electives (at least 30 EC)"},null,"Prof.Prep.(1 EC) is allowed here.","Replaced by: (Select \"Other Course\" in the left column)"]
[null,"Course code","Course name","EC","Course code","Course name","EC"]
[null,{"$f":"VLOOKUP(C33,All_Math_lijst,2,0)","v":""},"Please select your math courses here",{"$f":"VLOOKUP(C33,All_Math_lijst,3,0)","v":""}]
[null,"","Please select your math courses here",""]
[null,"","Please select your math courses here",""]
[null,"","Please select your math courses here",""]
[null,"","Please select your math courses here",""]
[null,"","Please select your math courses here",""]
[null,null,"sum:",{"$f":"SUMIF(G33:G38,\"\",D33:D38)+SUM(G33:G38)","v":0}]
[]
[null,"Philosophy (3 EC)",null,null,"Replaced by:"]
[null,"Course code","Course name","EC","Course code","Course name","EC"]
[null,{"$f":"VLOOKUP(C43,filo_lijst,2,0)","v":""},"Choose your philosophical course here",{"$f":"VLOOKUP(C43,filo_lijst,3,0)","v":""}]
[null,null,"sum:",{"$f":"SUMIFS(D43:D43, G43:G43,\"\")+SUM(G43:G43)","v":0}]
[]
[null,{"$f":"CONCATENATE(\"Free Electives (at least \",MIN(63-D29-D39-D44,6),\" EC)\")","v":"Free Electives (at least 6 EC)"},null,null," Please provide a link to the prospectus for non-math courses"]
[null,"Course code","Course name","EC","Prospectus Link"]
[]
[]
[]
[]
[null,null,"sum:",{"$f":"SUM(D48:D51)","v":0}]
[]
[null,"Science, Management and Innovation (57 EC)"]
[null,"Do not forget to choose a theme. You will have to input your selection of theme courses Manually"]
[null,"SMI courses:",null,null,"Replaced by:"]
[null,"Course code","Course name","EC","Course code","Course name","EC"]
[null,"NWI-FMT003E","Innovation Management",6]
[null,"NWI-FMT024","Policy and Economics",3]
[null,"NWI-FMT006A","Entrepeneurship: Making a Business Plan",3]
[null,"NWI-FMT019","Methods in Societal Research",3]
[null,"Theme (12 EC):","Choose a standard theme",null,"Theme:","Fill in Name of non standard-theme"]
[null,{"$f":"VLOOKUP(C63,Selections!$C$193:$E$202,3,0)","v":""},"SMI theme courses here",{"$f":"VLOOKUP(C63,Selections!$C$193:$E$202,2,0)","v":""}]
[null,{"$f":"VLOOKUP(C64,Selections!$C$193:$E$202,3,0)","v":""},"SMI theme courses here",{"$f":"VLOOKUP(C64,Selections!$C$193:$E$202,2,0)","v":""}]
[null,{"$f":"VLOOKUP(C65,Selections!$C$193:$E$202,3,0)","v":""},"SMI theme courses here",{"$f":"VLOOKUP(C65,Selections!$C$193:$E$202,2,0)","v":""}]
[null,"NWI-SMISTAGE","SMI Research Project",30]
[null,null,"sum:",{"$f":"SUMIFS(D58:D66, G58:G66, \"\")+SUM(G58:G66)","v":45}]
[]
[null,null,"Master Math needed (EC)",0]
[null,null,"MasterMath courses (EC)",{"$f":"SUMIF(C2:C57,\"*(MM)*\",D2:D57)","v":0}]
[null,null,"Minimum MasterMath OK?",{"$f":"IF(D70>D69-1,\"YES\",\"NO\")","v":"YES"}]
[null,null,"Maximum 3rd year bachelor Math (EC)",18]
[null,null,"3rd year bachelor Math. courses (EC)",{"$f":"SUMIF(C2:C57,\"*3rd year*\",D2:D57)","v":0}]
[null,null,"Maximum 3rd year bachelor Math OK?",{"$f":"IF(D73<=D72,\"YES\",\"NO\")","v":"YES"}]
[]
[null,"Total ECTS (minimum of 120)",null,{"$f":"SUM(D44,D67,D39,D29,D52)","v":45},"EC"]
[]
[null,"Honours ('judicium') is awarded  based on the nominal number of 120 EC required for the examination (or more than 120 EC, i.e. courses mentioned above) ; extra curricular courses do not count for this honours (but will be mentioned on your diploma)."]
[]
[]
[null,"Extra Curricular Courses (extra above 120 ECTS)"]
[null,"Course code","Course name","EC"]
[]
[]
[]
[]
[]
[]
[]
[]
[]
[]
[null,null,"sum:",{"$f":"SUM(D83:D92)","v":0}]
[]
[null,"Total ECTS overall:",null,{"$f":"SUM(D93,D76)","v":45},"EC"]
[]
[null,"Comments:"]
[]
[]
[]
[]
[]
[]
[]
[]
["#scheidingswoordmeteenhashtag"]
["2017,2016, 2015"]
[null,"Request for approval Master's Programme Mathematics - Societal: Science, management and Innovation (Cohorts 2015, 2016 and 2017)"]
[null,"Use this form to submit your Master's programme for approval by the Examining Board"]
[]
[]
[null,"Please complete the form and send via e-mail to: secr.fnwi.examcies@science.ru.nl"]
[]
[null,"Student name:"]
[null,"Student number:"]
[null,"Starting date master:"]
[null,"E-mail:"]
[null,"Phone number:"]
[]
[null,"Disciplinary programme Mathematics"]
[]
[null,"Please select your Major. Generate the form again if you have selected the wrong one by accident"]
[null,"Major (at least 30 EC)",null,null,"Replaced by: (Select \"Other Course\" in the left column)"]
[null,null,"Please select your major here",null,"Course list:",{"$f":"Return_Major_String(C124)","v":"No_Major"}]
[null,"Course code","Course name","EC","Course code","Course name","EC"]
[null,{"$f":"VLOOKUP(C126,INDIRECT(CONCATENATE(F124,\"_lijst\")),2,0)","v":""},"Please select your math courses here",{"$f":"VLOOKUP(C126,INDIRECT(CONCATENATE(F124,\"_lijst\")),3,0)","v":""}]
[null,{"$f":"VLOOKUP(C127,INDIRECT(CONCATENATE(F124,\"_lijst\")),2,0)","v":""},"Please select your math courses here",{"$f":"VLOOKUP(C127,INDIRECT(CONCATENATE(F124,\"_lijst\")),3,0)","v":""}]
[null,{"$f":"VLOOKUP(C128,INDIRECT(CONCATENATE(F124,\"_lijst\")),2,0)","v":""},"Please select your math courses here",{"$f":"VLOOKUP(C128,INDIRECT(CONCATENATE(F124,\"_lijst\")),3,0)","v":""}]
[null,{"$f":"VLOOKUP(C129,INDIRECT(CONCATENATE(F124,\"_lijst\")),2,0)","v":""},"Please select your math courses here",{"$f":"VLOOKUP(C129,INDIRECT(CONCATENATE(F124,\"_lijst\")),3,0)","v":""}]
[null,{"$f":"VLOOKUP(C130,INDIRECT(CONCATENATE(F124,\"_lijst\")),2,0)","v":""},"Please select your math courses here",{"$f":"VLOOKUP(C130,INDIRECT(CONCATENATE(F124,\"_lijst\")),3,0)","v":""}]
[null,{"$f":"VLOOKUP(C131,INDIRECT(CONCATENATE(F124,\"_lijst\")),2,0)","v":""},"Please select your math courses here",{"$f":"VLOOKUP(C131,INDIRECT(CONCATENATE(F124,\"_lijst\")),3,0)","v":""}]
[null,{"$f":"VLOOKUP(C132,INDIRECT(CONCATENATE(F124,\"_lijst\")),2,0)","v":""},"Please select your math courses here",{"$f":"VLOOKUP(C132,INDIRECT(CONCATENATE(F124,\"_lijst\")),3,0)","v":""}]
[null,{"$f":"VLOOKUP(C133,INDIRECT(CONCATENATE(F124,\"_lijst\")),2,0)","v":""},"Please select your math courses here",{"$f":"VLOOKUP(C133,INDIRECT(CONCATENATE(F124,\"_lijst\")),3,0)","v":""}]
[null,null,"sum:",{"$f":"SUMIF(G126:G133,\"\",D126:D133)+SUM(G126:G133)","v":0}]
[null,{"$f":"CONCATENATE(\"Mathematical Electives (at least \",MIN(53-D134,23),\" EC)\")","v":"Mathematical Electives (at least 23 EC)"},null,null,"  Replaced by: (Select \"Other Course\" in the left column)"]
[null,"Course code","Course name","EC","Course code","Course name","EC"]
[null,{"$f":"VLOOKUP(C137,All_Math_lijst,2,0)","v":""},"Please select your math courses here",{"$f":"VLOOKUP(C137,All_Math_lijst,3,0)","v":""}]
[null,"","Please select your math courses here",""]
[null,"","Please select your math courses here",""]
[null,"","Please select your math courses here",""]
[null,"","Please select your math courses here",""]
[null,"","Please select your math courses here",""]
[null,null,"sum:",{"$f":"SUM(G137:G142)+SUMIFS(D137:D142,G137:G142,\"\")","v":0}]
[]
[null,"Professional Preparation (1 EC) + Philosophy (3 EC)",null,null,"Replaced by: "]
[null,"Course code","Course name","EC","Course code","Course name","EC"]
[null,{"$f":"VLOOKUP(C147,filo_lijst,2,0)","v":""},"Choose your philosophical course here",{"$f":"VLOOKUP(C147,filo_lijst,3,0)","v":""}]
[null,"NWI-NM019B","Professional Preparation",1]
[null,null,"sum:",{"$f":"SUM(G147:G148) + SUMIFS(D147:D148, G147:G148, \"\")","v":1}]
[]
[null,{"$f":"CONCATENATE(\"Free Electives (at least \",MIN(63-D134-D143-D149,6),\" EC)\")","v":"Free Electives (at least 6 EC)"},null,null," Please provide a link to the prospectus for non-math courses"]
[null,"Course code","Course name","EC","Prospectus Link"]
[]
[]
[]
[]
[null,null,"sum:",{"$f":"SUM(D153:D156)","v":0}]
[]
[null,"Science, Management and Innovation (57 EC)"]
[null,"Do not forget to choose a theme and the theme courses",null,null,"Replaced by:"]
[null,"Course code","Course name","EC","Course code","Course name","EC"]
[null,"NWI-FMT003E","Innovation Management",6]
[null,"NWI-FMT024","Policy and Economics",3]
[null,"NWI-FMT006A","Entrepeneurship: Making a Business Plan",3]
[null,"NWI-FMT019","Methods in Societal Research",3]
[null,"Theme (12 EC):","Choose a standard theme",null,"Theme:","Name of non standard-theme"]
[null,{"$f":"VLOOKUP(C167,SMI_listidv,3,0)","v":""},"SMI theme courses here",{"$f":"VLOOKUP(C167,SMI_listidv,2,0)","v":""}]
[null,{"$f":"VLOOKUP(C168,SMI_listidv,3,0)","v":""},"SMI theme courses here",{"$f":"VLOOKUP(C168,SMI_listidv,2,0)","v":""}]
[null,{"$f":"VLOOKUP(C169,SMI_listidv,3,0)","v":""},"SMI theme courses here",{"$f":"VLOOKUP(C169,SMI_listidv,2,0)","v":""}]
[null,"NWI-SMISTAGE","SMI Research Project",30]
[null,null,"sum:",{"$f":"SUMIFS(D162:D170, G162:G170, \"\")+SUM(G162:G170)","v":45}]
[]
[null,null,"Master Math needed (EC)",0]
[null,null,"MasterMath courses (EC)",{"$f":"SUMIF(C106:C161,\"*(MM)*\",D106:D161)","v":0}]
[null,null,"Minimum MasterMath OK?",{"$f":"IF(D174>D173-1,\"YES\",\"NO\")","v":"YES"}]
[null,null,"Maximum 3rd year bachelor Math (EC)",12]
[null,null,"3rd year bachelor Math. courses (EC)",{"$f":"SUMIF(C106:C161,\"*3rd year*\",D106:D161)","v":0}]
[null,null,"Maximum 3rd year bachelor Math OK?",{"$f":"IF(D177<=D176,\"YES\",\"NO\")","v":"YES"}]
[]
[null,"Total ECTS (minimum of 120)",null,{"$f":"SUM(D149,D171,D143,D134,D157)","v":46},"EC"]
[]
[null,"Honours ('judicium') is awarded  based on the nominal number of 120 EC required for the examination (or more than 120 EC, i.e. courses mentioned above) ; extra curricular courses do not count for this honours (but will be mentioned on your diploma)."]
[]
[]
[null,"Extra Curricular Courses (extra above 120 ECTS)"]
[null,"Course code","Course name","EC"]
[]
[]
[]
[]
[]
[]
[]
[]
[]
[]
[null,null,"sum:",{"$f":"SUM(D187:D196)","v":0}]
[]
[null,"Total ECTS overall:",null,{"$f":"SUM(D197,D180)","v":46},"EC"]
[]
[null,"Comments:"]
[]
[]
[]
[]
[]
[]
[]
[]
["#scheidingswoordmeteenhashtag"]
["2018"]
[null,"Request for approval Master's Programme Mathematics - Societal: Science, management and Innovation (Cohorts 2018)"]
[null,"Use this form to submit your Master's programme for approval by the Examining Board"]
[]
[]
[null,"Please complete the form and send via e-mail to: secr.fnwi.examcies@science.ru.nl"]
[]
[null,"Student name:"]
[null,"Student number:"]
[null,"Starting date master:"]
[null,"E-mail:"]
[null,"Phone number:"]
[]
[null,"Disciplinary programme Mathematics"]
[]
[null,"Please select your Major. Generate the form again if you have selected the wrong one by accident"]
[null,"Major (at least 30 EC)",null,null,"Replaced by: (Select \"Other Course\" in the left column)"]
[null,null,"Please select your major here",null,"Course list:",{"$f":"Return_Major_String(C228)","v":"No_Major"}]
[null,"Course code","Course name","EC","Course code","Course name","EC"]
[null,"NWI-WB115B","Master Seminar",3]
[null,{"$f":"VLOOKUP(C231,INDIRECT(CONCATENATE(F228,\"_lijst\")),2,0)","v":""},"Please select your math courses here",{"$f":"VLOOKUP(C231,INDIRECT(CONCATENATE(F228,\"_lijst\")),3,0)","v":""}]
[null,{"$f":"VLOOKUP(C232,INDIRECT(CONCATENATE(F228,\"_lijst\")),2,0)","v":""},"Please select your math courses here",{"$f":"VLOOKUP(C232,INDIRECT(CONCATENATE(F228,\"_lijst\")),3,0)","v":""}]
[null,{"$f":"VLOOKUP(C233,INDIRECT(CONCATENATE(F228,\"_lijst\")),2,0)","v":""},"Please select your math courses here",{"$f":"VLOOKUP(C233,INDIRECT(CONCATENATE(F228,\"_lijst\")),3,0)","v":""}]
[null,{"$f":"VLOOKUP(C234,INDIRECT(CONCATENATE(F228,\"_lijst\")),2,0)","v":""},"Please select your math courses here",{"$f":"VLOOKUP(C234,INDIRECT(CONCATENATE(F228,\"_lijst\")),3,0)","v":""}]
[null,{"$f":"VLOOKUP(C235,INDIRECT(CONCATENATE(F228,\"_lijst\")),2,0)","v":""},"Please select your math courses here",{"$f":"VLOOKUP(C235,INDIRECT(CONCATENATE(F228,\"_lijst\")),3,0)","v":""}]
[null,{"$f":"VLOOKUP(C236,INDIRECT(CONCATENATE(F228,\"_lijst\")),2,0)","v":""},"Please select your math courses here",{"$f":"VLOOKUP(C236,INDIRECT(CONCATENATE(F228,\"_lijst\")),3,0)","v":""}]
[null,{"$f":"VLOOKUP(C237,INDIRECT(CONCATENATE(F228,\"_lijst\")),2,0)","v":""},"Please select your math courses here",{"$f":"VLOOKUP(C237,INDIRECT(CONCATENATE(F228,\"_lijst\")),3,0)","v":""}]
[null,null,"sum:",{"$f":"SUMIF(G230:G237,\"\",D230:D237)+SUM(G230:G237)","v":3}]
[null,{"$f":"CONCATENATE(\"Mathematical Electives (at least \",MIN(53-D238,23),\" EC)\")","v":"Mathematical Electives (at least 23 EC)"},null,null,"  Replaced by: (Select \"Other Course\" in the left column)"]
[null,"Course code","Course name","EC","Course code","Course name","EC"]
[null,{"$f":"VLOOKUP(C241,All_Math_lijst,2,0)","v":""},"Please select your math courses here",{"$f":"VLOOKUP(C241,All_Math_lijst,3,0)","v":""}]
[null,"","Please select your math courses here",""]
[null,"","Please select your math courses here",""]
[null,"","Please select your math courses here",""]
[null,"","Please select your math courses here",""]
[null,"","Please select your math courses here",""]
[null,null,"sum:",{"$f":"SUM(G241:G246)+SUMIFS(D241:D246,G241:G246,\"\")","v":0}]
[]
[null,"Professional Preparation (1 EC) + Philosophy (3 EC)",null,null,"Replaced by: "]
[null,"Course code","Course name","EC","Course code","Course name","EC"]
[null,{"$f":"VLOOKUP(C251,filo_lijst_2018,2,0)","v":""},"Choose your philosophical course here",{"$f":"VLOOKUP(C251,filo_lijst_2018,3,0)","v":""}]
[null,"NWI-NM019B","Professional Preparation",1]
[null,null,"sum:",{"$f":"SUM(G251:G252) + SUMIFS(D251:D252, G251:G252, \"\")","v":1}]
[]
[null,{"$f":"CONCATENATE(\"Free Electives (at least \",MIN(63-D238-D247-D253,6),\" EC)\")","v":"Free Electives (at least 6 EC)"},null,null," Please provide a link to the prospectus for non-math courses"]
[null,"Course code","Course name","EC","Prospectus Link"]
[]
[]
[]
[]
[null,null,"sum:",{"$f":"SUM(D257:D260)","v":0}]
[]
[null,"Science, Management and Innovation (57 EC)"]
[null,"Do not forget to choose a theme and the theme courses",null,null,"Replaced by:"]
[null,"Course code","Course name","EC","Course code","Course name","EC"]
[null,"NWI-FMT003E","Innovation Management",6]
[null,"NWI-FMT024","Policy and Economics",3]
[null,"NWI-FMT006A","Entrepeneurship: Making a Business Plan",3]
[null,"NWI-FMT019","Methods in Societal Research: SMI",3]
[null,"Theme (12 EC):","Choose a standard theme",null,"Theme:","Name of non standard-theme"]
[null,{"$f":"VLOOKUP(C271,SMI_listidv,3,0)","v":""},"SMI theme courses here",{"$f":"VLOOKUP(C271,SMI_listidv,2,0)","v":""}]
[null,{"$f":"VLOOKUP(C272,SMI_listidv,3,0)","v":""},"SMI theme courses here",{"$f":"VLOOKUP(C272,SMI_listidv,2,0)","v":""}]
[null,{"$f":"VLOOKUP(C273,SMI_listidv,3,0)","v":""},"SMI theme courses here",{"$f":"VLOOKUP(C273,SMI_listidv,2,0)","v":""}]
[null,"NWI-SMISTAGE","SMI Research Project",30]
[null,null,"sum:",{"$f":"SUMIFS(D266:D274, G266:G274, \"\")+SUM(G266:G274)","v":45}]
[]
[null,null,"Master Math needed (EC)",0]
[null,null,"MasterMath courses (EC)",{"$f":"SUMIF(C210:C265,\"*(MM)*\",D210:D265)","v":0}]
[null,null,"Minimum MasterMath OK?",{"$f":"IF(D278>D277-1,\"YES\",\"NO\")","v":"YES"}]
[null,null,"Maximum 3rd year bachelor Math (EC)",12]
[null,null,"3rd year bachelor Math. courses (EC)",{"$f":"SUMIF(C210:C265,\"*3rd year*\",D210:D265)","v":0}]
[null,null,"Maximum 3rd year bachelor Math OK?",{"$f":"IF(D281<=D280,\"YES\",\"NO\")","v":"YES"}]
[]
[null,"Total ECTS (minimum of 120)",null,{"$f":"SUM(D253,D275,D247,D238,D261)","v":49},"EC"]
[]
[null,"Honours ('judicium') is awarded  based on the nominal number of 120 EC required for the examination (or more than 120 EC, i.e. courses mentioned above) ; extra curricular courses do not count for this honours (but will be mentioned on your diploma)."]
[]
[]
[null,"Extra Curricular Courses (extra above 120 ECTS)"]
[null,"Course code","Course name","EC"]
[]
[]
[]
[]
[]
[]
[]
[]
[]
[]
[null,null,"sum:",{"$f":"SUM(D291:D300)","v":0}]
[]
[null,"Total ECTS overall:",null,{"$f":"SUM(D301,D284)","v":49},"EC"]
[]
[null,"Comments:"]
[]
[]
[]
[]
[]
[]
[]
[]
["#scheidingswoordmeteenhashtag"]

{"sheet":"SIS","index":6,"n_rows":311,"n_cols":7,"rows_kept":311,"cut":false,"hidden":true,"merged":[[12,2,12,6],[8,2,8,6],[9,2,9,6],[10,2,10,6],[11,2,11,6],[78,1,79,6],[62,1,62,6],[63,2,63,6],[64,2,64,6],[65,2,65,6],[66,2,66,6],[67,2,67,6],[98,1,98,6],[99,1,99,6],[100,1,100,6],[101,1,101,6],[102,1,102,6],[103,1,103,6],[181,1,182,6],[165,1,165,6],[166,2,166,6],[167,2,167,6],[168,2,168,6],[169,2,169,6],[170,2,170,6],[206,1,206,6],[112,2,112,6],[113,2,113,6],[114,2,114,6],[115,2,115,6],[116,2,116,6],[201,1,201,6],[202,1,202,6],[203,1,203,6],[204,1,204,6],[205,1,205,6],[215,2,215,6],[216,2,216,6],[217,2,217,6],[218,2,218,6],[219,2,219,6],[268,1,268,6],[269,2,269,6],[270,2,270,6],[271,2,271,6],[272,2,272,6],[307,1,307,6],[308,1,308,6],[309,1,309,6],[273,2,273,6],[284,1,285,6],[304,1,304,6],[305,1,305,6],[306,1,306,6]]}
["Laat deze kolom leeg, behalve de jaartallen en de scheidingswoorden"]
["2014"]
[null,"Request for approval Master's Programme Mathematics - Societal: Science in Society (Cohort 2014)"]
[null,"Use this form to submit your Master's programme for approval by the Examining Board"]
[]
[]
[null,"Please complete the form and send via e-mail to: secr.fnwi.examcies@science.ru.nl"]
[]
[null,"Student name:"]
[null,"Student number:"]
[null,"Starting date master:"]
[null,"E-mail:"]
[null,"Phone number:"]
[]
[null,"Disciplinary programme Mathematics"]
[]
[null,"Please select your Major. Generate the form again if you have selected the wrong one by accident"]
[null,"Major (at least 24 EC)",null,null,"Replaced by: (Select \"Other Course\" in the left column)"]
[null,null,"Please select your major here",null,"Course list:",{"$f":"Return_Major_String(C19)","v":"No_Major"}]
[null,"Course code","Course name","EC","Course code","Course name","EC"]
[null,{"$f":"VLOOKUP(C21,INDIRECT(CONCATENATE(F19,\"_lijst\")),2,0)","v":""},"Please select your math courses here",{"$f":"VLOOKUP(C21,INDIRECT(CONCATENATE(F19,\"_lijst\")),3,0)","v":""}]
[null,{"$f":"VLOOKUP(C22,INDIRECT(CONCATENATE(F19,\"_lijst\")),2,0)","v":""},"Please select your math courses here",{"$f":"VLOOKUP(C22,INDIRECT(CONCATENATE(F19,\"_lijst\")),3,0)","v":""}]
[null,{"$f":"VLOOKUP(C23,INDIRECT(CONCATENATE(F19,\"_lijst\")),2,0)","v":""},"Please select your math courses here",{"$f":"VLOOKUP(C23,INDIRECT(CONCATENATE(F19,\"_lijst\")),3,0)","v":""}]
[null,{"$f":"VLOOKUP(C24,INDIRECT(CONCATENATE(F19,\"_lijst\")),2,0)","v":""},"Please select your math courses here",{"$f":"VLOOKUP(C24,INDIRECT(CONCATENATE(F19,\"_lijst\")),3,0)","v":""}]
[null,{"$f":"VLOOKUP(C25,INDIRECT(CONCATENATE(F19,\"_lijst\")),2,0)","v":""},"Please select your math courses here",{"$f":"VLOOKUP(C25,INDIRECT(CONCATENATE(F19,\"_lijst\")),3,0)","v":""}]
[null,{"$f":"VLOOKUP(C26,INDIRECT(CONCATENATE(F19,\"_lijst\")),2,0)","v":""},"Please select your math courses here",{"$f":"VLOOKUP(C26,INDIRECT(CONCATENATE(F19,\"_lijst\")),3,0)","v":""}]
[null,{"$f":"VLOOKUP(C27,INDIRECT(CONCATENATE(F19,\"_lijst\")),2,0)","v":""},"Please select your math courses here",{"$f":"VLOOKUP(C27,INDIRECT(CONCATENATE(F19,\"_lijst\")),3,0)","v":""}]
[null,{"$f":"VLOOKUP(C28,INDIRECT(CONCATENATE(F19,\"_lijst\")),2,0)","v":""},"Please select your math courses here",{"$f":"VLOOKUP(C28,INDIRECT(CONCATENATE(F19,\"_lijst\")),3,0)","v":""}]
[null,null,"sum:",{"$f":"SUMIF(G21:G28,\"\",D21:D28)+SUM(G21:G28)","v":0}]
[null,{"$f":"CONCATENATE(\"Mathematical Electives (at least \",MIN(60-D29,30),\" EC)\")","v":"Mathematical Electives (at least 30 EC)"},null,"Prof.Prep.(1 EC) is allowed here.","Replaced by: (Select \"Other Course\" in the left column)"]
[null,"Course code","Course name","EC","Course code","Course name","EC"]
[null,{"$f":"VLOOKUP(C32,All_Math_lijst,2,0)","v":""},"Please select your math courses here",{"$f":"VLOOKUP(C32,All_Math_lijst,3,0)","v":""}]
[null,"","Please select your math courses here",""]
[null,"","Please select your math courses here",""]
[null,"","Please select your math courses here",""]
[null,"","Please select your math courses here",""]
[null,"","Please select your math courses here",""]
[null,null,"sum:",{"$f":"SUMIF(G32:G37,\"\",D32:D37)+SUM(G32:G37)","v":0}]
[]
[null,"Philosophy (3 EC) + Free Electives (6 EC)",null,null,"Replaced by:"]
[null,"Course code","Course name","EC","Course code","Course name","EC"]
[null,{"$f":"VLOOKUP(C42,filo_lijst,2,0)","v":""},"Choose your philosophical course here",{"$f":"VLOOKUP(C42,filo_lijst,3,0)","v":""}]
[]
[]
[]
[null,null,"sum:",{"$f":"SUMIF(G42:G45,\"\",D42:D45)+SUM(G42:G45)","v":0}]
[]
[null,"Science in Society (57 ec)"]
[null,"SIS courses:",null,null,"Replaced by:"]
[null,"Course code","Course name","EC","Course code","Course name","EC"]
[null,"NWI-FC002B","Science & Societal interaction",3]
[null,"NWI-FC003B","Risk Communication",3]
[null,"NWI-FC0010C","Framing Knowledge",3]
[null,"NWI-FC0011C","Knowledge Society",3]
[null,"NWI-FC0013C","Science and Media",3]
[null,"NWI-FC0043B","Science and Public Policy",3]
[null,"NWI-FC0044B","Methods in Societal Research: SIS",3]
[null,null,"SIS electives here"]
[null,null,"SIS electives here"]
[null,"NWI-SISSTAGE","SIS Research Project",30]
[null,null,"sum:",{"$f":"SUMIFS(D51:D60, G51:G60, \"\")+SUM(G51:G60)","v":51}]
[]
[null,"Information about the SIS Research Project"]
[null,"Title:"]
[null,"First supervisor:"]
[null,"Department:"]
[null,"Second supervisor:"]
[null,"Department:"]
[]
[null,null,"Master Math needed (EC)",0]
[null,null,"MasterMath courses (EC)",{"$f":"SUMIF(C3:C58,\"*(MM)*\",D3:D58)","v":0}]
[null,null,"Minimum MasterMath OK?",{"$f":"IF(D71>D70-1,\"YES\",\"NO\")","v":"YES"}]
[null,null,"Maximum 3rd year bachelor Math (EC)",18]
[null,null,"3rd year bachelor Math. courses (EC)",{"$f":"SUMIF(C3:C58,\"*3rd year*\",D3:D58)","v":0}]
[null,null,"Maximum 3rd year bachelor Math OK?",{"$f":"IF(D74<=D73,\"YES\",\"NO\")","v":"YES"}]
[]
[null,"Total ECTS (minimum of 120)",null,{"$f":"SUM(D61,D46,D38,D29)","v":51},"EC"]
[]
[null,"Honours ('judicium') is awarded  based on the nominal number of 120 EC required for the examination; extra curricular courses do not count for this honours (but will be mentioned on your diploma)."]
[]
[]
[null,"Extra Curricular Courses (extra above 120 ECTS)"]
[null,"Course code","Course name","EC"]
[]
[]
[]
[]
[]
[]
[]
[]
[]
[]
[null,null,"sum:",{"$f":"SUM(D84:D93)","v":0}]
[]
[null,"Total ECTS overall:",null,{"$f":"D94+D77","v":51},"EC"]
[]
[null,"Comments:"]
[]
[]
[]
[]
[]
[]
["#scheidingswoordmeteenhashtag"]
["2017,2016,2015"]
[null,"Request for approval Master's Programme Mathematics - Societal: Science in Society (Cohorts 2015, 2016 and 2017)"]
[null,"Use this form to submit your Master's programme for approval by the Examining Board"]
[]
[]
[null,"Please complete the form and send via e-mail to: fnwi.examcies@science.ru.nl"]
[]
[null,"Student name:"]
[null,"Student number:"]
[null,"Starting date master:"]
[null,"E-mail:"]
[null,"Phone number:"]
[]
[null,"Disciplinary programme Mathematics"]
[]
[null,"Please select your Major. Generate the form again if you have selected the wrong one by accident"]
[null,"Major (30 EC)",null,null,"Other course: (Select \"Other Course\" in the left column)"]
[null,null,"Please select your major here",null,"Course list:",{"$f":"Return_Major_String(C123)","v":"No_Major"}]
[null,"Course code","Course name","EC","Course code","Course name","EC"]
[null,{"$f":"VLOOKUP(C125,INDIRECT(CONCATENATE(F123,\"_lijst\")),2,0)","v":""},"Please select your math courses here",{"$f":"VLOOKUP(C125,INDIRECT(CONCATENATE(F123,\"_lijst\")),3,0)","v":""}]
[null,{"$f":"VLOOKUP(C126,INDIRECT(CONCATENATE(F123,\"_lijst\")),2,0)","v":""},"Please select your math courses here",{"$f":"VLOOKUP(C126,INDIRECT(CONCATENATE(F123,\"_lijst\")),3,0)","v":""}]
[null,{"$f":"VLOOKUP(C127,INDIRECT(CONCATENATE(F123,\"_lijst\")),2,0)","v":""},"Please select your math courses here",{"$f":"VLOOKUP(C127,INDIRECT(CONCATENATE(F123,\"_lijst\")),3,0)","v":""}]
[null,{"$f":"VLOOKUP(C128,INDIRECT(CONCATENATE(F123,\"_lijst\")),2,0)","v":""},"Please select your math courses here",{"$f":"VLOOKUP(C128,INDIRECT(CONCATENATE(F123,\"_lijst\")),3,0)","v":""}]
[null,{"$f":"VLOOKUP(C129,INDIRECT(CONCATENATE(F123,\"_lijst\")),2,0)","v":""},"Please select your math courses here",{"$f":"VLOOKUP(C129,INDIRECT(CONCATENATE(F123,\"_lijst\")),3,0)","v":""}]
[null,{"$f":"VLOOKUP(C130,INDIRECT(CONCATENATE(F123,\"_lijst\")),2,0)","v":""},"Please select your math courses here",{"$f":"VLOOKUP(C130,INDIRECT(CONCATENATE(F123,\"_lijst\")),3,0)","v":""}]
[null,{"$f":"VLOOKUP(C131,INDIRECT(CONCATENATE(F123,\"_lijst\")),2,0)","v":""},"Please select your math courses here",{"$f":"VLOOKUP(C131,INDIRECT(CONCATENATE(F123,\"_lijst\")),3,0)","v":""}]
[null,{"$f":"VLOOKUP(C132,INDIRECT(CONCATENATE(F123,\"_lijst\")),2,0)","v":""},"Please select your math courses here",{"$f":"VLOOKUP(C132,INDIRECT(CONCATENATE(F123,\"_lijst\")),3,0)","v":""}]
[null,null,"sum:",{"$f":"SUM(G125:G132)+SUMIFS(D125:D132,G125:G132,\"\")","v":0}]
[null,"Mathematical electives (23 EC)",null,null,"Other course: (Select \"Other Course\" in the left column)"]
[null,"Course code","Course name","EC","Course code","Course name","EC"]
[null,{"$f":"VLOOKUP(C136,All_Math_lijst,2,0)","v":""},"Please select your math courses here",{"$f":"VLOOKUP(C136,All_Math_lijst,3,0)","v":""}]
[null,"","Please select your math courses here",""]
[null,"","Please select your math courses here",""]
[null,"","Please select your math courses here",""]
[null,"","Please select your math courses here",""]
[null,"","Please select your math courses here",""]
[null,null,"sum:",{"$f":"SUM(G136:G141)+SUMIFS(D136:D141,G136:G141,\"\")","v":0}]
[]
[null,"Professional Preparation (1 EC)+Philosophy (3 EC) + Free Electives (6 EC)",null,null,"Replaced by:"]
[null,"Course code","Course name","EC","Course code","Course name","EC"]
[null,"NWI-NM019B","Professional Preparation",1]
[null,{"$f":"VLOOKUP(C147,filo_lijst_2018,2,0)","v":""},"Choose your philosophical course here",{"$f":"VLOOKUP(C147,filo_lijst_2018,3,0)","v":""}]
[]
[]
[null,null,"sum:",{"$f":"SUMIFS(D146:D149, G146:G149, \"\")+SUM(G146:G149)","v":1}]
[]
[null,"Science in Society (57 ec)",null,null,"Replaced by:"]
[null,"Course code","Course name","EC","Course code","Course name","EC"]
[null,"NWI-FC002B","Science & Societal interaction",3]
[null,"NWI-FC003B","Risk Communication",3]
[null,"NWI-FC0010C","Framing Knowledge",3]
[null,"NWI-FC0011C","Knowledge Society",3]
[null,"NWI-FC0013C","Science and Media",3]
[null,"NWI-FC0043B","Science and Public Policy",3]
[null,"NWI-FC0044B","Methods in Societal Research: SIS",3]
[null,null,"SIS electives here"]
[null,null,"SIS electives here"]
[null,"NWI-SISSTAGE","SIS Research Project",30]
[null,null,"sum:",{"$f":"SUMIFS(D154:D163, G154:G163, \"\")+SUM(G154:G163)","v":51}]
[]
[null,"Information about the SIS Research Project"]
[null,"Title:"]
[null,"First supervisor:"]
[null,"Department:"]
[null,"Second supervisor:"]
[null,"Department:"]
[]
[null,null,"Master Math needed (EC)",0]
[null,null,"MasterMath courses (EC)",{"$f":"SUMIF(C105:C161,\"*(MM)*\",D105:D161)","v":0}]
[null,null,"Minimum MasterMath OK?",{"$f":"IF(D174>D173-1,\"YES\",\"NO\")","v":"YES"}]
[null,null,"Maximum 3rd year bachelor Math (EC)",12]
[null,null,"3rd year bachelor Math. courses (EC)",{"$f":"SUMIF(C105:C161,\"*3rd year*\",D105:D161)","v":0}]
[null,null,"Maximum 3rd year bachelor Math OK?",{"$f":"IF(D177<=D176,\"YES\",\"NO\")","v":"YES"}]
[]
[null,"Total ECTS (minimum of 120)",null,{"$f":"SUM(D164,D150,D142,D133)","v":52},"EC"]
[]
[null,"Honours ('judicium') is awarded  based on the nominal number of 120 EC required for the examination (or more than 120 EC, i.e. courses mentioned above) ; extra curricular courses do not count for this honours (but will be mentioned on your diploma)."]
[]
[]
[null,"Extra Curricular Courses (extra above 120 ECTS)"]
[null,"Course code","Course name","EC"]
[]
[]
[]
[]
[]
[]
[]
[]
[]
[]
[null,null,"sum:",{"$f":"SUM(D187:D196)","v":0}]
[]
[null,"Total ECTS overall:",null,{"$f":"SUM(D197,D180)","v":52},"EC"]
[]
[null,"Comments:"]
[]
[]
[]
[]
[]
[]
["#scheidingswoordmeteenhashtag"]
["2018"]
[null,"Request for approval Master's Programme Mathematics - Societal: Science in Society (2018)"]
[null,"Use this form to submit your Master's programme for approval by the Examining Board"]
[]
[]
[null,"Please complete the form and send via e-mail to: fnwi.examcies@science.ru.nl"]
[]
[null,"Student name:"]
[null,"Student number:"]
[null,"Starting date master:"]
[null,"E-mail:"]
[null,"Phone number:"]
[]
[null,"Disciplinary programme Mathematics"]
[]
[null,"Please select your Major. Generate the form again if you have selected the wrong one by accident"]
[null,"Major (30 EC)",null,null,"Other course: (Select \"Other Course\" in the left column)"]
[null,null,"Please select your major here",null,"Course list:",{"$f":"Return_Major_String(C226)","v":"No_Major"}]
[null,"Course code","Course name","EC","Course code","Course name","EC"]
[null,"NWI-WB115B","Master Seminar",3]
[null,{"$f":"VLOOKUP(C229,INDIRECT(CONCATENATE(F226,\"_lijst\")),2,0)","v":""},"Please select your math courses here",{"$f":"VLOOKUP(C229,INDIRECT(CONCATENATE(F226,\"_lijst\")),3,0)","v":""}]
[null,{"$f":"VLOOKUP(C230,INDIRECT(CONCATENATE(F226,\"_lijst\")),2,0)","v":""},"Please select your math courses here",{"$f":"VLOOKUP(C230,INDIRECT(CONCATENATE(F226,\"_lijst\")),3,0)","v":""}]
[null,{"$f":"VLOOKUP(C231,INDIRECT(CONCATENATE(F226,\"_lijst\")),2,0)","v":""},"Please select your math courses here",{"$f":"VLOOKUP(C231,INDIRECT(CONCATENATE(F226,\"_lijst\")),3,0)","v":""}]
[null,{"$f":"VLOOKUP(C232,INDIRECT(CONCATENATE(F226,\"_lijst\")),2,0)","v":""},"Please select your math courses here",{"$f":"VLOOKUP(C232,INDIRECT(CONCATENATE(F226,\"_lijst\")),3,0)","v":""}]
[null,{"$f":"VLOOKUP(C233,INDIRECT(CONCATENATE(F226,\"_lijst\")),2,0)","v":""},"Please select your math courses here",{"$f":"VLOOKUP(C233,INDIRECT(CONCATENATE(F226,\"_lijst\")),3,0)","v":""}]
[null,{"$f":"VLOOKUP(C234,INDIRECT(CONCATENATE(F226,\"_lijst\")),2,0)","v":""},"Please select your math courses here",{"$f":"VLOOKUP(C234,INDIRECT(CONCATENATE(F226,\"_lijst\")),3,0)","v":""}]
[null,{"$f":"VLOOKUP(C235,INDIRECT(CONCATENATE(F226,\"_lijst\")),2,0)","v":""},"Please select your math courses here",{"$f":"VLOOKUP(C235,INDIRECT(CONCATENATE(F226,\"_lijst\")),3,0)","v":""}]
[null,null,"sum:",{"$f":"SUM(G228:G235)+SUMIFS(D228:D235,G228:G235,\"\")","v":3}]
[null,"Mathematical electives (23 EC)",null,null,"Other course: (Select \"Other Course\" in the left column)"]
[null,"Course code","Course name","EC","Course code","Course name","EC"]
[null,{"$f":"VLOOKUP(C239,All_Math_lijst,2,0)","v":""},"Please select your math courses here",{"$f":"VLOOKUP(C239,All_Math_lijst,3,0)","v":""}]
[null,"","Please select your math courses here",""]
[null,"","Please select your math courses here",""]
[null,"","Please select your math courses here",""]
[null,"","Please select your math courses here",""]
[null,"","Please select your math courses here",""]
[null,null,"sum:",{"$f":"SUM(G239:G244)+SUMIFS(D239:D244,G239:G244,\"\")","v":0}]
[]
[null,"Professional Preparation (1 EC)+Philosophy (3 EC) + Free Electives (6 EC)",null,null,"Replaced by:"]
[null,"Course code","Course name","EC","Course code","Course name","EC"]
[null,"NWI-NM019B","Professional Preparation",1]
[null,{"$f":"VLOOKUP(C250,filo_lijst,2,0)","v":""},"Choose your philosophical course here",{"$f":"VLOOKUP(C250,filo_lijst,3,0)","v":""}]
[]
[]
[null,null,"sum:",{"$f":"SUMIFS(D249:D252, G249:G252, \"\")+SUM(G249:G252)","v":1}]
[]
[null,"Science in Society (57 ec)",null,null,"Replaced by:"]
[null,"Course code","Course name","EC","Course code","Course name","EC"]
[null,"NWI-FC002B","Science & Societal interaction",3]
[null,"NWI-FC003B","Risk Communication",3]
[null,"NWI-FC0010C","Framing Knowledge",3]
[null,"NWI-FC0011C","Knowledge Society",3]
[null,"NWI-FC0013C","Science and Media",3]
[null,"NWI-FC0043B","Science and Public Policy",3]
[null,"NWI-FC0044B","Methods in Societal Research: SIS",3]
[null,null,"SIS electives here"]
[null,null,"SIS electives here"]
[null,"NWI-SISSTAGE","SIS Research Project",30]
[null,null,"sum:",{"$f":"SUMIFS(D257:D266, G257:G266, \"\")+SUM(G257:G266)","v":51}]
[]
[null,"Information about the SIS Research Project"]
[null,"Title:"]
[null,"First supervisor:"]
[null,"Department:"]
[null,"Second supervisor:"]
[null,"Department:"]
[]
[null,null,"Master Math needed (EC)",0]
[null,null,"MasterMath courses (EC)",{"$f":"SUMIF(C208:C264,\"*(MM)*\",D208:D264)","v":0}]
[null,null,"Minimum MasterMath OK?",{"$f":"IF(D277>D276-1,\"YES\",\"NO\")","v":"YES"}]
[null,null,"Maximum 3rd year bachelor Math (EC)",12]
[null,null,"3rd year bachelor Math. courses (EC)",{"$f":"SUMIF(C208:C264,\"*3rd year*\",D208:D264)","v":0}]
[null,null,"Maximum 3rd year bachelor Math OK?",{"$f":"IF(D280<=D279,\"YES\",\"NO\")","v":"YES"}]
[]
[null,"Total ECTS (minimum of 120)",null,{"$f":"SUM(D267,D253,D245,D236)","v":55},"EC"]
[]
[null,"Honours ('judicium') is awarded  based on the nominal number of 120 EC required for the examination (or more than 120 EC, i.e. courses mentioned above) ; extra curricular courses do not count for this honours (but will be mentioned on your diploma)."]
[]
[]
[null,"Extra Curricular Courses (extra above 120 ECTS)"]
[null,"Course code","Course name","EC"]
[]
[]
[]
[]
[]
[]
[]
[]
[]
[]
[null,null,"sum:",{"$f":"SUM(D290:D299)","v":0}]
[]
[null,"Total ECTS overall:",null,{"$f":"SUM(D300,D283)","v":55},"EC"]
[]
[null,"Comments:"]
[]
[]
[]
[]
[]
[]
["#scheidingswoordmeteenhashtag"]

{"sheet":"Science & Education","index":7,"n_rows":312,"n_cols":7,"rows_kept":312,"cut":false,"hidden":true,"merged":[[205,1,205,6],[206,1,206,6],[102,1,102,6],[201,1,201,6],[202,1,202,6],[203,1,203,6],[204,1,204,6],[112,2,112,6],[163,4,169,6],[8,2,8,6],[9,2,9,6],[10,2,10,6],[11,2,11,6],[12,2,12,6],[59,4,65,6],[115,2,115,6],[113,2,113,6],[114,2,114,6],[181,1,182,6],[77,1,78,6],[111,2,111,6],[97,1,97,6],[98,1,98,6],[99,1,99,6],[100,1,100,6],[101,1,101,6],[215,2,215,6],[216,2,216,6],[217,2,217,6],[218,2,218,6],[219,2,219,6],[308,1,308,6],[309,1,309,6],[310,1,310,6],[267,4,273,6],[285,1,286,6],[305,1,305,6],[306,1,306,6],[307,1,307,6]]}
["Laat deze kolom leeg, behalve de jaartallen en de scheidingswoorden"]
["2014"]
[null,"Request for approval Master's Programme Mathematics - Societal: Science and Education (Cohort 2014)"]
[null,"Use this form to submit your Master's programme for approval by the Examining Board"]
[]
[]
[null,"Please complete the form and send via e-mail to: fnwi.examcies@science.ru.nl"]
[]
[null,"Student name:"]
[null,"Student number:"]
[null,"Starting date master:"]
[null,"E-mail:"]
[null,"Phone number:"]
[]
[null,"Disciplinary programme Mathematics"]
[]
[null,"Please select your Major. Generate the form again if you have selected the wrong one by accident"]
[null,"Major (24 ec)",null,null,"Other course: (Select \"Other Course\" in the left column)"]
[null,null,"Please select your major here",null,"Course list:",{"$f":"Return_Major_String(C19)","v":"No_Major"}]
[null,"Course code","Course name","EC","Course code","Course name","EC"]
[null,{"$f":"VLOOKUP(C21,INDIRECT(CONCATENATE(F19,\"_lijst\")),2,0)","v":""},"Please select your math courses here",{"$f":"VLOOKUP(C21,INDIRECT(CONCATENATE(F19,\"_lijst\")),3,0)","v":""}]
[null,{"$f":"VLOOKUP(C22,INDIRECT(CONCATENATE(F19,\"_lijst\")),2,0)","v":""},"Please select your math courses here",{"$f":"VLOOKUP(C22,INDIRECT(CONCATENATE(F19,\"_lijst\")),3,0)","v":""}]
[null,{"$f":"VLOOKUP(C23,INDIRECT(CONCATENATE(F19,\"_lijst\")),2,0)","v":""},"Please select your math courses here",{"$f":"VLOOKUP(C23,INDIRECT(CONCATENATE(F19,\"_lijst\")),3,0)","v":""}]
[null,{"$f":"VLOOKUP(C24,INDIRECT(CONCATENATE(F19,\"_lijst\")),2,0)","v":""},"Please select your math courses here",{"$f":"VLOOKUP(C24,INDIRECT(CONCATENATE(F19,\"_lijst\")),3,0)","v":""}]
[null,{"$f":"VLOOKUP(C25,INDIRECT(CONCATENATE(F19,\"_lijst\")),2,0)","v":""},"Please select your math courses here",{"$f":"VLOOKUP(C25,INDIRECT(CONCATENATE(F19,\"_lijst\")),3,0)","v":""}]
[null,{"$f":"VLOOKUP(C26,INDIRECT(CONCATENATE(F19,\"_lijst\")),2,0)","v":""},"Please select your math courses here",{"$f":"VLOOKUP(C26,INDIRECT(CONCATENATE(F19,\"_lijst\")),3,0)","v":""}]
[null,{"$f":"VLOOKUP(C27,INDIRECT(CONCATENATE(F19,\"_lijst\")),2,0)","v":""},"Please select your math courses here",{"$f":"VLOOKUP(C27,INDIRECT(CONCATENATE(F19,\"_lijst\")),3,0)","v":""}]
[null,{"$f":"VLOOKUP(C28,INDIRECT(CONCATENATE(F19,\"_lijst\")),2,0)","v":""},"Please select your math courses here",{"$f":"VLOOKUP(C28,INDIRECT(CONCATENATE(F19,\"_lijst\")),3,0)","v":""}]
[null,null,"sum:",{"$f":"SUMIF(G21:G28,\"\",D21:D28)+SUM(G21:G28)","v":0}]
[null,"Mathematical electives (27 ec)",null,null,"Other course: (Select \"Other Course\" in the left column)"]
[null,"Course code","Course name","EC","Course code","Course name","EC"]
[null,{"$f":"VLOOKUP(C32,All_Math_lijst,2,0)","v":""},"Please select your math courses here",{"$f":"VLOOKUP(C32,All_Math_lijst,3,0)","v":""}]
[null,"","Please select your math courses here",""]
[null,"","Please select your math courses here",""]
[null,"","Please select your math courses here",""]
[null,"","Please select your math courses here",""]
[null,"","Please select your math courses here",""]
[null,null,"sum:",{"$f":"SUMIFS(D32:D37, G32:G37, \"\",E32:E37,\"\",F32:F37,\"\")+SUM(G32:G37)","v":0}]
[]
[null,"Philosophy (3 EC) + Free Electives (6 EC)",null,null,"Replaced by:"]
[null,"Course code","Course name","EC","Course code","Course name","EC"]
[null,{"$f":"VLOOKUP(C42,filo_lijst,2,0)","v":""},"Choose your philosophical course here",{"$f":"VLOOKUP(C42,filo_lijst,3,0)","v":""}]
[]
[]
[]
[null,null,"sum:",{"$f":"SUMIFS(D42:D45, G42:G45, \"\",E42:E45,\"\",F42:F45,\"\")+SUM(G42:G45)","v":0}]
[]
[null,"Science and Education (60 ec)",null,null,"Replaced by:"]
[null,"Course code","Course name","EC","Course code","Course name","EC"]
[null,null,"Series of Lectures",5]
[null,null,"Self-evaluation 1",10]
[null,null,"Supervised Internship",15]
[null,null,"Design and Research",10]
[null,null,"Self-Evauluation 2",5]
[null,null,"Inedependent Internship",15]
[null,null,"sum:",{"$f":"SUMIFS(D50:D55, G50:G55, \"\",F50:F55,\"\",E50:E55,\"\")+SUM(G50:G55)","v":60}]
[]
[null,"Additional space for replacing courses"]
[null,"Course code","Course name","EC"]
[null,null,null,null,"This space is reserved for replacing courses in case you have done the education minor in your Bachelor's Programme. In that case you may request exemptions for some parts of the Education programme of the master. You have to do other courses however to get to the required 120 EC. You may also enter any replacing courses which do not fit it earlier columns here."]
[]
[]
[]
[]
[]
[]
[null,null,null,{"$f":"SUM(D60:D66)","v":0}]
[]
[null,null,"Master Math needed (EC)",0]
[null,null,"MasterMath courses (EC)",{"$f":"SUMIF(C2:C57,\"*(MM)*\",D2:D57)","v":0}]
[null,null,"Minimum MasterMath OK?",{"$f":"IF(D70>D69-1,\"YES\",\"NO\")","v":"YES"}]
[null,null,"Maximum 3rd year bachelor Math (EC)",18]
[null,null,"3rd year bachelor Math. courses (EC)",{"$f":"SUMIF(C2:C57,\"*3rd year*\",D2:D57)","v":0}]
[null,null,"Maximum 3rd year bachelor Math OK?",{"$f":"IF(D73<=D72,\"YES\",\"NO\")","v":"YES"}]
[]
[null,"Total ECTS (minimum of 120)",null,{"$f":"SUM(D67,D56,D46,D38,D29)","v":60},"EC"]
[]
[null,"Honours ('judicium') is awarded  based on the nominal number of 120 EC required for the examination; extra curricular courses do not count for this honours (but will be mentioned on your diploma)."]
[]
[]
[null,"Extra Curricular Courses (extra above 120 ECTS)"]
[null,"Course code","Course name","EC"]
[]
[]
[]
[]
[]
[]
[]
[]
[]
[]
[null,null,"sum:",{"$f":"SUM(D83:D92)","v":0}]
[]
[null,"Total ECTS overall:",null,{"$f":"D93+D76","v":60},"EC"]
[]
[null,"Comments:"]
[]
[]
[]
[]
[]
[]
["#scheidingswoordmeteenhashtag"]
["2017,2016,2015"]
[null,"Request for approval Master's Programme Mathematics - Societal: Science and Education (Cohort 2015,  2016 and 2017)"]
[null,"Use this form to submit your Master's programme for approval by the Examining Board"]
[]
[]
[null,"Please complete the form and send via e-mail to: fnwi.examcies@science.ru.nl"]
[]
[null,"Student name:"]
[null,"Student number:"]
[null,"Starting date master:"]
[null,"E-mail:"]
[null,"Phone number:"]
[]
[null,"Disciplinary programme Mathematics"]
[]
[null,"Please select your Major. Generate the form again if you have selected the wrong one by accident"]
[null,"Major (30 EC)",null,null,"Other course: (Select \"Other Course\" in the left column)"]
[null,null,"Please select your major here",null,"Course list:",{"$f":"Return_Major_String(C122)","v":"No_Major"}]
[null,"Course code","Course name","EC","Course code","Course name","EC"]
[null,{"$f":"VLOOKUP(C124,INDIRECT(CONCATENATE(F122,\"_lijst\")),2,0)","v":""},"Please select your math courses here",{"$f":"VLOOKUP(C124,INDIRECT(CONCATENATE(F122,\"_lijst\")),3,0)","v":""}]
[null,{"$f":"VLOOKUP(C125,INDIRECT(CONCATENATE(F122,\"_lijst\")),2,0)","v":""},"Please select your math courses here",{"$f":"VLOOKUP(C125,INDIRECT(CONCATENATE(F122,\"_lijst\")),3,0)","v":""}]
[null,{"$f":"VLOOKUP(C126,INDIRECT(CONCATENATE(F122,\"_lijst\")),2,0)","v":""},"Please select your math courses here",{"$f":"VLOOKUP(C126,INDIRECT(CONCATENATE(F122,\"_lijst\")),3,0)","v":""}]
[null,{"$f":"VLOOKUP(C127,INDIRECT(CONCATENATE(F122,\"_lijst\")),2,0)","v":""},"Please select your math courses here",{"$f":"VLOOKUP(C127,INDIRECT(CONCATENATE(F122,\"_lijst\")),3,0)","v":""}]
[null,{"$f":"VLOOKUP(C128,INDIRECT(CONCATENATE(F122,\"_lijst\")),2,0)","v":""},"Please select your math courses here",{"$f":"VLOOKUP(C128,INDIRECT(CONCATENATE(F122,\"_lijst\")),3,0)","v":""}]
[null,{"$f":"VLOOKUP(C129,INDIRECT(CONCATENATE(F122,\"_lijst\")),2,0)","v":""},"Please select your math courses here",{"$f":"VLOOKUP(C129,INDIRECT(CONCATENATE(F122,\"_lijst\")),3,0)","v":""}]
[null,{"$f":"VLOOKUP(C130,INDIRECT(CONCATENATE(F122,\"_lijst\")),2,0)","v":""},"Please select your math courses here",{"$f":"VLOOKUP(C130,INDIRECT(CONCATENATE(F122,\"_lijst\")),3,0)","v":""}]
[null,{"$f":"VLOOKUP(C131,INDIRECT(CONCATENATE(F122,\"_lijst\")),2,0)","v":""},"Please select your math courses here",{"$f":"VLOOKUP(C131,INDIRECT(CONCATENATE(F122,\"_lijst\")),3,0)","v":""}]
[null,null,"sum:",{"$f":"SUMIF(G124:G131,\"\",D124:D131)+SUM(G124:G131)","v":0}]
[null,"Mathematical electives (20 EC)",null,null,"Other course: (Select \"Other Course\" in the left column)"]
[null,"Course code","Course name","EC","Course code","Course name","EC"]
[null,{"$f":"VLOOKUP(C135,All_Math_lijst,2,0)","v":""},"Please select your math courses here",{"$f":"VLOOKUP(C135,All_Math_lijst,3,0)","v":""}]
[null,"","Please select your math courses here",""]
[null,"","Please select your math courses here",""]
[null,"","Please select your math courses here",""]
[null,"","Please select your math courses here",""]
[null,"","Please select your math courses here",""]
[null,null,"sum:",{"$f":"SUM(G135:G140)+SUMIFS(D135:D140,G135:G140,\"\")","v":0}]
[]
[null,"Professional Preparation (1 EC) + Philosophy (3 EC) + Free Electives (6 EC)",null,null,"Replaced by:"]
[null,"Course code","Course name","EC","Course code","Course name","EC"]
[null,"NWI-NM019B","Professional Preparation",1]
[null,{"$f":"VLOOKUP(C146,filo_lijst,2,0)","v":""},"Choose your philosophical course here",{"$f":"VLOOKUP(C146,filo_lijst,3,0)","v":""}]
[]
[]
[]
[null,null,"sum:",{"$f":"SUMIFS(D145:D149, G145:G149, \"\")+SUM(G145:G149)","v":1}]
[]
[null,"Science and Education (60 ec)",null,null,"Replaced by:"]
[null,"Course code","Course name","EC","Course code","Course name","EC"]
[null,null,"Series of Lectures",5]
[null,null,"Self-evaluation 1",10]
[null,null,"Supervised Internship",15]
[null,null,"Design and Research",10]
[null,null,"Self-Evauluation 2",5]
[null,null,"Inedependent Internship",15]
[null,null,"sum:",{"$f":"SUMIFS(D154:D159, G154:G159, \"\")+SUM(G154:G159)","v":60}]
[]
[null,"Additional space for replacing courses"]
[null,"Course code","Course name","EC"]
[null,null,null,null,"This space is reserved for replacing courses in case you have done the education minor in your Bachelor's Programme. In that case you may request exemptions for some parts of the Education programme of the master. You have to do other courses however to get to the required 120 EC. You may enter any replacing courses which do not fit it earlier columns here."]
[]
[]
[]
[]
[]
[]
[null,null,null,{"$f":"SUM(D164:D170)","v":0}]
[]
[null,null,"Master Math needed (EC)",0]
[null,null,"MasterMath courses (EC)",{"$f":"SUMIF(C106:C161,\"*(MM)*\",D106:D161)","v":0}]
[null,null,"Minimum MasterMath OK?",{"$f":"IF(D174>D173-1,\"YES\",\"NO\")","v":"YES"}]
[null,null,"Maximum 3rd year bachelor Math (EC)",12]
[null,null,"3rd year bachelor Math. courses (EC)",{"$f":"SUMIF(C106:C161,\"*3rd year*\",D106:D161)","v":0}]
[null,null,"Maximum 3rd year bachelor Math OK?",{"$f":"IF(D177<=D176,\"YES\",\"NO\")","v":"YES"}]
[]
[null,"Total ECTS (minimum of 120)",null,{"$f":"SUM(D171,D160,D150,D141,D132)","v":61},"EC"]
[]
[null,"Honours ('judicium') is awarded  based on the nominal number of 120 EC required for the examination (or more than 120 ec, i.e. courses mentioned above) ; extra curricular courses do not count for this honours (but will be mentioned on your diploma)."]
[]
[]
[null,"Extra Curricular Courses (extra above 120 ECTS)"]
[null,"Course code","Course name","EC"]
[]
[]
[]
[]
[]
[]
[]
[]
[]
[]
[null,null,"sum:",{"$f":"SUM(D187:D196)","v":0}]
[]
[null,"Total ECTS overall:",null,{"$f":"D197+D180","v":61},"EC"]
[]
[null,"Comments:"]
[]
[]
[]
[]
[]
[]
["#scheidingswoordmeteenhashtag"]
["2018"]
[null,"Request for approval Master's Programme Mathematics - Societal: Science and Education (Cohort 2018)"]
[null,"Use this form to submit your Master's programme for approval by the Examining Board"]
[]
[]
[null,"Please complete the form and send via e-mail to: fnwi.examcies@science.ru.nl"]
[]
[null,"Student name:"]
[null,"Student number:"]
[null,"Starting date master:"]
[null,"E-mail:"]
[null,"Phone number:"]
[]
[null,"Disciplinary programme Mathematics"]
[]
[null,"Please select your Major. Generate the form again if you have selected the wrong one by accident"]
[null,"Major (30 EC)",null,null,"Other course: (Select \"Other Course\" in the left column)"]
[null,null,"Please select your major here",null,"Course list:",{"$f":"Return_Major_String(C226)","v":"No_Major"}]
[null,"Course code","Course name","EC","Course code","Course name","EC"]
[null,"NWI-WB115B","Master Seminar",3]
[null,{"$f":"VLOOKUP(C229,INDIRECT(CONCATENATE(F226,\"_lijst\")),2,0)","v":""},"Please select your math courses here",{"$f":"VLOOKUP(C229,INDIRECT(CONCATENATE(F226,\"_lijst\")),3,0)","v":""}]
[null,{"$f":"VLOOKUP(C230,INDIRECT(CONCATENATE(F226,\"_lijst\")),2,0)","v":""},"Please select your math courses here",{"$f":"VLOOKUP(C230,INDIRECT(CONCATENATE(F226,\"_lijst\")),3,0)","v":""}]
[null,{"$f":"VLOOKUP(C231,INDIRECT(CONCATENATE(F226,\"_lijst\")),2,0)","v":""},"Please select your math courses here",{"$f":"VLOOKUP(C231,INDIRECT(CONCATENATE(F226,\"_lijst\")),3,0)","v":""}]
[null,{"$f":"VLOOKUP(C232,INDIRECT(CONCATENATE(F226,\"_lijst\")),2,0)","v":""},"Please select your math courses here",{"$f":"VLOOKUP(C232,INDIRECT(CONCATENATE(F226,\"_lijst\")),3,0)","v":""}]
[null,{"$f":"VLOOKUP(C233,INDIRECT(CONCATENATE(F226,\"_lijst\")),2,0)","v":""},"Please select your math courses here",{"$f":"VLOOKUP(C233,INDIRECT(CONCATENATE(F226,\"_lijst\")),3,0)","v":""}]
[null,{"$f":"VLOOKUP(C234,INDIRECT(CONCATENATE(F226,\"_lijst\")),2,0)","v":""},"Please select your math courses here",{"$f":"VLOOKUP(C234,INDIRECT(CONCATENATE(F226,\"_lijst\")),3,0)","v":""}]
[null,{"$f":"VLOOKUP(C235,INDIRECT(CONCATENATE(F226,\"_lijst\")),2,0)","v":""},"Please select your math courses here",{"$f":"VLOOKUP(C235,INDIRECT(CONCATENATE(F226,\"_lijst\")),3,0)","v":""}]
[null,null,"sum:",{"$f":"SUMIF(G228:G235,\"\",D228:D235)+SUM(G228:G235)","v":3}]
[null,"Mathematical electives (20 EC)",null,null,"Other course: (Select \"Other Course\" in the left column)"]
[null,"Course code","Course name","EC","Course code","Course name","EC"]
[null,{"$f":"VLOOKUP(C239,All_Math_lijst,2,0)","v":""},"Please select your math courses here",{"$f":"VLOOKUP(C239,All_Math_lijst,3,0)","v":""}]
[null,"","Please select your math courses here",""]
[null,"","Please select your math courses here",""]
[null,"","Please select your math courses here",""]
[null,"","Please select your math courses here",""]
[null,"","Please select your math courses here",""]
[null,null,"sum:",{"$f":"SUM(G239:G244)+SUMIFS(D239:D244,G239:G244,\"\")","v":0}]
[]
[null,"Professional Preparation (1 EC) + Philosophy (3 EC) + Free Electives (6 EC)",null,null,"Replaced by:"]
[null,"Course code","Course name","EC","Course code","Course name","EC"]
[null,"NWI-NM019B","Professional Preparation",1]
[null,{"$f":"VLOOKUP(C250,filo_lijst_2018,2,0)","v":""},"Choose your philosophical course here",{"$f":"VLOOKUP(C250,filo_lijst_2018,3,0)","v":""}]
[]
[]
[]
[null,null,"sum:",{"$f":"SUMIFS(D249:D253, G249:G253, \"\")+SUM(G249:G253)","v":1}]
[]
[null,"Science and Education (60 ec)",null,null,"Replaced by:"]
[null,"Course code","Course name","EC","Course code","Course name","EC"]
[null,null,"Series of Lectures",5]
[null,null,"Self-evaluation 1",10]
[null,null,"Supervised Internship",15]
[null,null,"Design and Research",10]
[null,null,"Self-Evauluation 2",5]
[null,null,"Inedependent Internship",15]
[null,null,"sum:",{"$f":"SUMIFS(D258:D263, G258:G263, \"\")+SUM(G258:G263)","v":60}]
[]
[null,"Additional space for replacing courses"]
[null,"Course code","Course name","EC"]
[null,null,null,null,"This space is reserved for replacing courses in case you have done the education minor in your Bachelor's Programme. In that case you may request exemptions for some parts of the Education programme of the master. You have to do other courses however to get to the required 120 EC. You may enter any replacing courses which do not fit it earlier columns here."]
[]
[]
[]
[]
[]
[]
[null,null,null,{"$f":"SUM(D268:D274)","v":0}]
[]
[null,null,"Master Math needed (EC)",0]
[null,null,"MasterMath courses (EC)",{"$f":"SUMIF(C210:C265,\"*(MM)*\",D210:D265)","v":0}]
[null,null,"Minimum MasterMath OK?",{"$f":"IF(D278>D277-1,\"YES\",\"NO\")","v":"YES"}]
[null,null,"Maximum 3rd year bachelor Math (EC)",12]
[null,null,"3rd year bachelor Math. courses (EC)",{"$f":"SUMIF(C210:C265,\"*3rd year*\",D210:D265)","v":0}]
[null,null,"Maximum 3rd year bachelor Math OK?",{"$f":"IF(D281<=D280,\"YES\",\"NO\")","v":"YES"}]
[]
[null,"Total ECTS (minimum of 120)",null,{"$f":"SUM(D275,D264,D254,D245,D236)","v":64},"EC"]
[]
[null,"Honours ('judicium') is awarded  based on the nominal number of 120 EC required for the examination (or more than 120 ec, i.e. courses mentioned above) ; extra curricular courses do not count for this honours (but will be mentioned on your diploma)."]
[]
[]
[null,"Extra Curricular Courses (extra above 120 ECTS)"]
[null,"Course code","Course name","EC"]
[]
[]
[]
[]
[]
[]
[]
[]
[]
[]
[null,null,"sum:",{"$f":"SUM(D291:D300)","v":0}]
[]
[null,"Total ECTS overall:",null,{"$f":"D301+D284","v":64},"EC"]
[]
[null,"Comments:"]
[]
[]
[]
[]
[]
[]
["#scheidingswoordmeteenhashtag"]

{"sheet":"Selections","index":8,"n_rows":205,"n_cols":39,"rows_kept":205,"cut":false,"hidden":true,"merged":[]}
[null,null,null,null,null,null,null,null,null,null,null,"MATHEMATICAL COURSES GO HERE"]
["t/m 2017","Filosofie",null,null,null,null,null,null,"FOR SMI",null,null,"Algebra & Topology",null,null,null,"MFoCs",null,null,null,"Mathematical Physics",null,null,null,"Applied Stochastics",null,null,null,"No Major Selected",null,null,null,"All Math Courses"]
[null,"Choose your philosophical course here","","",null,null,"Cohort","Specialisatie","Major"]
[null,"The Transformative Role of Physics in the Current Scientific Revolution","NWI-FFIL211B",3,null,null,"Please Select…","Please Select…","Please select your major here",null,null,"Please select your math courses here","","",null,"Please select your math courses here","","",null,"Please select your math courses here","","",null,"Please select your math courses here","","",null,"Please select your math courses here","","",null,"Please select your math courses here","",""]
[null,"Bioethics for Lifescientists","NWI-FFIL203B",3,null,null,2014,"Algebra and Topology","Algebra and Topology",null,null,"","","",null,"","","",null,"","","",null,"","","",null,"Please select a major","","",null,"","",""]
[null,"Environmental Ethics","NWI-FFIL209B",3,null,null,2015,"Applied Stochastics","Applied Stochastics",null,null,"Abelian Varieties (MM)","NWI-EXT-IND",8,null,"Additive Combinatorics (MM)","NWI-EXT-IND",8,null,"Advanced Algebraic Geometry (MM)","NWI-EXT-IND",8,null,"Advanced Combinatorics (MM)","NWI-EXT-IND",8,null,null,null,null,null,"Abelian Varieties (MM)","NWI-EXT-IND",8]
[null,"Evolution and the Mind","NWI-FFIL202A",3,null,null,2016,"Math. Found. of Comp. Sci.","Math. Found. of Comp. Sci.",null,null,"Additive Combinatorics (MM)","NWI-EXT-IND",8,null,"Advanced Linear Programming (MM)","NWI-EXT-IND",6,null,"Advanced Algebraic Geometry: Abelian Varieties (MM)","NWI-EXT-IND",8,null,"Advanced Linear Programming (MM)","NWI-EXT-IND",6,null,null,null,null,null,"Additive Combinatorics (MM)","NWI-EXT-IND",8]
[null,"Philosophy and Ethics for Computing & Information Science","NWI-IMI003",3,null,null,"2017","Mathematical Physics","Mathematical Physics",null,null,"Advanced Algebraic Geometry (MM)","NWI-EXT-IND",8,null,"Advanced Programming","NWI-I00032",6,null,"Advanced C(X)","NWI-WM002A",6,null,"Algebraic Methods in Combinatorics (MM)","NWI-EXT-IND",8,null,null,null,null,null,"Advanced Algebraic Geometry (MM)","NWI-EXT-IND",8]
[null,"Philosophy and Ethics in Microbiology","NWI-FFIL302",3,null,null,"2018","SMI",null,null,null,"Advanced Algebraic Geometry: Abelian Varieties (MM)","NWI-EXT-IND",8,null,"Algorithmic Geometry of Numbers","NWI-EXT-IND",8,null,"Advanced Combinatorics (MM)","NWI-EXT-IND",8,null,"Applied Finite Elements (MM)","NWI-EXT-IND",6,null,null,null,null,null,"Advanced Algebraic Geometry: Abelian Varieties (MM)","NWI-EXT-IND",8]
[null,"Philosophy of water management","NWI-FFIL212",3,null,null,null,"SIS",null,null,null,"Advanced Linear Programming (MM)","NWI-EXT-IND",6,null,"Algorithms Beyond the Worst Case (MM)","NWI-EXT-IND",8,null,"Advanced Complex Analysis (MM)","NWI-EXT-IND",8,null,"Applied Statistics  (MM)","NWI-EXT-IND",6,null,null,null,null,null,"Advanced C(X)","NWI-WM002A",6]
[null,"Science & Literature (Philosophy 2)","NWI-FFIL205A",3,null,null,null,"Science & Education",null,null,null,"Advanced Topics in Representation Theory ","NWI-WM116B",6,null,"Automated Reasoning","NWI-IMC009",6,null,"Advanced Hamiltonian Dynamics (MM)","NWI-EXT-IND",8,null,"Applied Stochastics (3rd year)","NWI-WB064B",6,null,null,null,null,null,"Advanced Combinatorics (MM)","NWI-EXT-IND",8]
[null,"Science and Metaphysics","NWI-FFIL214",3,null,null,null,null,null,null,null,"Advanced Topics Intuitionistic Math","NWI-WM111A",3,null,"Axiomatic Set Theory","NWI-WM038B",8,null,"Advanced Mathematical Physics ","NWI-WM114",6,null,"Asymptotic Methods for Differential Equations (MM)","NWI-EXT-IND",6,null,null,null,null,null,"Advanced Complex Analysis (MM)","NWI-EXT-IND",8]
[null,"The impact of mathematics on worldview and Zeitgeist: a biographical approach","NWI-FFIL300C",3,null,null,null,null,null,null,null,"Algebraic Geometry (MM)","NWI-EXT-IND",8,null,"Axiomatische Verzamelingenleer (3rd year)","NWI-WB066C",6,null,"Advanced Topics in Representation Theory ","NWI-WM116B",6,null,"Asymptotic Statistics  (MM)","NWI-EXT-IND",8,null,null,null,null,null,"Advanced Hamiltonian Dynamics (MM)","NWI-EXT-IND",8]
[null,"Upgrading the Human? Ethical and Philosophical Aspects of Human Enhancement","NWI-FFIL215",3,null,null,null,null,null,null,null,"Algebraic Geometry 1 (MM)","NWI-EXT-IND",8,null,"Axiomatische Verzamelingenleer ","NWI-WB066C",6,null,"Algebraic Geometry (MM)","NWI-EXT-IND",8,null,"Bayesian Statistitics (MM)","NWI-EXT-IND",8,null,null,null,null,null,"Advanced Linear Programming (MM)","NWI-EXT-IND",6]
[null,"Philosophy of Mathematics","NWI-WM040B",3,null,null,null,null,null,null,null,"Algebraic Geometry 2 (MM)","NWI-EXT-IND",8,null,"Categorieën en Homologische Algebra (3rd year)","NWI-WB083",6,null,"Algebraic Geometry 1 (MM)","NWI-EXT-IND",8,null,"Biostatistics ","NWI-WM126",6,null,null,null,null,null,"Advanced Mathematical Physics ","NWI-WM114",6]
[null,"A&T",null,null,null,null,null,null,null,null,null,"Algebraic Groups ","NWI-WM136",6,null,"Category Theory","NWI-WM033C",6,null,"Algebraic Geometry 2 (MM)","NWI-EXT-IND",8,null,"Calculus of Variations","NWI-WM144",6,null,null,null,null,null,"Advanced Modelling in Science (MM)","NWI-EXT-IND",6]
[null,"Choose compulsory course..","","",null,null,null,null,null,null,null,"Algebraic K-theory","NWI-WM117B",6,null,"Category Theory and Topos Theory (MM)","NWI-EXT-IND",8,null,"Algebraic Groups ","NWI-WM136",6,null,"Coding Theory  (MM)","NWI-EXT-IND",8,null,null,null,null,null,"Advanced Topics in Representation Theory ","NWI-WM116B",6]
[null,"Algebraic Geometry (MM)","NWI-EXT-IND",8,null,null,null,null,null,null,null,"Algebraic Number Theory  (MM)","NWI-EXT-IND",8,null,"Coalgebra","NWI-IMC036",6,null,"Algebraic Surfaces (MM)","NWI-EXT-IND",8,null,"Computer Algebra","NWI-WM069B",6,null,null,null,null,null,"Advanced Topics in Semidefinite Programming (MM)","NWI-EXT-IND",8]
[null,"Riemann Surfaces (MM)","NWI-EXT-IND",8,null,null,"Smi Theme",null,null,null,null,"Algebraic Surfaces (MM)","NWI-EXT-IND",8,null,"Coding Theory  (MM)","NWI-EXT-IND",8,null,"Analytic Number Theory","NWI-WM139",6,null,"Continuous Optimization  (MM)","NWI-EXT-IND",6,null,null,null,null,null,"Advanced Topics Intuitionistic Math","NWI-WM111A",3]
[null,"Elliptic Curves (MM)","NWI-EXT-IND",8,null,null,null,null,null,null,null,"Algebraic Topology (MM)","NWI-EXT-IND",8,null,"Compiler Construction","NWI-IMC004",6,null,"Asymptotic Methods for Differential Equations (MM)","NWI-EXT-IND",6,null,"Financial Mathematics","NWI-WM985B",6,null,null,null,null,null,"Algebraic Geometry (MM)","NWI-EXT-IND",8]
[null,"Other Course (MM)","","",null,null,null,null,null,null,null,"Algebraic Topology 1 ","NWI-WM094B",6,null,"Complexity Theory ","NWI-WM072B",6,null,"Buildings","NWI-WM146",6,null,"Financiële Wiskunde (3rd year)","NWI-WB085",6,null,null,null,null,null,"Algebraic Geometry 1 (MM)","NWI-EXT-IND",8]
[null,"Other Course (non MM)","","",null,null,"Choose a standard theme","",null,null,null,"Algebraic Topology 2 (MM)","NWI-EXT-IND",8,null,"Computability Theory","NWI-WM120C",6,null,"Calculus of Variations","NWI-WM144",6,null,"Forensic probability and Statistics (MM)","NWI-EXT-IND",8,null,null,null,null,null,"Algebraic Geometry 2 (MM)","NWI-EXT-IND",8]
[null,null,null,null,null,null,"Health (H)",12,null,null,null,"Algebraic Topology 2 ","NWI-WM110B",6,null,"Computability Theory (MM)","NWI-EXT-IND",8,2017,"C*-algebras and Representation Theory","NWI-WM140",6,null,"Heuristic Methods in Operations Research (MM)","NWI-EXT-IND",6,null,null,null,null,null,"Algebraic Groups ","NWI-WM136",6]
["t/m 2016","Choose compulsory course..","","",null,null,"Climate and Energy (C&E)",12,null,null,null,"Algebraic Topology in Dynamical Systems (MM)","NWI-EXT-IND",8,null,"Computer Algebra","NWI-WM069B",6,null,"Categorieën en Homologische Algebra (3rd year)","NWI-WB083",6,null,"Inleiding Functionaal Analyse (3rd year)","NWI-WB062B",6,null,null,null,null,null,"Algebraic K-theory","NWI-WM117B",6]
[null,"Homotopy Theory (MM)","NWI-EXT-IND",8,null,null,"Cyber Security (Cyb)",12,null,null,null,"Analytic Number Theory","NWI-WM139",6,null,"Cryptology 5 ec  (MM)","NWI-EXT-IND",5,null,"Category Theory and Homological Algebra","NWI-WM983",6,null,"Interacting Particle systems: Theory and applications (MM)","NWI-EXT-IND",8,null,null,null,null,null,"Algebraic Methods in Combinatorics (MM)","NWI-EXT-IND",8]
[null,"Differential Geometry (MM)","NWI-EXT-IND",8,null,null,"Non-Standard Theme",12,null,null,null,"Applied Finite Elements (MM)","NWI-EXT-IND",6,null,"Cryptology 6 ec (MM)","NWI-EXT-IND",6,null,"Coxeter Groups","NWI-WM051B",6,null,"Introduction to Partial Differential Equations (3rd year)","NWI-WB046B",6,null,null,null,null,null,"Algebraic Number Theory  (MM)","NWI-EXT-IND",8]
[null,"Algebraic Topology 1","NWI-WM094B",6,null,null,null,null,null,null,null,"Axiomatic Set Theory","NWI-WM038B",8,null,"Descriptive Set Theory (MM)","NWI-EXT-IND",8,null,"Complex Geometry  (MM)","NWI-EXT-IND",8,null,"Introduction to Stochastic Processes (MM)","NWI-EXT-IND",4,null,null,null,null,null,"Algebraic Surfaces (MM)","NWI-EXT-IND",8]
[null,"Algebraic Topology (MM)","NWI-EXT-IND",8,null,null,null,null,null,null,null,"Axiomatische Verzamelingenleer (3rd year)","NWI-WB066C",6,null,"Discrete Optimization  (MM)","NWI-EXT-IND",6,null,"Computational Dynamics (MM)","NWI-EXT-IND",8,null,"Inverse Problems in Imaging and Modules (MM)","NWI-EXT-IND",8,null,null,null,null,null,"Algebraic Topology (MM)","NWI-EXT-IND",8]
[null,"Other Course (MM)","","",null,null,null,null,null,null,null,"Axiomatische Verzamelingenleer ","NWI-WB066C",6,null,"Forceren","NWI-WM104B",4,null,"Continuous Optimization  (MM)","NWI-EXT-IND",6,null,"Maat en Integraal (3rd year)","NWI-WB023B",6,null,null,null,null,null,"Algebraic Topology 1 ","NWI-WM094B",6]
[null,"Other Course (non MM)","","",null,null,null,null,null,null,null,"Buildings","NWI-WM146",6,null,"Galoistheorie (3rd year)","NWI-WB068B",6,null,"Continuum Mechanics (MM)","NWI-EXT-IND",8,null,"Maattheorie (3rd year)","NWI-WB088",6,null,null,null,null,null,"Algebraic Topology 2 ","NWI-WM110B",6]
[null,null,null,null,null,null,null,null,null,null,null,"Categorieën en Homologische Algebra (3rd year)","NWI-WB083",6,null,"Getaltheorie (3rd year)","NWI-WB089",6,null,"Coverings Topology Geometry Algebra","NWI-WM138",6,null,"Machine Learning Theory (MM)","NWI-EXT-IND",8,null,null,null,null,null,"Algebraic Topology in Dynamical Systems (MM)","NWI-EXT-IND",8]
[2017,"Choose compulsory course..","","",null,null,null,null,null,null,null,"Category Theory and Homological Algebra","NWI-WM983",6,null,"Gödels Incompleteness Theorems (MM)","NWI-EXT-IND",8,null,"Differentiaalmeetkunde (3rd year)","NWI-WB045C",6,null,"Master Seminar (3 ec)","NWI-WM115B",3,null,null,null,null,null,"Algorithmic Geometry of Numbers (MM)","NWI-EXT-IND",8]
[null,"Differential Geometry (MM)","NWI-EXT-IND",8,null,null,null,null,null,null,null,"Category Theory and Topos Theory (and Modules) (MM)","NWI-EXT-IND",8,null,"Independence Proofs in Set Theory ","NWI-WM135",6,null,"Differentiaalmeetkunde (3rd year)","NWI-WB045B",6,null,"Measure-theoretic Probability  (MM)","NWI-EXT-IND",8,null,null,null,null,null,"Algorithms Beyond the Worst Case (MM)","NWI-EXT-IND",8]
[null,"Algebraic Topology 1","NWI-WM094B",6,null,null,null,null,null,null,null,"Class Field Theory","NWI-WM128",6,null,"Intuitionistic Mathematics ","NWI-WM037B",8,null,"Differential Geometry (3rd year)","NWI-WB079B",6,null,"Percolation (MM)","NWI-EXT-IND",8,null,null,null,null,null,"Analytic Number Theory","NWI-WM139",6]
[null,"Algebraic Topology (MM)","NWI-EXT-IND",8,null,null,null,null,null,null,null,"Coding Theory  (MM)","NWI-EXT-IND",8,null,"Intuitionistic Mathematics  (MM)","NWI-EXT-IND",8,null,"Differential Geometry  (MM)","NWI-EXT-IND",8,null,"Percolation: from Intro to Frontiers of Current Research (MM)","NWI-EXT-IND",8,null,null,null,null,null,"Applied Finite Elements (MM)","NWI-EXT-IND",6]
[null,"Other Course (MM)","","",null,null,null,null,null,null,null,"Coxeter Groups","NWI-WM051B",6,null,"Intuïtionistische Wiskunde (3rd year)","NWI-WB070B",6,null,"Dynamical Systems (MM)","NWI-EXT-IND",8,null,"Portfolio Theorie (3rd year)","NWI-WB090",6,null,null,null,null,null,"Applied Statistics  (MM)","NWI-EXT-IND",6]
[null,"Other Course (non MM)","","",null,null,null,null,null,null,null,"Commutatieve Algebra","NWI-WM026B",8,null,"Machine Learning","NWI-NM048C",9,null,"Elliptic Curves  (MM)","NWI-EXT-IND",8,null,"Portfolio Theory","NWI-WM990B",6,null,null,null,null,null,"Applied Stochastics (3rd year)","NWI-WB064B",6]
[null,null,null,null,null,null,null,null,null,null,null,"Commutative Algebra ","NWI-WM026C",6,null,"Machine Learning Theory (MM)","NWI-EXT-IND",8,null,"Ergodic Theory (MM)","NWI-EXT-IND",8,null,"Probabilistic and Extremal Combinatorics (MM)","NWI-EXT-IND",8,null,null,null,null,null,"Asymptotic Methods for Differential Equations (MM)","NWI-EXT-IND",6]
[null,null,null,null,null,null,null,null,null,null,null,"Commutative Algebra  (MM)","NWI-EXT-IND",8,null,"Master Seminar (3 ec)","NWI-WM115B",3,null,"Foundations of General Relativity (MM)","NWI-EXT-IND",8,null,"Quantum Probability","NWI-WM134",6,null,null,null,null,null,"Asymptotic Statistics  (MM)","NWI-EXT-IND",8]
[null,"Choose compulsory course..","","",null,null,null,null,null,null,null,"Computer Algebra","NWI-WM069B",6,null,"Mathematical Structures in Logic (MM)","NWI-EXT-IND",8,null,"Fourier Analysis and Distributions  (MM)","NWI-EXT-IND",8,null,"Queueing Theory (MM)","NWI-EXT-IND",6,null,null,null,null,null,"Axiomatic Set Theory","NWI-WM038B",8]
[null,"Lie Algebra's (MM)","NWI-EXT-IND",8,null,null,null,null,null,null,null,"Coverings Topology Geometry Algebra","NWI-WM138",6,null,"MFoCS seminar","NWI-IMC049",3,null,"Functional Analysis (MM)","NWI-EXT-IND",8,null,"Queues and Levy Fluctuation Theory (MM)","NWI-EXT-IND",8,null,null,null,null,null,"Axiomatische Verzamelingenleer (3rd year)","NWI-WB066C",6]
[null,"Lie Groups (MM)","NWI-EXT-IND",8,null,null,null,null,null,null,null,"Cryptology 5 ec  (MM)","NWI-EXT-IND",5,null,"Model Checking","NWI-IMC046",6,null,"Galois Representations and Automorphic Forms  (MM)","NWI-EXT-IND",8,null,"Regression Analysis and Non-Parametric Statistics","NWI-WM098B",6,null,null,null,null,null,"Axiomatische Verzamelingenleer ","NWI-WB066C",6]
[null,"Lie Groups & Lie Algebras ","NWI-EXT-IND",8,null,null,null,null,null,null,null,"Cryptology 6 ec (MM)","NWI-EXT-IND",6,null,"Model Theory","NWI-WM036C",8,null,"Galois Theory","NWI-WM968B",6,null,"Scheduling  (MM)","NWI-EXT-IND",6,null,null,null,null,null,"Bayesian Statistitics (MM)","NWI-EXT-IND",8]
[null,"Adv. Topics in Representation Theory","NWI-WM116B",6,null,null,null,null,null,null,null,"Differentiaalmeetkunde (3rd year)","NWI-WB045C",6,null,"Model Theory (3rd year)","NWI-WM036B",6,null,"Galoistheorie (3rd year)","NWI-WB068B",6,null,"Seminar","NWI-WM115B",3,null,null,null,null,null,"Biostatistics ","NWI-WM126",6]
[null,"Other Course (MM)","","",null,null,null,null,null,null,null,"Differentiaalmeetkunde (3rd year)","NWI-WB045B",6,null,"Model Theory (MM)","NWI-EXT-IND",8,null,"General Relativity ","NWI-WM058B",6,null,"Spatial Statistics (MM)","NWI-EXT-IND",6,null,null,null,null,null,"Buildings","NWI-WM146",6]
[null,"Other Course (non MM)","","",null,null,null,null,null,null,null,"Differential Geometry (3rd year)","NWI-WB079B",6,null,"Quantum Information Theory (MM)","NWI-EXT-IND",8,null,"Geometric Functional Analysis and its Applications (MM)","NWI-EXT-IND",8,null,"Statistical Theory for High- and Infinite- Dim. Models (MM)","NWI-EXT-IND",8,null,null,null,null,null,"Calculus of Variations","NWI-WM144",6]
[null,null,null,null,null,null,null,null,null,null,null,"Differential Geometry  (MM)","NWI-EXT-IND",8,null,"Quantum Processes and Computation","NWI-WM134/IMC055",6,null,"Geometric PDEs (MM)","NWI-EXT-IND",8,null,"Stochastic Differential Equations (MM)","NWI-EXT-IND",6,null,null,null,null,null,"C(X) (3rd year)","NWI-WB084",6]
[null,"Choose compulsory course..","","",null,null,null,null,null,null,null,"Elliptic Curves  (MM)","NWI-EXT-IND",8,null,"Parallel Algorithms  (MM)","NWI-EXT-IND",8,null,"Hamilton Dynamics (MM)","NWI-EXT-IND",8,null,"Stochastic Processes  (MM)","NWI-EXT-IND",8,null,null,null,null,null,"C*-algebras and Representation Theory","NWI-WM140",6]
[null,"Non-commutative geometry","NWI-WM068C",6,null,null,null,null,null,null,null,"Forceren","NWI-WM104B",4,null,"Proof Assistants","NWI-I00139",6,null,"Harmonic Analysis (MM)","NWI-EXT-IND",8,null,"Systems and Control (MM)","NWI-EXT-IND",6,null,null,null,null,null,"Categorieën en Homologische Algebra (3rd year)","NWI-WB083",6]
[null,"Operator Algebra's","NWI-WM063D",6,null,null,null,null,null,null,null,"Galois Representations and Automorphic Forms  (MM)","NWI-EXT-IND",8,null,"Selected Areas in Cryptology (MM)","NWI-EXT-IND",8,null,"Hypergeometric Functions (MM)","NWI-EXT-IND",8,null,"Time Series  (MM)","NWI-EXT-IND",8,null,null,null,null,null,"Category Theory","NWI-WM033C",6]
[null,"Operator Algebra's (MM)","NWI-EXT-IND",8,null,null,null,null,null,null,null,"Galois Theory","NWI-WM968B",6,null,"Semantics and Domain Theory","NWI-IMC011",6,null,"Infinite Dimensional Systems (MM)","NWI-EXT-IND",6,null,"Voortgezette Statistiek (3rd year)","NWI-WB041B",3,null,null,null,null,null,"Category Theory and Homological Algebra","NWI-WM983",6]
[null,"Other Course (MM)","","",null,null,null,null,null,null,null,"Galoistheorie (3rd year)","NWI-WB068B",6,null,"Seminar","NWI-WM115B",3,null,"Inleiding Functionaal Analyse (3rd year)","NWI-WB062B",6,null,null,null,null,null,null,null,null,null,"Category Theory and Topos Theory (MM)","NWI-EXT-IND",8]
[null,"Other Course (non MM)","","",null,null,null,null,null,null,null,"Getaltheorie (3rd year)","NWI-WB089",6,null,"Set Theory (MM)","NWI-EXT-IND",8,null,"Inleiding Mathematische Fysica (3rd year)","NWI-WB082",6,null,"Other Course (MM)","N/A","N/A",null,null,null,null,null,"Class Field Theory","NWI-WM128",6]
[null,null,null,null,null,null,null,null,null,null,null,"Gödels Incompleteness Theorems (MM)","NWI-EXT-IND",8,null,"Statistical Machine Learning","NWI-NB054E/IMC056",6,null,"Interacting Particle systems: Theory and applications (MM)","NWI-EXT-IND",8,null,"Other Course (non MM)","N/A","N/A",null,null,null,null,null,"Coding Theory  (MM)","NWI-EXT-IND",8]
[2017,"Choose compulsory course..","","",null,null,null,null,null,null,null,"Graph Theory (6 EC)","NWI-WM006C",6,null,"Symmetries and conservation laws of nonlinear PDE (MM)","NWI-EXT-IND",8,null,"Introduction to Partial Differential Equations (3rd year)","NWI-WB046B",6,null,null,null,null,null,null,null,null,null,"Commutatieve Algebra","NWI-WM026B",8]
[null,"Lie Groups & Lie Algebras ","NWI-EXT-IND",8,null,null,null,null,null,null,null,"Graph Theory (8 EC)","NWI-WM006D",8,null,"Topos Theory (MM)","NWI-EXT-IND",8,null,"Introduction to the Langlands Program","NWI-WM118B",6,null,null,null,null,null,null,null,null,null,"Commutative Algebra ","NWI-WM026C",6]
[null,"Differential Geometry","NWI-EXT-IND",8,null,null,null,null,null,null,null,"Hypergeometric Functions (MM)","NWI-EXT-IND",8,null,"Type Theory and Coq","NWI-IMC010",6,null,"Lie Groups (MM)","NWI-EXT-IND",8,null,null,null,null,null,null,null,null,null,"Commutative Algebra  (MM)","NWI-EXT-IND",8]
[null,null,null,null,null,null,null,null,null,null,null,"Independence Proofs in Set Theory ","NWI-WM135",6,null,null,null,null,null,"Lie Groups and Lie Algebras  (MM)","NWI-EXT-IND",8,null,null,null,null,null,null,null,null,null,"Complex Geometry  (MM)","NWI-EXT-IND",8]
[null,"Choose compulsory course..","","",null,null,null,null,null,null,null,"Introduction to Algebraic Curves","NWI-WM132",6,null,"Other Course (MM)","N/A","N/A",null,"Lie Algebras in Mathematics and Physics","NWI-WM145",6,null,null,null,null,null,null,null,null,null,"Complex Networks  (MM)","NWI-EXT-IND",8]
[null,"Operator Algebras","NWI-EXT-IND",8,null,null,null,null,null,null,null,"Introduction to the Langlands Program","NWI-WM118B",6,null,"Other Course (non MM)","N/A","N/A",null,"Maat en Integraal (3rd year)","NWI-WB023B",6,null,null,null,null,null,null,null,null,null,"Complexity Theory","NWI-WM072B",6]
[null,"Foundations of General Relativity","NWI-EXT-IND",8,null,null,null,null,null,null,null,"Intuitionistic Mathematics ","NWI-WM037B",8,null,null,null,null,null,"Maattheorie (3rd year)","NWI-WB088",6,null,null,null,null,null,null,null,null,null,"Complexity Theory (MM)","NWI-EXT-IND",8]
[null,null,null,null,null,null,null,null,null,null,null,"Intuitionistic Mathematics  (MM)","NWI-EXT-IND",8,null,null,null,null,null,"Manifolds","NWI-WM113A",3,null,null,null,null,null,null,null,null,null,"Computability Theory","NWI-WM120C",6]
[null,null,null,null,null,null,null,null,null,null,null,"Intuïtionistische Wiskunde (3rd year)","NWI-WB070B",6,null,null,null,null,null,"Manifolds (3rd year)","NWI-WB079C",6,null,null,null,null,null,null,null,null,null,"Computability Theory (MM)","NWI-EXT-IND",8]
[null,null,null,null,null,null,null,null,null,null,null,"Lie Algebras in Mathematics and Physics ","NWI-WM145",6,null,null,null,null,null,"Master Seminar (3 ec) ","NWI-WM115B",3,null,null,null,null,null,null,null,null,null,"Computational Dynamics (MM)","NWI-EXT-IND",8]
[null,null,null,null,null,null,null,null,null,null,null,"Lie Groups (MM)","NWI-EXT-IND",8,null,null,null,null,null,"Modular Forms (3rd year)","NWI-WB091",6,null,null,null,null,null,null,null,null,null,"Computer Algebra","NWI-WM069B",6]
[null,null,null,null,null,null,null,null,null,null,null,"Lie Groups and Lie Algebras  (MM)","NWI-EXT-IND",8,null,null,null,null,null,"Modular Forms (MM)","NWI-EXT-IND",8,null,null,null,null,null,null,null,null,null,"Continuous Optimization  (MM)","NWI-EXT-IND",6]
[null,null,null,null,null,null,null,null,null,null,null,"Manifolds","NWI-WM113A",3,null,null,null,null,null,"Noncommutative Geometry","NWI-WM068C",6,null,null,null,null,null,null,null,null,null,"Continuum Mechanics (MM)","NWI-EXT-IND",8]
[null,"AS",null,null,null,null,null,null,null,null,null,"Manifolds (3rd year)","NWI-WB079C",6,null,null,null,null,null,"Numerical Methods for Stationary PDEs (MM)","NWI-EXT-IND",8,null,null,null,null,null,null,null,null,null,"Convexiteit (3rd year)","NWI-WB075B",6]
[null,"Choose compulsory course…","","",null,null,null,null,null,null,null,"Master Seminar (3 ec) ","NWI-WM115B",3,null,null,null,null,null,"Numerical Methods for Time Dependent PDEs (MM)","NWI-EXT-IND",8,null,null,null,null,null,null,null,null,null,"Coverings Topology Geometry Algebra","NWI-WM138",6]
[null,"Regression Analysis and Non-Parametric Statistics (MM)","NWI-WM098B",6,null,null,null,null,null,null,null,"Mathematical Structures in Logic (MM)","NWI-EXT-IND",8,null,null,null,null,null,"Operator Algebras  (MM)","NWI-EXT-IND",8,null,null,null,null,null,null,null,null,null,"Coxeter Groups","NWI-WM051B",6]
[null,"Stochastic Processes (MM)","NWI-EXT-IND",8,null,null,null,null,null,null,null,"Model Theory","NWI-WM036C",8,null,null,null,null,null,"Partial Differential Equations (MM)","NWI-EXT-IND",8,null,null,null,null,null,null,null,null,null,"Cryptology 5 ec  (MM)","NWI-EXT-IND",5]
[null,null,null,null,null,null,null,null,null,null,null,"Model Theory (3rd year)","NWI-WM036B",6,null,null,null,null,null,"Poisson Geometry (MM)","NWI-EXT-IND",8,null,null,null,null,null,null,null,null,null,"Cryptology 6 ec (MM)","NWI-EXT-IND",6]
[null,"Choose compulsory course…","","",null,null,null,null,null,null,null,"Model Theory (MM)","NWI-EXT-IND",8,null,null,null,null,null,"Probabilistic and Extremal Combinatorics (MM)","NWI-EXT-IND",8,null,null,null,null,null,null,null,null,null,"Descriptive Set Theory (MM)","NWI-EXT-IND",8]
[null,"Biostatistics","NWI-WM126",6,null,null,null,null,null,null,null,"Modular Forms (3rd year)","NWI-WB091",6,null,null,null,null,null,"Quantum Groups","NWI-WM148",6,null,null,null,null,null,null,null,null,null,"Differentiaalmeetkunde (3rd year)","NWI-WB045C",6]
[null,"Measure-Theoretic Probability (MM)","NWI-EXT-IND",8,null,null,null,null,null,null,null,"Modular Forms (MM)","NWI-EXT-IND",8,null,null,null,null,null,"Quantum Information Theory (MM)","NWI-EXT-IND",8,null,null,null,null,null,null,null,null,null,"Differentiaalmeetkunde (3rd year)","NWI-WB045B",6]
[null,null,null,null,null,null,null,null,null,null,null,"Moduli Spaces (MM)","NWI-EXT-IND",8,null,null,null,null,null,"Quantum Probability","NWI-WM134",6,null,null,null,null,null,null,null,null,null,"Differential Geometry (3rd year)","NWI-WB079B",6]
[null,null,null,null,null,null,null,null,null,null,null,"Multiple Zeta Functions (MM)","NWI-EXT-IND",8,null,null,null,null,null,"Quantum Processes and Computation","NWI-WM134/IMC055",6,null,null,null,null,null,null,null,null,null,"Differential Geometry  (MM)","NWI-EXT-IND",8]
[null,null,null,null,null,null,null,null,null,null,null,"Operator Algebras (MM)","NWI-EXT-IND",8,null,null,null,null,null,"Riemann Surfaces (MM)","NWI-EXT-IND",8,null,null,null,null,null,null,null,null,null,"Discrete Choice Analysis (MM)","NWI-EXT-IND",8]
[null,null,null,null,null,null,null,null,null,null,null,"p-Adic Numbers (MM)","NWI-EXT-IND",8,null,null,null,null,null,"Scattering Theory/Special Functions","NWI-WM141",6,null,null,null,null,null,null,null,null,null,"Discrete Optimization  (MM)","NWI-EXT-IND",6]
[null,null,null,null,null,null,null,null,null,null,null,"p-Adic Numbers and Applications  (MM)","NWI-EXT-IND",8,null,null,null,null,null,"Seminar","NWI-WM115B",3,null,null,null,null,null,null,null,null,null,"Dynamical Systems (MM)","NWI-EXT-IND",8]
[null,null,null,null,null,null,null,null,null,null,null,"Poisson Geometry (MM)","NWI-EXT-IND",8,null,null,null,null,null,"Semisimple Lie Algebras (MM)","NWI-EXT-IND",8,null,null,null,null,null,null,null,null,null,"Dynamics of Networks (MM)","NWI-EXT-IND",8]
[null,"MFoCs",null,null,null,null,null,null,null,null,null,"Polynomial Mappings","NWI-WM027B",6,null,null,null,null,null,"Spontaneous Symmetry Breaking","NWI-WM-086B",6,null,null,null,null,null,null,null,null,null,"Elliptic Curves  (MM)","NWI-EXT-IND",8]
[null,"Choose compulsory course…","","",null,null,null,null,null,null,null,"Probabilistic and Extremal Combinatorics (MM)","NWI-EXT-IND",8,null,null,null,null,null,"Symplectic Geometry  (MM)","NWI-EXT-IND",8,null,null,null,null,null,null,null,null,null,"Ergodic Theory (MM)","NWI-EXT-IND",8]
[null,"MFoCS Seminar","NWI-IMC049",3,null,null,null,null,null,null,null,"Quantum Computing (MM)","NWI-EXT-IND",8,null,null,null,null,null,"Topological Methods for Differential Equations (MM)","NWI-EXT-IND",8,null,null,null,null,null,null,null,null,null,"Financial Mathematics","NWI-WM985B",6]
[null,"Master Seminar (3 ec)","NWI-WM115B",3,null,null,null,null,null,null,null,"Quantum Groups","NWI-WM148",6,null,null,null,null,null,"Topological Methods for Non-linear Differential Equations (MM)","NWI-EXT-IND",8,null,null,null,null,null,null,null,null,null,"Financiële Wiskunde (3rd year)","NWI-WB085",6]
[null,"Master Seminar (6 ec)","NWI-WM115C",6,null,null,null,null,null,null,null,"Riemann Surfaces (MM)","NWI-EXT-IND",8,null,null,null,null,null,"Topology in Physics","NWI-EXT-IND",8,null,null,null,null,null,null,null,null,null,"Forceren","NWI-WM104B",4]
[null,"",null,null,null,null,null,null,null,null,null,"Rigid Geometry (MM)","NWI-EXT-IND",8,null,null,null,null,null,"Topos Theory (MM)","NWI-EXT-IND",8,null,null,null,null,null,null,null,null,null,"Forensic probability and statistics (MM)","NWI-EXT-IND",8]
[2018,"AT",null,null,null,null,null,null,null,null,null,"Selected Areas in Cryptology (MM)","NWI-EXT-IND",8,null,null,null,null,null,"Variational Methods (MM)","NWI-EXT-IND",8,null,null,null,null,null,null,null,null,null,"Foundations of General Relativity (MM)","NWI-EXT-IND",8]
[null,"Choose compulsory course..","","",null,null,null,null,null,null,null,"Seminar","NWI-WM115B",3,null,null,null,null,null,null,null,null,null,null,null,null,null,null,null,null,null,"Fourier Analysis and Distributions  (MM)","NWI-EXT-IND",8]
[null,"Differential Geometry (MM)","NWI-EXT-IND",8,null,null,null,null,null,null,null,"Semisimple Lie Algebras (MM)","NWI-EXT-IND",8,null,null,null,null,null,"Other Course (MM)","N/A","N/A",null,null,null,null,null,null,null,null,null,"Functional Analysis (MM)","NWI-EXT-IND",8]
[null,"Algebraic Topology 1","NWI-WM094B",6,null,null,null,null,null,null,null,"Set Theory  (MM)","NWI-EXT-IND",8,null,null,null,null,null,"Other Course (non MM)","N/A","N/A",null,null,null,null,null,null,null,null,null,"Galois Representations and Automorphic Forms  (MM)","NWI-EXT-IND",8]
[null,null,null,null,null,null,null,null,null,null,null,"Simplicial Homotopy Theory","NWI-WM112B",3,null,null,null,null,null,null,null,null,null,null,null,null,null,null,null,null,null,"Galois Theory","NWI-WM968B",6]
[null,"Choose compulsory course..","","",null,null,null,null,null,null,null,"Topos Theory (MM)","NWI-EXT-IND",8,null,null,null,null,null,null,null,null,null,null,null,null,null,null,null,null,null,"Galoistheorie (3rd year)","NWI-WB068B",6]
[null,"Algebraic Geometry (MM)","NWI-EXT-IND",8,null,null,null,null,null,null,null,null,null,null,null,null,null,null,null,null,null,null,null,null,null,null,null,null,null,null,null,"General Relativity ","NWI-WM058B",6]
[null,"Riemann Surfaces","NWI-EXT-IND",8,null,null,null,null,null,null,null,"Other Course (MM)","N/A","N/A",null,null,null,null,null,null,null,null,null,null,null,null,null,null,null,null,null,"Geometric Functional Analysis and its Applications (MM)","NWI-EXT-IND",8]
[null,"Elliptic Curves","NWI-EXT-IND",8,null,null,null,null,null,null,null,"Other Course (non MM)","N/A","N/A",null,null,null,null,null,null,null,null,null,null,null,null,null,null,null,null,null,"Geometric PDEs (MM)","NWI-EXT-IND",8]
[null,null,null,null,null,null,null,null,null,null,null,null,null,null,null,null,null,null,null,null,null,null,null,null,null,null,null,null,null,null,null,"Getaltheorie (3rd year)","NWI-WB089",6]
[null,"AS",null,null,null,null,null,null,null,null,null,null,null,null,null,null,null,null,null,null,null,null,null,null,null,null,null,null,null,null,null,"Gödels Incompleteness Theorems (MM)","NWI-EXT-IND",8]
[null,"Choose compulsory course…","","",null,null,null,null,null,null,null,null,null,null,null,null,null,null,null,null,null,null,null,null,null,null,null,null,null,null,null,"Graph Theory (6 EC)","NWI-WM006C",6]
[null,"Regression Analysis and Non-Parametric Statistics (MM)","NWI-WM098B",6,null,null,null,null,null,null,null,null,null,null,null,null,null,null,null,null,null,null,null,null,null,null,null,null,null,null,null,"Graph Theory (8 EC)","NWI-WM006D",8]
[null,"Probabilistic and Extremal Combinatorics","NWI-EXT-IND",8,null,null,null,null,null,null,null,null,null,null,null,null,null,null,null,null,null,null,null,null,null,null,null,null,null,null,null,"Hamilton Dynamics (MM)","NWI-EXT-IND",8]
[null,null,null,null,null,null,null,null,null,null,null,null,null,null,null,null,null,null,null,null,null,null,null,null,null,null,null,null,null,null,null,"Harmonic Analysis (MM)","NWI-EXT-IND",8]
[null,"Choose compulsory course…","","",null,null,null,null,null,null,null,null,null,null,null,null,null,null,null,null,null,null,null,null,null,null,null,null,null,null,null,"Heuristic Methods in Operations Research (MM)","NWI-EXT-IND",6]
[null,"Biostatistics","NWI-WM126",6,null,null,null,null,null,null,null,null,null,null,null,null,null,null,null,null,null,null,null,null,null,null,null,null,null,null,null,"History and Philosophy of Mathematics (MM)","NWI-EXT-IND",6]
[null,"Measure-Theoretic Probability (MM)","NWI-EXT-IND",8,null,null,null,null,null,null,null,null,null,null,null,null,null,null,null,null,null,null,null,null,null,null,null,null,null,null,null,"Hypergeometric Functions (MM)","NWI-EXT-IND",8]
[null,"Choose compulsory course..","","",null,null,null,null,null,null,null,null,null,null,null,null,null,null,null,null,null,null,null,null,null,null,null,null,null,null,null,"Independence Proofs in Set Theory ","NWI-WM135",6]
[null,"Lie Groups & Lie Algebras ","NWI-EXT-IND",8,null,null,null,null,null,null,null,null,null,null,null,null,null,null,null,null,null,null,null,null,null,null,null,null,null,null,null,"Infinite Dimensional Systems (MM)","NWI-EXT-IND",6]
[null,"Differential Geometry","NWI-EXT-IND",8,null,null,null,null,null,null,null,null,null,null,null,null,null,null,null,null,null,null,null,null,null,null,null,null,null,null,null,"Inleiding Functionaal Analyse (3rd year)","NWI-WB062B",6]
[null,null,null,null,null,null,null,null,null,null,null,null,null,null,null,null,null,null,null,null,null,null,null,null,null,null,null,null,null,null,null,"Inleiding Mathematische Fysica (3rd year)","NWI-WB082",6]
[null,"Choose compulsory course..","","",null,null,null,null,null,null,null,null,null,null,null,null,null,null,null,null,null,null,null,null,null,null,null,null,null,null,null,"Interacting Particle systems: Theory and applications (MM)","NWI-EXT-IND",8]
[null,"Geometric {DE","NWI-EXT-IND",8,null,null,null,null,null,null,null,null,null,null,null,null,null,null,null,null,null,null,null,null,null,null,null,null,null,null,null,"Introduction to Algebraic Curves","NWI-WM132",6]
[null,"Noncommutative Geometry","NWI-WM068C",6,null,null,null,null,null,null,null,null,null,null,null,null,null,null,null,null,null,null,null,null,null,null,null,null,null,null,null,"Introduction to Numerical Bifurcation Analysis of ODEs and Maps (MM)","NWI-EXT-IND",8]
[null,null,null,null,null,null,null,null,null,null,null,null,null,null,null,null,null,null,null,null,null,null,null,null,null,null,null,null,null,null,null,"Introduction to Partial Differential Equations (3rd year)","NWI-WB046B",6]
[null,"Choose your philosophical course here","","",null,null,null,null,null,null,null,null,null,null,null,null,null,null,null,null,null,null,null,null,null,null,null,null,null,null,null,"Introduction to Stochastic Processes (MM)","NWI-EXT-IND",4]
[null,"Mathematics, Zeitgeist and Worldview","NWI-FFIL300C",3,null,null,null,null,null,null,null,null,null,null,null,null,null,null,null,null,null,null,null,null,null,null,null,null,null,null,null,"Introduction to the Langlands Program","NWI-WM118B",6]
[null,"Philosophy of Mathematics","NWI-WM040B",3,null,null,null,null,null,null,null,null,null,null,null,null,null,null,null,null,null,null,null,null,null,null,null,null,null,null,null,"Intuitionistic Mathematics ","NWI-WM037B",8]
[2019,null,null,null,null,null,null,null,null,null,null,null,null,null,null,null,null,null,null,null,null,null,null,null,null,null,null,null,null,null,null,"Intuitionistic Mathematics  (MM)","NWI-EXT-IND",8]
[null,null,null,null,null,null,null,null,null,null,null,null,null,null,null,null,null,null,null,null,null,null,null,null,null,null,null,null,null,null,null,"Lie Algebras in Mathematics and Physics","NWI-WM145",6]
[null,null,null,null,null,null,null,null,null,null,null,null,null,null,null,null,null,null,null,null,null,null,null,null,null,null,null,null,null,null,null,"Lie Groups (MM)","NWI-EXT-IND",8]
[null,null,null,null,null,null,null,null,null,null,null,null,null,null,null,null,null,null,null,null,null,null,null,null,null,null,null,null,null,null,null,"Lie Groups and Lie Algebras  (MM)","NWI-EXT-IND",8]
[null,null,null,null,null,null,null,null,null,null,null,null,null,null,null,null,null,null,null,null,null,null,null,null,null,null,null,null,null,null,null,"Maat en Integraal (3rd year)","NWI-WB023B",6]
[null,null,null,null,null,null,null,null,null,null,null,null,null,null,null,null,null,null,null,null,null,null,null,null,null,null,null,null,null,null,null,"Maattheorie (3rd year)","NWI-WB088",6]
[null,null,null,null,null,null,null,null,null,null,null,null,null,null,null,null,null,null,null,null,null,null,null,null,null,null,null,null,null,null,null,"Manifolds","NWI-WM113A",3]
[null,null,null,null,null,null,null,null,null,null,null,null,null,null,null,null,null,null,null,null,null,null,null,null,null,null,null,null,null,null,null,"Manifolds (3rd year)","NWI-WB079C",6,null,null,null,null,3]
[null,null,null,null,null,null,null,null,null,null,null,null,null,null,null,null,null,null,null,null,null,null,null,null,null,null,null,null,null,null,null,"Master Seminar (3 ec) ","NWI-WM115B",3]
[null,null,null,null,null,null,null,null,null,null,null,null,null,null,null,null,null,null,null,null,null,null,null,null,null,null,null,null,null,null,null,"Master Seminar (6 ec) ","NWI-WM115C",6]
[null,null,null,null,null,null,null,null,null,null,null,null,null,null,null,null,null,null,null,null,null,null,null,null,null,null,null,null,null,null,null,"Mathematical Biology (MM)","NWI-EXT-IND",8]
[null,null,null,null,null,null,null,null,null,null,null,null,null,null,null,null,null,null,null,null,null,null,null,null,null,null,null,null,null,null,null,"Mathematical Structures in Logic (MM)","NWI-EXT-IND",8]
[null,null,null,null,null,null,null,null,null,null,null,null,null,null,null,null,null,null,null,null,null,null,null,null,null,null,null,null,null,null,null,"Measure-theoretic Probability  (MM)","NWI-EXT-IND",8]
[null,null,null,null,null,null,null,null,null,null,null,null,null,null,null,null,null,null,null,null,null,null,null,null,null,null,null,null,null,null,null,"Model Theory","NWI-WM036C",8]
[null,null,null,null,null,null,null,null,null,null,null,null,null,null,null,null,null,null,null,null,null,null,null,null,null,null,null,null,null,null,null,"Model Theory (3rd year)","NWI-WM036B",6]
[null,null,null,null,null,null,null,null,null,null,null,null,null,null,null,null,null,null,null,null,null,null,null,null,null,null,null,null,null,null,null,"Model Theory (MM)","NWI-EXT-IND",8]
[null,null,null,null,null,null,null,null,null,null,null,null,null,null,null,null,null,null,null,null,null,null,null,null,null,null,null,null,null,null,null,"Modular Forms (3rd year)","NWI-WB091",6]
[null,null,null,null,null,null,null,null,null,null,null,null,null,null,null,null,null,null,null,null,null,null,null,null,null,null,null,null,null,null,null,"Modular Forms (MM)","NWI-EXT-IND",8]
[null,null,null,null,null,null,null,null,null,null,null,null,null,null,null,null,null,null,null,null,null,null,null,null,null,null,null,null,null,null,null,"Moduli Spaces (MM)","NWI-EXT-IND",8]
[null,null,null,null,null,null,null,null,null,null,null,null,null,null,null,null,null,null,null,null,null,null,null,null,null,null,null,null,null,null,null,"Multiple Zeta Functions (MM)","NWI-EXT-IND",8]
[null,null,null,null,null,null,null,null,null,null,null,null,null,null,null,null,null,null,null,null,null,null,null,null,null,null,null,null,null,null,null,"Network Dynamics (MM)","NWI-EXT-IND",6]
[null,null,null,null,null,null,null,null,null,null,null,null,null,null,null,null,null,null,null,null,null,null,null,null,null,null,null,null,null,null,null,"Noncommutative Geometry","NWI-WM068C",6]
[null,null,null,null,null,null,null,null,null,null,null,null,null,null,null,null,null,null,null,null,null,null,null,null,null,null,null,null,null,null,null,"Nonlinear Waves (MM)","NWI-EXT-IND",8]
[null,null,null,null,null,null,null,null,null,null,null,null,null,null,null,null,null,null,null,null,null,null,null,null,null,null,null,null,null,null,null,"Numerical Bifurcation Analysis of Large Scale Systems (MM)","NWI-EXT-IND",8]
[null,null,null,null,null,null,null,null,null,null,null,null,null,null,null,null,null,null,null,null,null,null,null,null,null,null,null,null,null,null,null,"Numerical Linear Algebra  (MM)","NWI-EXT-IND",8]
[null,null,null,null,null,null,null,null,null,null,null,null,null,null,null,null,null,null,null,null,null,null,null,null,null,null,null,null,null,null,null,"Numerical Methods for Stationary PDEs (MM)","NWI-EXT-IND",8]
[null,null,null,null,null,null,null,null,null,null,null,null,null,null,null,null,null,null,null,null,null,null,null,null,null,null,null,null,null,null,null,"Numerical Methods for Time Dependent PDEs (MM)","NWI-EXT-IND",8]
[null,null,null,null,null,null,null,null,null,null,null,null,null,null,null,null,null,null,null,null,null,null,null,null,null,null,null,null,null,null,null,"Operator Algebra  (MM)","NWI-EXT-IND",8]
[null,null,null,null,null,null,null,null,null,null,null,null,null,null,null,null,null,null,null,null,null,null,null,null,null,null,null,null,null,null,null,"p-Adic numbers (MM)","NWI-EXT-IND",8]
[null,null,null,null,null,null,null,null,null,null,null,null,null,null,null,null,null,null,null,null,null,null,null,null,null,null,null,null,null,null,null,"p-Adic Numbers and Applications  (MM)","NWI-EXT-IND",8]
[null,null,null,null,null,null,null,null,null,null,null,null,null,null,null,null,null,null,null,null,null,null,null,null,null,null,null,null,null,null,null,"Parallel Algorithms  (MM)","NWI-EXT-IND",8]
[null,null,null,null,null,null,null,null,null,null,null,null,null,null,null,null,null,null,null,null,null,null,null,null,null,null,null,null,null,null,null,"Partial Differential Equations (MM)","NWI-EXT-IND",8]
[null,null,null,null,null,null,null,null,null,null,null,null,null,null,null,null,null,null,null,null,null,null,null,null,null,null,null,null,null,null,null,"Percolation (MM)","NWI-EXT-IND",8]
[null,null,null,null,null,null,null,null,null,null,null,null,null,null,null,null,null,null,null,null,null,null,null,null,null,null,null,null,null,null,null,"Percolation: from Intro to Frontiers of Current Research (MM)","NWI-EXT-IND",8]
[null,null,null,null,null,null,null,null,null,null,null,null,null,null,null,null,null,null,null,null,null,null,null,null,null,null,null,null,null,null,null,"Poisson Geometry","NWI-EXT-IND",8]
[null,null,null,null,null,null,null,null,null,null,null,null,null,null,null,null,null,null,null,null,null,null,null,null,null,null,null,null,null,null,null,"Polynomial Mappings","NWI-WM027B",6]
[null,null,null,null,null,null,null,null,null,null,null,null,null,null,null,null,null,null,null,null,null,null,null,null,null,null,null,null,null,null,null,"Portfolio Theorie (3rd year)","NWI-WB090",6]
[null,null,null,null,null,null,null,null,null,null,null,null,null,null,null,null,null,null,null,null,null,null,null,null,null,null,null,null,null,null,null,"Portfolio Theory","NWI-WM990B",6]
[null,null,null,null,null,null,null,null,null,null,null,null,null,null,null,null,null,null,null,null,null,null,null,null,null,null,null,null,null,null,null,"Probabilistic and Extremal Combinatorics (MM)","NWI-EXT-IND",8]
[null,null,null,null,null,null,null,null,null,null,null,null,null,null,null,null,null,null,null,null,null,null,null,null,null,null,null,null,null,null,null,"Professional Preparation","NWI-NM019B",1]
[null,null,null,null,null,null,null,null,null,null,null,null,null,null,null,null,null,null,null,null,null,null,null,null,null,null,null,null,null,null,null,"Quantum Computing","NWI-EXT-IND",8]
[null,null,null,null,null,null,null,null,null,null,null,null,null,null,null,null,null,null,null,null,null,null,null,null,null,null,null,null,null,null,null,"Quantum Groups","NWI-WM148",6]
[null,null,null,null,null,null,null,null,null,null,null,null,null,null,null,null,null,null,null,null,null,null,null,null,null,null,null,null,null,null,null,"Quantum Information Theory (MM)","NWI-EXT-IND",8]
[null,null,null,null,null,null,null,null,null,null,null,null,null,null,null,null,null,null,null,null,null,null,null,null,null,null,null,null,null,null,null,"Quantum Probability","NWI-WM134",6]
[null,null,null,null,null,null,null,null,null,null,null,null,null,null,null,null,null,null,null,null,null,null,null,null,null,null,null,null,null,null,null,"Quantum Processes and Computation","NWI-WM134/IMC055",6]
[null,null,null,null,null,null,null,null,null,null,null,null,null,null,null,null,null,null,null,null,null,null,null,null,null,null,null,null,null,null,null,"Queueing Theory (MM)","NWI-IMC055",6]
[null,null,null,null,null,null,null,null,null,null,null,null,null,null,null,null,null,null,null,null,null,null,null,null,null,null,null,null,null,null,null,"Queues and Levy Fluctuation Theory (MM)","NWI-EXT-IND",8]
[null,null,null,null,null,null,null,null,null,null,null,null,null,null,null,null,null,null,null,null,null,null,null,null,null,null,null,null,null,null,null,"Real Functions 1","NWI-WM100A",3]
[null,null,null,null,null,null,null,null,null,null,null,null,null,null,null,null,null,null,null,null,null,null,null,null,null,null,null,null,null,null,null,"Regression Analysis and Non-Parametric Statistics","NWI-WM098B",6]
[null,null,null,null,null,null,null,null,null,null,null,null,null,null,null,null,null,null,null,null,null,null,null,null,null,null,null,null,null,null,null,"Riemann Surfaces (MM)","NWI-EXT-IND",8]
[null,null,null,null,null,null,null,null,null,null,null,null,null,null,null,null,null,null,null,null,null,null,null,null,null,null,null,null,null,null,null,"Rigid Geometry (MM)","NWI-EXT-IND",8]
[null,null,null,null,null,null,null,null,null,null,null,null,null,null,null,null,null,null,null,null,null,null,null,null,null,null,null,null,null,null,null,"Scattering Theory/Special Functions","NWI-WM141",6]
[null,null,null,null,null,null,null,null,null,null,null,null,null,null,null,null,null,null,null,null,null,null,null,null,null,null,null,null,null,null,null,"Scheduling  (MM)","NWI-EXT-IND",6]
[null,null,null,null,null,null,null,null,null,null,null,null,null,null,null,null,null,null,null,null,null,null,null,null,null,null,null,null,null,null,null,"Selected Areas in Cryptology (MM)","NWI-EXT-IND",8]
[null,null,null,null,null,null,null,null,null,null,null,null,null,null,null,null,null,null,null,null,null,null,null,null,null,null,null,null,null,null,null,"Semidefinitie Optimization (MM)","NWI-EXT-IND",8]
[null,null,null,null,null,null,null,null,null,null,null,null,null,null,null,null,null,null,null,null,null,null,null,null,null,null,null,null,null,null,null,"Seminar","NWI-WM115B",3]
[null,null,null,null,null,null,null,null,null,null,null,null,null,null,null,null,null,null,null,null,null,null,null,null,null,null,null,null,null,null,null,"Semisimple Lie Algebras (MM)","NWI-EXT-IND",8]
[null,null,null,null,null,null,null,null,null,null,null,null,null,null,null,null,null,null,null,null,null,null,null,null,null,null,null,null,null,null,null,"Set Theory  (MM)","NWI-EXT-IND",8]
[null,null,null,null,null,null,null,null,null,null,null,null,null,null,null,null,null,null,null,null,null,null,null,null,null,null,null,null,null,null,null,"Simplicial Homotopy Theory","NWI-WM112B",3]
[null,null,null,null,null,null,null,null,null,null,null,null,null,null,null,null,null,null,null,null,null,null,null,null,null,null,null,null,null,null,null,"Spatial Statistics (MM)","NWI-EXT-IND",6]
[null,null,null,null,null,null,null,null,null,null,null,null,null,null,null,null,null,null,null,null,null,null,null,null,null,null,null,null,null,null,null,"Spontaneous Symmetry Breaking","NWI-WM-086B",6]
[null,null,null,null,null,null,null,null,null,null,null,null,null,null,null,null,null,null,null,null,null,null,null,null,null,null,null,null,null,null,null,"Statistical Theory for High- and Infinite- Dim. Models (MM)","NWI-EXT-IND",8]
[null,null,null,null,null,null,null,null,null,null,null,null,null,null,null,null,null,null,null,null,null,null,null,null,null,null,null,null,null,null,null,"Stochastic Differential Equations (MM)","NWI-EXT-IND",6]
[null,null,null,null,null,null,null,null,null,null,null,null,null,null,null,null,null,null,null,null,null,null,null,null,null,null,null,null,null,null,null,"Stochastic Processes  (MM)","NWI-EXT-IND",8]
[null,null,null,null,null,null,null,null,null,null,null,null,null,null,null,null,null,null,null,null,null,null,null,null,null,null,null,null,null,null,null,"Symmetries and conservation laws of nonlinear PDE (MM)","NWI-EXT-IND",8]
[null,null,null,null,null,null,null,null,null,null,null,null,null,null,null,null,null,null,null,null,null,null,null,null,null,null,null,null,null,null,null,"Symplectic Geometry  (MM)","NWI-EXT-IND",8]
[null,null,null,null,null,null,null,null,null,null,null,null,null,null,null,null,null,null,null,null,null,null,null,null,null,null,null,null,null,null,null,"Systems and Control (MM)","NWI-EXT-IND",6]
[null,null,null,null,null,null,null,null,null,null,null,null,null,null,null,null,null,null,null,null,null,null,null,null,null,null,null,null,null,null,null,"Time Series  (MM)","NWI-EXT-IND",8]
[null,null,null,null,null,null,null,null,null,null,null,null,null,null,null,null,null,null,null,null,null,null,null,null,null,null,null,null,null,null,null,"Topological Methods for Differential Equations (MM)","NWI-EXT-IND",8]
[null,null,null,null,null,null,null,null,null,null,null,null,null,null,null,null,null,null,null,null,null,null,null,null,null,null,null,null,null,null,null,"Topological Methods for Non-linear Differential Equations (MM)","NWI-EXT-IND",8]
[null,null,null,null,null,null,null,null,null,null,null,null,null,null,null,null,null,null,null,null,null,null,null,null,null,null,null,null,null,null,null,"Topology in Physics (MM)","NWI-EXT-IND",8]
[null,null,null,null,null,null,null,null,null,null,null,null,null,null,null,null,null,null,null,null,null,null,null,null,null,null,null,null,null,null,null,"Topos Theory (MM)","NWI-EXT-IND",8]
[null,null,null,null,null,null,null,null,null,null,null,null,null,null,null,null,null,null,null,null,null,null,null,null,null,null,null,null,null,null,null,"Variational Methods (MM)","NWI-EXT-IND",8]
[null,null,null,null,null,null,null,null,null,null,null,null,null,null,null,null,null,null,null,null,null,null,null,null,null,null,null,null,null,null,null,"Voortgezette Statistiek (3rd year)","NWI-WB041B",3]
[null,"SMI Theme courses (12 EC) (Select 1 of the themes below, including the theme course)"]
[null,null,null,null,null,null,null,null,null,null,null,null,null,null,null,null,null,null,null,null,null,null,null,null,null,null,null,null,null,null,null,"Other Course (MM)","N/A","N/A"]
[null,"Course code","SMI theme courses here","","",null,null,null,null,null,null,null,null,null,null,null,null,null,null,null,null,null,null,null,null,null,null,null,null,null,null,"Other Course (non MM)","N/A","N/A"]
[null,"Theme: Energy & Climate (Include 6 EC core theme course)","Energy and Climate (mandatory course - E&C)",6,"NWI-FMT022"]
[null,"Theme: Energy & Climate (Include 6 EC core theme course)","The Bio-economy - E&C",3,"NWI-FMT020"]
[null,"Theme: Energy & Climate (Include 6 EC core theme course)","Energy Modelling - E&C",3,"NWI-FMT026"]
[null,"Theme: Energy & Climate (Include 6 EC core theme course)","Sustainable Production and Consumption - E&C",3,"NWI-MM020"]
[null,"Theme: Energy & Climate (Include 6 EC core theme course)","Environmental Life Cycle Assessment - E&C",3,"NWI-MM020A"]
[null,"Theme: Health (Include 6 EC core theme course)","The Future of Health (mandatory course - Health)",6,"NWI-FMT023"]
[null,"Theme: Health (Include 6 EC core theme course)","Neuroscience - (Health elective)",3,"NWI-FMT021"]
[null,"Theme: Health (Include 6 EC core theme course)","Synthactic Bio-chemistry - (Health elective)",3,"NWI-FMT025"]
[null,"Theme: Health (Include 6 EC core theme course)","From Lab to Clinic - (Health elective)",6,"NWI-FMT025B"]
[null,null,"Security in Organisations - (Cyb.Sec)",6,"NWI-I00153"]
[null,null,"Law in Cyberspace - (Cyb.Sec)",6,"NWI-IMC006"]
[null,null,"Cryptology - (Syb.Sec)",5,"NWI-TRUE02"]